{"text_format":"1","workbook":"xlsx","n_sheets":8,"sheets":["Ruta de implementación","Ejemplo","Ruta vacía","Elementos","Opc","Catálogo de líneas de acción","Opciones","Hoja2"],"not_rendered":{"charts":0,"images":5,"macros":1,"external_links":0,"defined_names":1,"comments":0,"pivot_tables":0},"unopened":[],"bounds":{"document_bytes":16777216,"sheet_cells":100000,"rows_first":2000,"rows_last":500,"rows_between":2000,"halvings":0,"cell_chars":16384,"cell_head_chars":4096},"cells_cut":0,"cells_raw":0,"read":"whole","date_system":"1900"}

{"sheet":"Ruta de implementación","index":0,"n_rows":177,"n_cols":16,"rows_kept":177,"cut":false,"hidden":false,"merged":[[0,1,0,9],[2,2,2,6]]}
["Línea vacía","RUTA DE IMPLEMENTACIÓN DE LOS PROGRAMAS NACIONALES EMITIDOS POR EL SISTEMA NACIONAL DE TRANSPARENCIA"]
["Línea vacía"]
["Línea vacía","Integrante:",{"$f":"#REF!","v":{"$error":"#REF!"}}]
["Línea vacía"]
["Línea vacía","Programa","Eje","Objetivo","Línea estratégica (PRONADATOS) / Estrategias (PROTAI)","Numeración","Línea de acción","Transversal","Descripción de las actividades a desarrollar en la institución","Responsable","Cargo","Resultado final","Evidencias","Descripción de evidencias","Semestre planeado","Comentarios"]
["Instituto Nacional de Transparencia, Acceso a la Información y Protección de Datos Personales"]
[]
[]
[]
[]
[]
[]
[]
[]
[]
[]
[]
[]
[]
[]
[]
[]
[]
[]
[]
[]
[]
[]
[]
[]
[]
[]
[]
[]
[]
[]
[]
[]
[]
[]
[]
[]
[]
[]
[]
[]
[]
[]
[]
[]
[]
[]
[]
[]
[]
[]
[]
[]
[]
[]
[]
[]
[]
[]
[]
[]
[]
[]
[]
[]
[]
[]
[]
[]
[]
[]
[]
[]
[]
[]
[]
[]
[]
[]
[]
[]
[]
[]
[]
[]
[]
[]
[]
[]
[]
[]
[]
[]
[]
[]
[]
[]
[]
[]
[]
[]
[]
[]
[]
[]
[]
[]
[]
[]
[]
[]
[]
[]
[]
[]
[]
[]
[]
[]
[]
[]
[]
[]
[]
[]
[]
[]
[]
[]
[]
[]
[]
[]
[]
[]
[]
[]
[]
[]
[]
[]
[]
[]
[]
[]
[]
[]
[]
[]
[]
[]
[]
[]
[]
[]
[]
[]
[]
[]
[]
[]
[]
[]
[]
[]
[]
[]
[]
[]
[]
[]
[null,"PROTAI",null,null,null,null,null,null,"El INAI, a través de su Dirección General de Comunicación Social desarrollarán un análisis comparado de diversas fuentes de información sobre audiencias específicas. El reporte que derive del análisis servirá de insumo para la definición de campañas, mensajes y estrategias de difusión.","Lic. Javier Hernandez Balcazar","Subdirector de mensaje institucional","Estudio de audiencias especificas para la difusión del Derecho de Acceso a la Información disponible en: http://inicio.inai.org.mx/SitePages/Estudios.aspx ","Lista de fuentes de consulta","Este listado es el primer entregable del análisis comparado de estudios a audiencias, muestra las fuentes de información que se consultarán y los enlaces a la mismas",null,"En caso de obtener recursos adicionales el estudio se contrará, las fechas y evidencias se ajustarán conforme los entregables que se establezcan"]

{"sheet":"Ejemplo","index":1,"n_rows":10,"n_cols":16,"rows_kept":10,"cut":false,"hidden":false,"merged":[[0,1,0,9],[2,2,2,6]]}
[null,"RUTA DE IMPLEMENTACIÓN DE LOS PROGRAMAS NACIONALES EMITIDOS POR EL SISTEMA NACIONAL DE TRANSPARENCIA"]
[]
[null,"Integrante:","Instituto de Transparencia, Acceso a la Información Pública, Protección de Datos Personales y Rendición de Cuentas de la Ciudad de México"]
[]
["Línea vacía","Programa","Eje","Objetivo","Línea estratégica (PRONADATOS) / Estrategias (PROTAI)","Numeración","Línea de acción","Transversal","Descripción de las actividades a desarrollar en la institución","Responsable","Cargo","Resultado final","Evidencias","Descripción de evidencias","Semestre planeado","Comentarios"]
[null,"PROTAI","Promoción, Difusión y Fomento de la Cultura de Transparencia y Acceso a la Información","A.2 Articular desde los organismos garantes la promoción y difusión de la transparencia y el acceso a la información (OGL, INAI)","Desempeño institucional / Uso de TICs / Difusión / Capacitación / Coordinación.","A.2.2","Conocer y contar con canales y medios de comunicación idóneos dirigido a la población objetivo (OGL, INAI)","Transversal","El INAI, a través de su Dirección General de Comunicación Social desarrollarán un análisis comparado de diversas fuentes de información sobre audiencias específicas. El reporte que derive del análisis servirá de insumo para la definición de campañas, mensajes y estrategias de difusión.","Lic. Javier Hernandez Balcazar","Subdirector de mensaje institucional","Estudio de audiencias especificas para la difusión del Derecho de Acceso a la Información disponible en: http://inicio.inai.org.mx/SitePages/Estudios.aspx ","Lista de fuentes de consulta","Este listado es el primer entregable del análisis comparado de estudios a audiencias, muestra las fuentes de información que se consultarán y los enlaces a la mismas","1er Semestre","En caso de obtener recursos adicionales el estudio se contrará, las fechas y evidencias se ajustarán conforme los entregables que se establezcan"]
[null,"PROTAI","Promoción, Difusión y Fomento de la Cultura de Transparencia y Acceso a la Información","A.2 Articular desde los organismos garantes la promoción y difusión de la transparencia y el acceso a la información (OGL, INAI)","Desempeño institucional / Uso de TICs / Difusión / Capacitación / Coordinación.","A.2.2","Conocer y contar con canales y medios de comunicación idóneos dirigido a la población objetivo (OGL, INAI)","Transversal","El INAI, a través de su Dirección General de Comunicación Social desarrollarán un análisis comparado de diversas fuentes de información sobre audiencias específicas. El reporte que derive del análisis servirá de insumo para la definición de campañas, mensajes y estrategias de difusión.","Lic. Javier Hernandez Balcazar","Subdirector de mensaje institucional","Estudio de audiencias especificas para la difusión del Derecho de Acceso a la Información disponible en: http://inicio.inai.org.mx/SitePages/Estudios.aspx ","Anexo estadístico","Este anexo es una serie de gráficas, tablas y comparativos que permitirán construir el reporte final del análisis comparado de estudios a audiencias","2do Semestre","En caso de obtener recursos adicionales el estudio se contrará, las fechas y evidencias se ajustarán conforme los entregables que se establezcan"]
[null,"PROTAI","Promoción, Difusión y Fomento de la Cultura de Transparencia y Acceso a la Información","A.2 Articular desde los organismos garantes la promoción y difusión de la transparencia y el acceso a la información (OGL, INAI)","Desempeño institucional / Uso de TICs / Difusión / Capacitación / Coordinación.","A.2.2","Conocer y contar con canales y medios de comunicación idóneos dirigido a la población objetivo (OGL, INAI)","Transversal","El INAI, a través de su Dirección General de Comunicación Social desarrollarán un análisis comparado de diversas fuentes de información sobre audiencias específicas. El reporte que derive del análisis servirá de insumo para la definición de campañas, mensajes y estrategias de difusión.","Lic. Javier Hernandez Balcazar","Subdirector de mensaje institucional","Estudio de audiencias especificas para la difusión del Derecho de Acceso a la Información disponible en: http://inicio.inai.org.mx/SitePages/Estudios.aspx ","Reporte final","El reporte final muestra y resume los hallazgos del analisis comparado de estudios a audiencias.","2do Semestre","En caso de obtener recursos adicionales el estudio se contrará, las fechas y evidencias se ajustarán conforme los entregables que se establezcan"]
[null,"PRONADATOS","Ejercicio de los derechos ARCO y de portabilidad","Establecer las bases para que exista un ejercicio adecuado de los derechos ARCO y la portabilidad de datos personales","2.2 Inclusión del tema de derechos ARCO en los programas educativos","2.2.1","Definir las estrategias que permitan la integración del ejercicio de los derechos ARCO y la portabilidad de datos personales en los programas educativos en común acuerdo con las autoridades educativas de los distintos niveles (Organismos garantes)",null,"Se establecerá un convenio de colaboración específico son la Secretaría de Educación Pública para el desarrollo de contenidos en materias de protección de datos personales y su inclusión en los programas educativos de nivel básico","Mtra. Verónica Charlyn Corral Ang","Directora de promoción de protección de datos personales","Convenio específico de colaboración con la Secretaría de Educación Pública, disponible en: http://inicio.inai.org.mx/SitePages/ConveniosInstitucionales.aspx ","Convenio específico firmado","El convenio incluye una ruta de acción, responsables y metas para la integración de contenidos suficientes y adecuados en materia de protección de datos personales para el alumnado de los niveles básicos","2do Semestre"]
[null,"AMBOS","Gestión documental y administración de archivos","1.1 Promover entre los sujetos obligados, la adopción de un marco normativo y reglamentario adecuado para fortalecer y mejorar la gestión documental y la administración de archivos como condición indispensable para la tutela de los derechos de acceso a la información pública. (OGL, AGN, INAI)","Marco normativo / Uso de TICs / Desempeño institucional y procesos / Capacitación / Coordinación","1.1.1 ","Desarrollar un diagnóstico sobre la normatividad existente en materia de gestión documental y administración de archivos que identifique las áreas de oportunidad en su homologación (OGL, AGN, INAI)",null,"En colaboración con el Archivo General de la Nación se realizará la contratación de un diagnóstico de la normatividad del gobierno federal, el proceso de contratación tendrá carácter plurianual y la versión final del documento de diagnóstico se recibirá en 2019.","Ing. Hirving Rodrigo Lozano Bahena","Director General de Colaboración Interinstitucional","Diagnóstico de normatividad en materia de archivo y gestión documental en la APF disponible en: http://inicio.inai.org.mx/SitePages/Estudios.aspx ","Entregable 1.- Catálogo de normatividad con disposiciones archivísticas","El catálogo es un listado de todas las disposiciones normativas que han sido emitidas y son vigentes para la administración pública federal y contienen disposiciones que atañen a los procesos de manejo de archivos y documentos generados por los entes de gobierno","2do Semestre","El resto de los entregables se recibirán en el transcurso de 2019"]

{"sheet":"Ruta vacía","index":2,"n_rows":5,"n_cols":16,"rows_kept":5,"cut":false,"hidden":false,"merged":[[0,1,0,9],[2,2,2,6]]}
[null,"RUTA DE IMPLEMENTACIÓN DE LOS PROGRAMAS NACIONALES EMITIDOS POR EL SISTEMA NACIONAL DE TRANSPARENCIA"]
[]
[null,"Integrante:"]
[]
["Línea vacía","Programa","Eje","Objetivo","Línea estratégica (PRONADATOS) / Estrategias (PROTAI)","Numeración","Línea de acción","Transversal","Descripción de las actividades a desarrollar en la institución","Responsable","Cargo","Resultado final","Evidencias","Descripción de evidencias","Semestre planeado","Comentarios"]

{"sheet":"Elementos","index":3,"n_rows":16,"n_cols":2,"rows_kept":16,"cut":false,"hidden":false,"merged":[]}
["Integrante:","Nombre de la institución integrante del SNT de la que se remite la ruta de implementación en el presente archivo"]
["Programa","Programa Nacional al que pertenece la línea de acción analizada: el Programa Nacional de Transparencia y Acceso a la Información 2017-2021 (PROTAI), el Programa Nacional de Protección de Datos Personales 2018-2022 (PRONADATOS) o ambos (en el caso del eje de Archivo y Gestión Documental del PROTAI)"]
["Eje","Eje temático o transversal al que pertenece la línea de acción analizada"]
["Objetivo","Objetivo al que busca contribuir la línea de acción analizada"]
["Línea estratégica (PRONADATOS) / Estrategias (PROTAI)","En el caso del PROTAI: indica las estrategias que se implementan para el alcance del objetivo al que abona la línea de acción analizada.\nEn el caso del PRONADATOS: indica la línea estratégica que agrupa a la línea de acción analizada con las demás que apoyan el desarrollo de un mismo proceso."]
["Numeración","Clave numerada de la línea de acción analizada"]
["Línea de acción","Texto que describe la línea de acción analizada"]
["Transversal","Indicador de si la línea de acción analizada pertenece a uno de los ejes transversales del PROTAI o a una de las líneas estratégicas transversales del PRONADATOS"]
["Descripción de las actividades a desarrollar en la institución","Exposición de la actividad a desarrollar al interior de la institución, que se relaciona con la línea de acción señalada"]
["Responsable","Nombre del servidor público de la institución que está a cargo de la realización de la actividad asociada al cumplimiento de la línea de acción"]
["Cargo","Puesto que ostenta en la institución el responsable de la realización de la actividad asociada al cumplimiento de la línea de acción"]
["Resultado final","Producto que refleja con certeza la realización de la actividad asociada al cumplimiento de la línea de acción y, en su caso, un enlace que permita la difusión del mismo"]
["Evidencias","Productos intermedios de la actividad institucional que reflejan con certeza avances en la realización de la actividad asociada al cumplimiento de la línea de acción y, en su caso, un enlace que permita la difusión del mismo"]
["Descripción de evidencias","Exposición del producto intermedio presentado como evidencia, los contenidos y características del mismo, así como su relación en el desarrollo de la actividad asociada al cumplimiento de la línea de acción"]
["Trimestre planeado","Trimestre del año 2018 en el que se planea contar con los productos enunciados listos para su reporte a la pizarra de avances de los Programas Nacionales"]
["Comentarios","Aclaraciones, avisos, información y observaciones pertinentes a las evidencias enunciadas que abonen al entendimiento ciudadano de las mismas"]

{"sheet":"Opc","index":4,"n_rows":438,"n_cols":3,"rows_kept":438,"cut":false,"hidden":true,"merged":[]}
["PROTAI","PRONADATOS","AMBOS"]
["A.1.1","1.1.A1","1.1.1 "]
["A.1.2","1.1.A2","1.1.2"]
["A.1.3","1.1.A3","1.1.3"]
["A.1.4","1.1.A4","1.1.4"]
["A.1.5","1.1.A5","1.1.5"]
["A.1.6","1.1.A6","1.1.6"]
["A.2.1 ","1.1.A7","1.2.1 "]
["A.2.2","1.1.C1-C7 ","1.2.2"]
["A.2.3","1.2.1","1.2.3"]
["A.2.4","1.2.2","1.2.4"]
["A.2.5","1.2.3","1.2.5"]
["A.2.6","1.2.4","1.2.6"]
["A.3.1 ","1.2.5","1.3.1 "]
["A.3.2","1.2.C1-C7 ","1.3.2"]
["A.3.3","1.3.1 ","1.3.3"]
["A.3.4","1.3.A1","1.3.4"]
["B.1.1","1.3.A2","1.3.5"]
["B.1.2","1.3.A3","1.4.1 "]
["B.1.3","1.3.A4","1.4.2"]
["B.1.4","1.3.A5","1.4.3"]
["B.1.5","1.3.A6","1.4.4"]
["B.1.6","1.3.A7","1.4.5"]
["B.1.7","1.3.C1-C7 ","1.4.6"]
["2.1.1","1.4.1 ","1.4.7"]
["2.1.2","1.4.2"]
["2.1.3","1.4.3"]
["2.1.4","1.4.4"]
["2.1.5","1.4.A1"]
["2.1.6","1.4.A2"]
["2.1.7","1.4.A3"]
["2.1.8","1.4.A4"]
["2.1.9","1.4.A5"]
["2.2.1 ","1.4.A6"]
["2.2.2","1.4.A7"]
["2.2.3","1.4.C1-C7 "]
["2.2.4","1.5.1 "]
["2.3.1 ","1.5.2"]
["2.3.2","1.5.A1"]
["2.3.3","1.5.A2"]
["2.3.4","1.5.A3"]
["2.3.5","1.5.A4"]
["2.3.6","1.5.A5"]
["2.4.1 ","1.5.A6"]
["2.4.2","1.5.A7"]
["2.5.1 ","1.5.C1-C7 "]
["2.5.2","1.6.A1"]
["2.5.3","1.6.A2"]
["2.6.1 ","1.6.A3"]
["2.6.2","1.6.A4"]
["2.6.3","1.6.A5"]
["2.6.4","1.6.A6"]
["3.1.1 ","1.6.A7"]
["3.1.2","1.6.C1-C7 "]
["3.1.3","2.1.A1"]
["3.1.4","2.1.A2"]
["3.1.5","2.1.A3"]
["3.1.6","2.1.A4"]
["3.2.1 ","2.1.A5"]
["3.2.2","2.1.A6"]
["3.2.3","2.1.A7"]
["3.2.4","2.1.C1-C7 "]
["3.3.1 ","2.2.1 "]
["3.3.2 ","2.2.2"]
["3.3.3","2.2.C1-C7 "]
["3.4.1","2.3.1 "]
["3.4.2 ","2.3.2"]
["3.4.3 ","2.3.4"]
["3.4.4 ","2.3.5"]
["3.4.5 ","2.3.6"]
["3.4.6 ","2.3.C1-C7 "]
["3.4.7","2.4.1 "]
["3.4.8 ","2.4.2"]
["3.4.9 ","2.4.3"]
["3.5.1","2.4.4"]
["3.5.2 ","2.4.5"]
["3.5.3 ","2.4.C1-C7 "]
["3.6.1 ","2.5.1 "]
["3.6.2 ","2.5.2"]
["3.6.3 ","2.5.3"]
["3.7.1 ","2.5.C1-C7 "]
["3.7.2 ","2.6.B1"]
["3.7.3 ","2.6.B2"]
["3.7.4 ","2.6.B3"]
["3.7.5 ","2.6.B4"]
["3.7.6 ","2.6.B5"]
["3.7.7 ","2.6.B6"]
["3.7.8 ","2.6.B7"]
["4.1.1 ","2.6.B8"]
["4.1.2 ","2.6.B9"]
["4.1.3 ","2.6.B10"]
["4.2.1 ","2.6.B11"]
["4.2.2 ","2.6.B12"]
["4.2.3 ","2.6.B13"]
["4.3.1 ","2.6.B14"]
["4.3.2 ","2.6.B15"]
["4.3.3 ","2.6.B16"]
["4.3.4 ","2.6.B17"]
["4.3.5 ","2.6.B18"]
["4.4.1 ","2.6.B19"]
["4.4.2 ","2.6.B20"]
["4.4.3 ","2.6.C1-C7 "]
["4.4.4 ","2.7.1 "]
["4.4.5 ","2.7.2"]
[null,"2.7.C1-C7 "]
[null,"2.8.1 "]
[null,"2.8.2"]
[null,"2.8.3"]
[null,"2.8.A1"]
[null,"2.8.A2"]
[null,"2.8.A3"]
[null,"2.8.A4"]
[null,"2.8.A5"]
[null,"2.8.A6"]
[null,"2.8.A7"]
[null,"2.8.C1-C7 "]
[null,"2.9.1 "]
[null,"2.9.2"]
[null,"2.9.3"]
[null,"2.9.C1-C7 "]
[null,"3.1.A1"]
[null,"3.1.A2"]
[null,"3.1.A3"]
[null,"3.1.A4"]
[null,"3.1.A5"]
[null,"3.1.A6"]
[null,"3.1.A7"]
[null,"3.1.C1-C7 "]
[null,"3.2.1 "]
[null,"3.2.2"]
[null,"3.2.3"]
[null,"3.2.4"]
[null,"3.2.5"]
[null,"3.2.6"]
[null,"3.2.7"]
[null,"3.2.8"]
[null,"3.2.C1-C7 "]
[null,"3.3.1 "]
[null,"3.3.2"]
[null,"3.3.C1-C7 "]
[null,"3.4.B1"]
[null,"3.4.B2"]
[null,"3.4.B3"]
[null,"3.4.B4"]
[null,"3.4.B5"]
[null,"3.4.B6"]
[null,"3.4.B7"]
[null,"3.4.B8"]
[null,"3.4.B9"]
[null,"3.4.B10"]
[null,"3.4.B11"]
[null,"3.4.B12"]
[null,"3.4.B13"]
[null,"3.4.B14"]
[null,"3.4.B15"]
[null,"3.4.B16"]
[null,"3.4.B17"]
[null,"3.4.B18"]
[null,"3.4.B19"]
[null,"3.4.B20"]
[null,"3.4.C1-C7 "]
[null,"3.5.1 "]
[null,"3.5.2"]
[null,"3.5.3"]
[null,"3.5.C1-C7 "]
[null,"4.1.1"]
[null,"4.1.2"]
[null,"4.1.3"]
[null,"4.1.4"]
[null,"4.1.5"]
[null,"4.1.6"]
[null,"4.1.7"]
[null,"4.1.8"]
[null,"4.1.9"]
[null,"4.1.C1-C7 "]
[null,"4.2.1 "]
[null,"4.2.2"]
[null,"4.2.3"]
[null,"4.2.4"]
[null,"4.2.5"]
[null,"4.2.6"]
[null,"4.2.C1-C7 "]
[null,"4.3.A1"]
[null,"4.3.A2"]
[null,"4.3.A3"]
[null,"4.3.A4"]
[null,"4.3.A5"]
[null,"4.3.A6"]
[null,"4.3.A7"]
[null,"4.3.C1-C7 "]
[null,"4.4.1 "]
[null,"4.4.2"]
[null,"4.4.3"]
[null,"4.4.4"]
[null,"4.4.C1-C7 "]
[null,"4.5.1 "]
[null,"4.5.2"]
[null,"4.5.C1-C7 "]
[null,"4.6.1 "]
[null,"4.6.2"]
[null,"4.6.3"]
[null,"4.6.C1-C7 "]
[null,"4.7.1 "]
[null,"4.7.2"]
[null,"4.7.3"]
[null,"4.7.4"]
[null,"4.7.C1-C7 "]
[null,"5.1.A1"]
[null,"5.1.A2"]
[null,"5.1.A3"]
[null,"5.1.A4"]
[null,"5.1.A5"]
[null,"5.1.A6"]
[null,"5.1.A7"]
[null,"5.1.C1-C7 "]
[null,"5.2.1 "]
[null,"5.2.2 "]
[null,"5.2.3 "]
[null,"5.2.4 "]
[null,"5.2.C1-C7 "]
[null,"5.3.1 "]
[null,"5.3.2 "]
[null,"5.3.A1"]
[null,"5.3.A2"]
[null,"5.3.A3"]
[null,"5.3.A4"]
[null,"5.3.A5"]
[null,"5.3.A6"]
[null,"5.3.A7"]
[null,"5.3.C1-C7 "]
[null,"5.4.1 "]
[null,"5.4.2 "]
[null,"5.4.3 "]
[null,"5.4.4 "]
[null,"5.4.C1-C7 "]
[null,"6.1.1 "]
[null,"6.1.2 "]
[null,"6.1.3 "]
[null,"6.1.C1-C7"]
[null,"6.2.A1"]
[null,"6.2.A2"]
[null,"6.2.A3"]
[null,"6.2.A4"]
[null,"6.2.A5"]
[null,"6.2.A6"]
[null,"6.2.A7"]
[null,"6.2.C1-C7 "]
[null,"6.3.1 "]
[null,"6.3.2"]
[null,"6.3.3 "]
[null,"6.3.4 "]
[null,"6.3.C1-C7 "]
[null,"6.4.B1"]
[null,"6.4.B2"]
[null,"6.4.B3"]
[null,"6.4.B4"]
[null,"6.4.B5"]
[null,"6.4.B6"]
[null,"6.4.B7"]
[null,"6.4.B8"]
[null,"6.4.B9"]
[null,"6.4.B10"]
[null,"6.4.B11"]
[null,"6.4.B12"]
[null,"6.4.B13"]
[null,"6.4.B14"]
[null,"6.4.B15"]
[null,"6.4.B16"]
[null,"6.4.B17"]
[null,"6.4.B18"]
[null,"6.4.B19"]
[null,"6.4.B20"]
[null,"6.4.C1-C7 "]
[null,"6.5.1 "]
[null,"6.5.2 "]
[null,"6.5.3 "]
[null,"6.5.4 "]
[null,"6.5.5 "]
[null,"6.5.C1-C7 "]
[null,"6.6.1 "]
[null,"6.6.2 "]
[null,"6.6.3 "]
[null,"6.6.C1-C7 "]
[null,"7.1.A1"]
[null,"7.1.A2"]
[null,"7.1.A3"]
[null,"7.1.A4"]
[null,"7.1.A5"]
[null,"7.1.A6"]
[null,"7.1.A7"]
[null,"7.1.C1-C7 "]
[null,"7.2.B1"]
[null,"7.2.B2"]
[null,"7.2.B3"]
[null,"7.2.B4"]
[null,"7.2.B5"]
[null,"7.2.B6"]
[null,"7.2.B7"]
[null,"7.2.B8"]
[null,"7.2.B9"]
[null,"7.2.B10"]
[null,"7.2.B11"]
[null,"7.2.B12"]
[null,"7.2.B13"]
[null,"7.2.B14"]
[null,"7.2.B15"]
[null,"7.2.B16"]
[null,"7.2.B17"]
[null,"7.2.B18"]
[null,"7.2.B19"]
[null,"7.2.B20"]
[null,"7.2.C1-C7 "]
[null,"7.3.1 "]
[null,"7.3.2 "]
[null,"7.3.3 "]
[null,"7.3.C1-C7 "]
[null,"7.4.C1-C7 "]
[null,"8.1.1.1 "]
[null,"8.1.1.2 "]
[null,"8.1.1.3 "]
[null,"8.1.1.4 "]
[null,"8.1.1.C1-C7"]
[null,"8.1.2.A1"]
[null,"8.1.2.A2"]
[null,"8.1.2.A3"]
[null,"8.1.2.A4"]
[null,"8.1.2.A5"]
[null,"8.1.2.A6"]
[null,"8.1.2.A7"]
[null,"8.1.2.C1-C7 "]
[null,"8.1.3.A1"]
[null,"8.1.3.A2"]
[null,"8.1.3.A3"]
[null,"8.1.3.A4"]
[null,"8.1.3.A5"]
[null,"8.1.3.A6"]
[null,"8.1.3.A7"]
[null,"8.1.3.C1-C7 "]
[null,"8.1.4.1 "]
[null,"8.1.4.2 "]
[null,"8.1.4.3 "]
[null,"8.1.4.C1-C7 "]
[null,"8.2.1.B1"]
[null,"8.2.1.B2"]
[null,"8.2.1.B3"]
[null,"8.2.1.B4"]
[null,"8.2.1.B5"]
[null,"8.2.1.B6"]
[null,"8.2.1.B7"]
[null,"8.2.1.B8"]
[null,"8.2.1.B9"]
[null,"8.2.1.B10"]
[null,"8.2.1.B11"]
[null,"8.2.1.B12"]
[null,"8.2.1.B13"]
[null,"8.2.1.B14"]
[null,"8.2.1.B15"]
[null,"8.2.1.B16"]
[null,"8.2.1.B17"]
[null,"8.2.1.B18"]
[null,"8.2.1.B19"]
[null,"8.2.1.B20"]
[null,"8.2.1.C1-C7 "]
[null,"8.2.2.1 "]
[null,"8.2.2.2 "]
[null,"8.2.2.3 "]
[null,"8.2.2.C1-C7 "]
[null,"8.2.3.1 "]
[null,"8.2.3.C1-C7"]
[null,"8.3.1.B1"]
[null,"8.3.1.B2"]
[null,"8.3.1.B3"]
[null,"8.3.1.B4"]
[null,"8.3.1.B5"]
[null,"8.3.1.B6"]
[null,"8.3.1.B7"]
[null,"8.3.1.B8"]
[null,"8.3.1.B9"]
[null,"8.3.1.B10"]
[null,"8.3.1.B11"]
[null,"8.3.1.B12"]
[null,"8.3.1.B13"]
[null,"8.3.1.B14"]
[null,"8.3.1.B15"]
[null,"8.3.1.B16"]
[null,"8.3.1.B17"]
[null,"8.3.1.B18"]
[null,"8.3.1.B19"]
[null,"8.3.1.B20"]
[null,"8.3.1.C1-C7 "]
[null,"8.3.2.B1"]
[null,"8.3.2.B2"]
[null,"8.3.2.B3"]
[null,"8.3.2.B4"]
[null,"8.3.2.B5"]
[null,"8.3.2.B6"]
[null,"8.3.2.B7"]
[null,"8.3.2.B8"]
[null,"8.3.2.B9"]
[null,"8.3.2.B10"]
[null,"8.3.2.B11"]
[null,"8.3.2.B12"]
[null,"8.3.2.B13"]
[null,"8.3.2.B14"]
[null,"8.3.2.B15"]
[null,"8.3.2.B16"]
[null,"8.3.2.B17"]
[null,"8.3.2.B18"]
[null,"8.3.2.B19"]
[null,"8.3.2.B20"]
[null,"8.3.2.C1-C7 "]
[null,"8.3.3.1 "]
[null,"8.3.3.2"]
[null,"8.3.3.C1-C7 "]
[null,"8.3.4.B1"]
[null,"8.3.4.B2"]
[null,"8.3.4.B3"]
[null,"8.3.4.B4"]
[null,"8.3.4.B5"]
[null,"8.3.4.B6"]
[null,"8.3.4.B7"]
[null,"8.3.4.B8"]
[null,"8.3.4.B9"]
[null,"8.3.4.B10"]
[null,"8.3.4.B11"]
[null,"8.3.4.B12"]
[null,"8.3.4.B13"]
[null,"8.3.4.B14"]
[null,"8.3.4.B15"]
[null,"8.3.4.B16"]
[null,"8.3.4.B17"]
[null,"8.3.4.B18"]
[null,"8.3.4.B19"]
[null,"8.3.4.B20"]
[null,"8.3.4.C1-C7 "]
[null,"8.3.5.1 "]
[null,"8.3.5.2 "]
[null,"8.3.5.C1-C7 "]

{"sheet":"Catálogo de líneas de acción","index":5,"n_rows":566,"n_cols":8,"rows_kept":566,"cut":false,"hidden":true,"merged":[]}
["CVE","Programa","Eje","Objetivo","Línea estratégica (PRONADATOS) / Estrategias (PROTAI)","Numeración","Línea de acción","Transversal"]
[{"$f":"CONCATENATE(B2,F2)","v":"PROTAIA.1.1"},"PROTAI","Promoción, Difusión y Fomento de la Cultura de Transparencia y Acceso a la Información","A.1 Fortalecer institucionalmente a los organismos garantes para mejorar sus capacidades en el desarrollo de una cultura de la transparencia y el acceso a la información (OGL, INAI)","Desempeño institucional / Uso de TICs / Difusión / Capacitación / Coordinación.","A.1.1","Fundamentar las acciones a desarrollarse en evidencias, investigaciones o buenas prácticas en el fomento, difusión y promoción al ejercicio de garantías y derechos (OGL, INAI)","Transversal"]
[{"$f":"CONCATENATE(B3,F3)","v":"PROTAIA.1.2"},"PROTAI","Promoción, Difusión y Fomento de la Cultura de Transparencia y Acceso a la Información","A.1 Fortalecer institucionalmente a los organismos garantes para mejorar sus capacidades en el desarrollo de una cultura de la transparencia y el acceso a la información (OGL, INAI)","Desempeño institucional / Uso de TICs / Difusión / Capacitación / Coordinación.","A.1.2","Definir objetivos claros, específicos y medibles para las acciones que, en materia de promoción y difusión, se desarrollen (OGL, INAI)","Transversal"]
["PROTAIA.1.3","PROTAI","Promoción, Difusión y Fomento de la Cultura de Transparencia y Acceso a la Información","A.1 Fortalecer institucionalmente a los organismos garantes para mejorar sus capacidades en el desarrollo de una cultura de la transparencia y el acceso a la información (OGL, INAI)","Desempeño institucional / Uso de TICs / Difusión / Capacitación / Coordinación.","A.1.3","Procurar los recursos necesarios y suficientes para el desarrollo de las acciones de promoción y difusión (OGL, INAI)","Transversal"]
["PROTAIA.1.4","PROTAI","Promoción, Difusión y Fomento de la Cultura de Transparencia y Acceso a la Información","A.1 Fortalecer institucionalmente a los organismos garantes para mejorar sus capacidades en el desarrollo de una cultura de la transparencia y el acceso a la información (OGL, INAI)","Desempeño institucional / Uso de TICs / Difusión / Capacitación / Coordinación.","A.1.4","Establecer los mecanismos de coordinación con los actores relevantes (aliados, proveedores, promotores, etc.) para el desarrollo de las acciones de promoción y difusión (OGL, INAI)","Transversal"]
["PROTAIA.1.5","PROTAI","Promoción, Difusión y Fomento de la Cultura de Transparencia y Acceso a la Información","A.1 Fortalecer institucionalmente a los organismos garantes para mejorar sus capacidades en el desarrollo de una cultura de la transparencia y el acceso a la información (OGL, INAI)","Desempeño institucional / Uso de TICs / Difusión / Capacitación / Coordinación.","A.1.5","Garantizar el respaldo institucional, legal y organizacional para el desarrollo de las acciones de promoción y difusión (OGL, INAI)","Transversal"]
["PROTAIA.1.6","PROTAI","Promoción, Difusión y Fomento de la Cultura de Transparencia y Acceso a la Información","A.1 Fortalecer institucionalmente a los organismos garantes para mejorar sus capacidades en el desarrollo de una cultura de la transparencia y el acceso a la información (OGL, INAI)","Desempeño institucional / Uso de TICs / Difusión / Capacitación / Coordinación.","A.1.6","Generar la información que permita el monitoreo, seguimiento y evaluación de las acciones de promoción y difusión que se emprendan (OGL, INAI)","Transversal"]
["PROTAIA.2.1 ","PROTAI","Promoción, Difusión y Fomento de la Cultura de Transparencia y Acceso a la Información","A.2 Articular desde los organismos garantes la promoción y difusión de la transparencia y el acceso a la información (OGL, INAI)","Desempeño institucional / Uso de TICs / Difusión / Capacitación / Coordinación.","A.2.1 ","Identificar temática, mensaje y población de interés objetivo de la promoción y difusión. (OGL, INAI)","Transversal"]
["PROTAIA.2.2","PROTAI","Promoción, Difusión y Fomento de la Cultura de Transparencia y Acceso a la Información","A.2 Articular desde los organismos garantes la promoción y difusión de la transparencia y el acceso a la información (OGL, INAI)","Desempeño institucional / Uso de TICs / Difusión / Capacitación / Coordinación.","A.2.2","Conocer y contar con canales y medios de comunicación idóneos dirigido a la población objetivo (OGL, INAI)","Transversal"]
["PROTAIA.2.3","PROTAI","Promoción, Difusión y Fomento de la Cultura de Transparencia y Acceso a la Información","A.2 Articular desde los organismos garantes la promoción y difusión de la transparencia y el acceso a la información (OGL, INAI)","Desempeño institucional / Uso de TICs / Difusión / Capacitación / Coordinación.","A.2.3","Elaborar materiales que trasmitan el mensaje a posicionar, tomando en cuenta la pertinencia del medio elegido y la población objetivo (OGL, INAI)","Transversal"]
["PROTAIA.2.4","PROTAI","Promoción, Difusión y Fomento de la Cultura de Transparencia y Acceso a la Información","A.2 Articular desde los organismos garantes la promoción y difusión de la transparencia y el acceso a la información (OGL, INAI)","Desempeño institucional / Uso de TICs / Difusión / Capacitación / Coordinación.","A.2.4","Implementar una estrategia de promoción y difusión del mensaje en los medios establecidos a la población objetivo en las temáticas del PROTAI (OGL, INAI)","Transversal"]
["PROTAIA.2.5","PROTAI","Promoción, Difusión y Fomento de la Cultura de Transparencia y Acceso a la Información","A.2 Articular desde los organismos garantes la promoción y difusión de la transparencia y el acceso a la información (OGL, INAI)","Desempeño institucional / Uso de TICs / Difusión / Capacitación / Coordinación.","A.2.5","Desarrollar un plan para posicionar a los organismos garantes y al SNT dando a conocer sus funciones, servicios y programas a la población, incluyendo la perspectiva de las denuncias ciudadanas (OGL, INAI)","Transversal"]
["PROTAIA.2.6","PROTAI","Promoción, Difusión y Fomento de la Cultura de Transparencia y Acceso a la Información","A.2 Articular desde los organismos garantes la promoción y difusión de la transparencia y el acceso a la información (OGL, INAI)","Desempeño institucional / Uso de TICs / Difusión / Capacitación / Coordinación.","A.2.6","Desarrollar procesos eficientes y sistematizados de monitoreo, seguimiento y evaluación de las actividades relacionadas a la promoción y difusión, a fin de redefinir y mejorar los procedimientos empleados (OGL, INAI)","Transversal"]
["PROTAIA.3.1 ","PROTAI","Promoción, Difusión y Fomento de la Cultura de Transparencia y Acceso a la Información","A.3 Fortalecer la coordinación y comunicación entre los organismos garantes, sujetos obligados, actores institucionales y sociedad civil organizada como vías para la promoción y difusión de la transparencia y el acceso a la información (OGL, IF, INAI)","Desempeño institucional / Uso de TICs / Difusión / Capacitación / Coordinación.","A.3.1 ","Conformar redes locales por una cultura de la transparencia en las entidades federativas, con enfoque de derechos humanos y perspectiva de género, como mecanismo de coordinación y comunicación de los organismos garantes y los sujetos obligados locales que impulsen las distintas temáticas del PROTAI (OGL, INAI)","Transversal"]
["PROTAIA.3.2","PROTAI","Promoción, Difusión y Fomento de la Cultura de Transparencia y Acceso a la Información","A.3 Fortalecer la coordinación y comunicación entre los organismos garantes, sujetos obligados, actores institucionales y sociedad civil organizada como vías para la promoción y difusión de la transparencia y el acceso a la información (OGL, IF, INAI)","Desempeño institucional / Uso de TICs / Difusión / Capacitación / Coordinación.","A.3.2","Establecer mecanismos en las entidades federativas como canal de coordinación y comunicación entre los organismos garantes y la sociedad civil local, con enfoque de derechos humanos y perspectiva de género, que impulsen las distintas temáticas del PROTAI (OGL, INAI)","Transversal"]
["PROTAIA.3.3","PROTAI","Promoción, Difusión y Fomento de la Cultura de Transparencia y Acceso a la Información","A.3 Fortalecer la coordinación y comunicación entre los organismos garantes, sujetos obligados, actores institucionales y sociedad civil organizada como vías para la promoción y difusión de la transparencia y el acceso a la información (OGL, IF, INAI)","Desempeño institucional / Uso de TICs / Difusión / Capacitación / Coordinación.","A.3.3","Implementar mecanismos de colaboración con otros actores institucionales y de la sociedad civil para realizar acciones específicas del PROTAI (OGL, IF, INAI)","Transversal"]
["PROTAIA.3.4","PROTAI","Promoción, Difusión y Fomento de la Cultura de Transparencia y Acceso a la Información","A.3 Fortalecer la coordinación y comunicación entre los organismos garantes, sujetos obligados, actores institucionales y sociedad civil organizada como vías para la promoción y difusión de la transparencia y el acceso a la información (OGL, IF, INAI)","Desempeño institucional / Uso de TICs / Difusión / Capacitación / Coordinación.","A.3.4","Fortalecer los canales de comunicación entre los organismos garantes, los sujetos obligados y actores de la sociedad civil para la difusión y uso de buenas prácticas en materia de colaboración institucional, con enfoque de derechos humanos y perspectiva de género, (OGL, INAI)","Transversal"]
["PROTAIB.1.1","PROTAI","Derechos Humanos, Perspectiva de Género e Inclusión Social","B.1 Impulsar un enfoque de derechos humanos, no discriminación e inclusión social en las perspectivas establecidas en el PROTAI (OGL, IF, INAI)","Marco Normativo / Desempeño institucional / Uso de TICs / Difusión / Capacitación / Coordinación.","B.1.1","Promover que todas las acciones establecidas en el PROTAI incorporen el enfoque de derechos humanos y la perspectiva de género (OGL, INAI)","Transversal"]
["PROTAIB.1.2","PROTAI","Derechos Humanos, Perspectiva de Género e Inclusión Social","B.1 Impulsar un enfoque de derechos humanos, no discriminación e inclusión social en las perspectivas establecidas en el PROTAI (OGL, IF, INAI)","Marco Normativo / Desempeño institucional / Uso de TICs / Difusión / Capacitación / Coordinación.","B.1.2","Promover protocolos de atención con enfoque de derechos humanos, no discriminación y perspectiva de género. (OGL, IF, INAI)","Transversal"]
["PROTAIB.1.3","PROTAI","Derechos Humanos, Perspectiva de Género e Inclusión Social","B.1 Impulsar un enfoque de derechos humanos, no discriminación e inclusión social en las perspectivas establecidas en el PROTAI (OGL, IF, INAI)","Marco Normativo / Desempeño institucional / Uso de TICs / Difusión / Capacitación / Coordinación.","B.1.3","Promover el uso de lenguaje ciudadano e incluyente por parte de las instituciones integrantes del SNT (OGL, IF, INAI)","Transversal"]
["PROTAIB.1.4","PROTAI","Derechos Humanos, Perspectiva de Género e Inclusión Social","B.1 Impulsar un enfoque de derechos humanos, no discriminación e inclusión social en las perspectivas establecidas en el PROTAI (OGL, IF, INAI)","Marco Normativo / Desempeño institucional / Uso de TICs / Difusión / Capacitación / Coordinación.","B.1.4","Impulsar en el ejercicio del derecho de acceso a la información, la trasparencia, rendición de cuentas y la gestión documental los criterios de accesibilidad, asequibilidad (disponibilidad), adaptabilidad y aceptabilidad de la información pública (OGL, IF, INAI)","Transversal"]
["PROTAIB.1.5","PROTAI","Derechos Humanos, Perspectiva de Género e Inclusión Social","B.1 Impulsar un enfoque de derechos humanos, no discriminación e inclusión social en las perspectivas establecidas en el PROTAI (OGL, IF, INAI)","Marco Normativo / Desempeño institucional / Uso de TICs / Difusión / Capacitación / Coordinación.","B.1.5","Identificar acciones que requieran acompañamiento en materia de derechos humanos, perspectiva de género, no discriminación e inclusión social dentro del PROTAI (OGL, IF, INAI)","Transversal"]
["PROTAIB.1.6","PROTAI","Derechos Humanos, Perspectiva de Género e Inclusión Social","B.1 Impulsar un enfoque de derechos humanos, no discriminación e inclusión social en las perspectivas establecidas en el PROTAI (OGL, IF, INAI)","Marco Normativo / Desempeño institucional / Uso de TICs / Difusión / Capacitación / Coordinación.","B.1.6","Impulsar la implementación de mejores prácticas de derechos humanos, perspectiva de género, no discriminación e inclusión en materia de transparencia y acceso a la información (OGL, IF, INAI)","Transversal"]
["PROTAIB.1.7","PROTAI","Derechos Humanos, Perspectiva de Género e Inclusión Social","B.1 Impulsar un enfoque de derechos humanos, no discriminación e inclusión social en las perspectivas establecidas en el PROTAI (OGL, IF, INAI)","Marco Normativo / Desempeño institucional / Uso de TICs / Difusión / Capacitación / Coordinación.","B.1.7","Fomentar la capacitación de las y los servidores públicos de los organismos garantes e instituciones federales, en materia de derechos humanos, igualdad de género, no discriminación e inclusión social (OGL, IF, INAI)","Transversal"]
["AMBOS1.1.1 ","AMBOS","Gestión documental y administración de archivos","1.1 Promover entre los sujetos obligados, la adopción de un marco normativo y reglamentario adecuado para fortalecer y mejorar la gestión documental y la administración de archivos como condición indispensable para la tutela de los derechos de acceso a la información pública. (OGL, AGN, INAI)","Marco normativo / Uso de TICs / Desempeño institucional y procesos / Capacitación / Coordinación","1.1.1 ","Desarrollar un diagnóstico sobre la normatividad existente en materia de gestión documental y administración de archivos que identifique las áreas de oportunidad en su homologación (OGL, AGN, INAI)"]
["AMBOS1.1.2","AMBOS","Gestión documental y administración de archivos","1.1 Promover entre los sujetos obligados, la adopción de un marco normativo y reglamentario adecuado para fortalecer y mejorar la gestión documental y la administración de archivos como condición indispensable para la tutela de los derechos de acceso a la información pública. (OGL, AGN, INAI)","Marco normativo / Uso de TICs / Desempeño institucional y procesos / Capacitación / Coordinación","1.1.2","Impulsar el proceso de armonización en materia de gestión documental y administración de archivos que derive en la aprobación y posterior implementación de la Ley General de Archivos (OGL, AGN, INAI)"]
["AMBOS1.1.3","AMBOS","Gestión documental y administración de archivos","1.1 Promover entre los sujetos obligados, la adopción de un marco normativo y reglamentario adecuado para fortalecer y mejorar la gestión documental y la administración de archivos como condición indispensable para la tutela de los derechos de acceso a la información pública. (OGL, AGN, INAI)","Marco normativo / Uso de TICs / Desempeño institucional y procesos / Capacitación / Coordinación","1.1.3","Promover la aprobación y armonización de la Ley General de Archivos a partir de una estrategia de cabildeo legislativo, colocando el tema en los medios de comunicación y propiciando sinergias con la sociedad civil e instituciones de educación superior y de investigación científica (OGL, AGN, INAI)"]
["AMBOS1.1.4","AMBOS","Gestión documental y administración de archivos","1.1 Promover entre los sujetos obligados, la adopción de un marco normativo y reglamentario adecuado para fortalecer y mejorar la gestión documental y la administración de archivos como condición indispensable para la tutela de los derechos de acceso a la información pública. (OGL, AGN, INAI)","Marco normativo / Uso de TICs / Desempeño institucional y procesos / Capacitación / Coordinación","1.1.4","Integrar un equipo permanente que elabore y genere opiniones y observaciones a los proyectos que se presenten a las Legislaturas, desde una posición proactiva, incluyente, que amplíe las fortalezas institucionales y posicione a los organismos garantes y a las entidades especializadas en materia de archivos (OGL, INAI)"]
["AMBOS1.1.5","AMBOS","Gestión documental y administración de archivos","1.1 Promover entre los sujetos obligados, la adopción de un marco normativo y reglamentario adecuado para fortalecer y mejorar la gestión documental y la administración de archivos como condición indispensable para la tutela de los derechos de acceso a la información pública. (OGL, AGN, INAI)","Marco normativo / Uso de TICs / Desempeño institucional y procesos / Capacitación / Coordinación","1.1.5","Generar un tablero de difusión del proceso de armonización que nos permita informar los avances, en tiempo real, publicitando los plazos, las iniciativas que se presenten en las legislaturas locales y las observaciones que genere la Comisión de Archivos y Gestión Documental del Sistema Nacional de Transparencia (OGL, INAI)"]
["AMBOS1.1.6","AMBOS","Gestión documental y administración de archivos","1.1 Promover entre los sujetos obligados, la adopción de un marco normativo y reglamentario adecuado para fortalecer y mejorar la gestión documental y la administración de archivos como condición indispensable para la tutela de los derechos de acceso a la información pública. (OGL, AGN, INAI)","Marco normativo / Uso de TICs / Desempeño institucional y procesos / Capacitación / Coordinación","1.1.6","Convocar a las autoridades y a las instituciones académicas y de la sociedad civil especializadas en archivos, a efecto de coordinar giras por la armonización legislativa en materia de gestión documental y administración de archivos que permita que los organismos garantes realicen aportaciones durante el proceso legislativo (OGL, AGN, INAI)"]
["AMBOS1.2.1 ","AMBOS","Gestión documental y administración de archivos","1.2 Impulsar la colaboración entre el Sistema Nacional de Transparencia y el Sistema Nacional de Archivos, para fortalecer la transparencia, el acceso a la información y la rendición de cuentas mediante una adecuada gestión documental y administración de archivos por medio de los responsables de los archivos en los sujetos obligados. (OGL, IF, INAI)","Marco normativo / Uso de TICs / Desempeño institucional y procesos / Capacitación / Coordinación","1.2.1 ","Diseñar e instrumentar grupos de trabajo que faciliten la coordinación, colaboración y funcionamiento entre el Sistema Nacional de Transparencia y el Sistema Nacional de Archivos (OGL, AGN, INAI)"]
["AMBOS1.2.2","AMBOS","Gestión documental y administración de archivos","1.2 Impulsar la colaboración entre el Sistema Nacional de Transparencia y el Sistema Nacional de Archivos, para fortalecer la transparencia, el acceso a la información y la rendición de cuentas mediante una adecuada gestión documental y administración de archivos por medio de los responsables de los archivos en los sujetos obligados. (OGL, IF, INAI)","Marco normativo / Uso de TICs / Desempeño institucional y procesos / Capacitación / Coordinación","1.2.2","Impulsar y difundir el desarrollo de diagnósticos en gestión documental y administración de archivos en los sujetos obligados que considere los sistemas institucionales de archivos, la preservación documental digital y demás perspectivas derivadas de la normatividad (OGL, AGN, INAI)"]
["AMBOS1.2.3","AMBOS","Gestión documental y administración de archivos","1.2 Impulsar la colaboración entre el Sistema Nacional de Transparencia y el Sistema Nacional de Archivos, para fortalecer la transparencia, el acceso a la información y la rendición de cuentas mediante una adecuada gestión documental y administración de archivos por medio de los responsables de los archivos en los sujetos obligados. (OGL, IF, INAI)","Marco normativo / Uso de TICs / Desempeño institucional y procesos / Capacitación / Coordinación","1.2.3","Difundir y capacitar sobre los criterios de sistematización y conservación de los archivos establecidos por el Sistema Nacional de Transparencia y el Sistema Nacional de Archivos (OGL, AGN, INAI)"]
["AMBOS1.2.4","AMBOS","Gestión documental y administración de archivos","1.2 Impulsar la colaboración entre el Sistema Nacional de Transparencia y el Sistema Nacional de Archivos, para fortalecer la transparencia, el acceso a la información y la rendición de cuentas mediante una adecuada gestión documental y administración de archivos por medio de los responsables de los archivos en los sujetos obligados. (OGL, IF, INAI)","Marco normativo / Uso de TICs / Desempeño institucional y procesos / Capacitación / Coordinación","1.2.4","Promover la aplicación de lineamientos y metodologías en materia de organización y conservación de archivos por los organismos garantes estatales a través de los mecanismos de acompañamiento que se establezcan en el SNT (OGL, AGN, INAI)"]
["AMBOS1.2.5","AMBOS","Gestión documental y administración de archivos","1.2 Impulsar la colaboración entre el Sistema Nacional de Transparencia y el Sistema Nacional de Archivos, para fortalecer la transparencia, el acceso a la información y la rendición de cuentas mediante una adecuada gestión documental y administración de archivos por medio de los responsables de los archivos en los sujetos obligados. (OGL, IF, INAI)","Marco normativo / Uso de TICs / Desempeño institucional y procesos / Capacitación / Coordinación","1.2.5","Impulsar el desarrollo de los inventarios documentales, como instrumentos de consulta que describen las series documentales y expedientes de un archivo y que permiten su localización (OGL, IF, INAI)"]
["AMBOS1.2.6","AMBOS","Gestión documental y administración de archivos","1.2 Impulsar la colaboración entre el Sistema Nacional de Transparencia y el Sistema Nacional de Archivos, para fortalecer la transparencia, el acceso a la información y la rendición de cuentas mediante una adecuada gestión documental y administración de archivos por medio de los responsables de los archivos en los sujetos obligados. (OGL, IF, INAI)","Marco normativo / Uso de TICs / Desempeño institucional y procesos / Capacitación / Coordinación","1.2.6","Promover ferias y exposiciones divulgando las investigaciones, publicaciones y experiencias exitosas de los distintos organismos garantes en la materia (OGL, INAI)"]
["AMBOS1.3.1 ","AMBOS","Gestión documental y administración de archivos","1.3 Fortalecer la profesionalización de los responsables de las áreas de archivo para mejorar los procesos y el cumplimiento normativo en la materia (OGL, IF, INAI)","Marco normativo / Uso de TICs / Desempeño institucional y procesos / Capacitación / Coordinación","1.3.1 ","Establecer convenios para la profesionalización en gestión documental y administración de archivos con instituciones especializadas (OGL, IF, INAI)"]
["AMBOS1.3.2","AMBOS","Gestión documental y administración de archivos","1.3 Fortalecer la profesionalización de los responsables de las áreas de archivo para mejorar los procesos y el cumplimiento normativo en la materia (OGL, IF, INAI)","Marco normativo / Uso de TICs / Desempeño institucional y procesos / Capacitación / Coordinación","1.3.2","Implementar un programa permanente de profesionalización en gestión documental y administración de archivos (OGL, IF, INAI)"]
["AMBOS1.3.3","AMBOS","Gestión documental y administración de archivos","1.3 Fortalecer la profesionalización de los responsables de las áreas de archivo para mejorar los procesos y el cumplimiento normativo en la materia (OGL, IF, INAI)","Marco normativo / Uso de TICs / Desempeño institucional y procesos / Capacitación / Coordinación","1.3.3","Impulsar que en los distintos espacios de formación que existen (diplomados, cursos de certificación, etc.) se difundan los casos de éxito y las experiencias de distintos organismos garantes en la materia (OGL, INAI)"]
["AMBOS1.3.4","AMBOS","Gestión documental y administración de archivos","1.3 Fortalecer la profesionalización de los responsables de las áreas de archivo para mejorar los procesos y el cumplimiento normativo en la materia (OGL, IF, INAI)","Marco normativo / Uso de TICs / Desempeño institucional y procesos / Capacitación / Coordinación","1.3.4","Difundir los programas de capacitación para la implementación del sistema institucional de archivo; organización y conservación de los archivos; el diseño, ejecución y evaluación del programa de desarrollo archivístico; y la elaboración de los instrumentos de control y consulta archivísticos; entre otros (OGL, AGN, INAI)"]
["AMBOS1.3.5","AMBOS","Gestión documental y administración de archivos","1.3 Fortalecer la profesionalización de los responsables de las áreas de archivo para mejorar los procesos y el cumplimiento normativo en la materia (OGL, IF, INAI)","Marco normativo / Uso de TICs / Desempeño institucional y procesos / Capacitación / Coordinación","1.3.5","Promover programas de capacitación focalizados para municipios con menos de 70 mil habitantes o con pueblos y comunidades indígenas (OGL, INAI)"]
["AMBOS1.4.1 ","AMBOS","Gestión documental y administración de archivos","1.4 Favorecer el ejercicio del derecho de acceso a la información pública en los sujetos obligados por medio de la adopción de políticas públicas para mejorar la gestión documental y la administración de archivos. (OGL, AGN, INAI)","Marco normativo / Uso de TICs / Desempeño institucional y procesos / Capacitación / Coordinación","1.4.1 ","Divulgar el vínculo que debe prevalecer entre la adecuada gestión documental y la administración de archivos y el ejercicio del derecho de acceso a la información pública (OGL, AGN, INAI)"]
["AMBOS1.4.2","AMBOS","Gestión documental y administración de archivos","1.4 Favorecer el ejercicio del derecho de acceso a la información pública en los sujetos obligados por medio de la adopción de políticas públicas para mejorar la gestión documental y la administración de archivos. (OGL, AGN, INAI)","Marco normativo / Uso de TICs / Desempeño institucional y procesos / Capacitación / Coordinación","1.4.2","Impulsar acciones de coordinación de diversos municipios con la participación de los responsables de los archivos, de conformidad con las disposiciones legales aplicables. (OGL, INAI)"]
["AMBOS1.4.3","AMBOS","Gestión documental y administración de archivos","1.4 Favorecer el ejercicio del derecho de acceso a la información pública en los sujetos obligados por medio de la adopción de políticas públicas para mejorar la gestión documental y la administración de archivos. (OGL, AGN, INAI)","Marco normativo / Uso de TICs / Desempeño institucional y procesos / Capacitación / Coordinación","1.4.3","Coadyuvar con los sujetos obligados en la implementación de su sistema institucional de archivos (OGL, AGN, INAI)"]
["AMBOS1.4.4","AMBOS","Gestión documental y administración de archivos","1.4 Favorecer el ejercicio del derecho de acceso a la información pública en los sujetos obligados por medio de la adopción de políticas públicas para mejorar la gestión documental y la administración de archivos. (OGL, AGN, INAI)","Marco normativo / Uso de TICs / Desempeño institucional y procesos / Capacitación / Coordinación","1.4.4","Impulsar la designación y registro de las y los servidores públicos responsables de la gestión documental y administración de archivos al interior de sus instituciones (OGL, AGN, INAI)"]
["AMBOS1.4.5","AMBOS","Gestión documental y administración de archivos","1.4 Favorecer el ejercicio del derecho de acceso a la información pública en los sujetos obligados por medio de la adopción de políticas públicas para mejorar la gestión documental y la administración de archivos. (OGL, AGN, INAI)","Marco normativo / Uso de TICs / Desempeño institucional y procesos / Capacitación / Coordinación","1.4.5","Promover los lineamientos, guías y manuales para el cumplimiento de las obligaciones comunes de transparencia en materia de archivo: la guía de archivo documental y el catálogo de disposición documental (OGL, AGN, INAI)"]
["AMBOS1.4.6","AMBOS","Gestión documental y administración de archivos","1.4 Favorecer el ejercicio del derecho de acceso a la información pública en los sujetos obligados por medio de la adopción de políticas públicas para mejorar la gestión documental y la administración de archivos. (OGL, AGN, INAI)","Marco normativo / Uso de TICs / Desempeño institucional y procesos / Capacitación / Coordinación","1.4.6","Promover espacios de reflexión en la materia y de difusión de las buenas prácticas a través de foros, seminarios, conversatorios y talleres de carácter regional, estatal o municipal (OGL, AGN, INAI)"]
["AMBOS1.4.7","AMBOS","Gestión documental y administración de archivos","1.4 Favorecer el ejercicio del derecho de acceso a la información pública en los sujetos obligados por medio de la adopción de políticas públicas para mejorar la gestión documental y la administración de archivos. (OGL, AGN, INAI)","Marco normativo / Uso de TICs / Desempeño institucional y procesos / Capacitación / Coordinación","1.4.7","Gestionar la inversión pública para que los organismos garantes puedan establecer o fortalecer sus áreas y procedimientos en materia de gestión documental y administración de archivos con los sujetos obligados (OGL, INAI)"]
["PROTAI2.1.1","PROTAI","Derecho de acceso a la información","2.1 Lograr el conocimiento del derecho de acceso a la información a distintos sectores de la población como medio para mejorar el acceso a la salud, educación, empleo, servicios, seguridad y justicia (OGL, IF, INAI)","Desempeño institucional y Procesos / Uso de TICs / Difusión / Capacitación / Coordinación.","2.1.1","Impulsar progresivamente el desarrollo de un plan nacional de socialización, promoción y difusión del derecho de acceso a la información, con enfoque de derechos humanos y perspectiva de género para que la población conozca y utilice la información pública (OGL, INAI)"]
["PROTAI2.1.2","PROTAI","Derecho de acceso a la información","2.1 Lograr el conocimiento del derecho de acceso a la información a distintos sectores de la población como medio para mejorar el acceso a la salud, educación, empleo, servicios, seguridad y justicia (OGL, IF, INAI)","Desempeño institucional y Procesos / Uso de TICs / Difusión / Capacitación / Coordinación.","2.1.2","Generar y difundir productos comunicativos que a partir de casos reales muestren los usos y utilidades del derecho de acceso a la información en distintos grupos sociales (OGL, INAI)"]
["PROTAI2.1.3","PROTAI","Derecho de acceso a la información","2.1 Lograr el conocimiento del derecho de acceso a la información a distintos sectores de la población como medio para mejorar el acceso a la salud, educación, empleo, servicios, seguridad y justicia (OGL, IF, INAI)","Desempeño institucional y Procesos / Uso de TICs / Difusión / Capacitación / Coordinación.","2.1.3","Generar acciones permanentes de formación de población usuaria, multiplicadora y gestora para ampliar y diversificar el núcleo de beneficiarios del derecho de acceso a la información (OGL, INAI)"]
["PROTAI2.1.4","PROTAI","Derecho de acceso a la información","2.1 Lograr el conocimiento del derecho de acceso a la información a distintos sectores de la población como medio para mejorar el acceso a la salud, educación, empleo, servicios, seguridad y justicia (OGL, IF, INAI)","Desempeño institucional y Procesos / Uso de TICs / Difusión / Capacitación / Coordinación.","2.1.4","Desarrollar estrategias diferenciadas a partir de los contextos sociales, en coordinación y colaboración con distintos sectores o partes interesadas en el país, para que toda persona tenga a su alcance los medios apropiados a sus posibilidades para ejercer y aprovechar este derecho en la mejora de la salud, educación, empleo, servicios, seguridad y justicia (OGL, INAI)"]
["PROTAI2.1.5","PROTAI","Derecho de acceso a la información","2.1 Lograr el conocimiento del derecho de acceso a la información a distintos sectores de la población como medio para mejorar el acceso a la salud, educación, empleo, servicios, seguridad y justicia (OGL, IF, INAI)","Desempeño institucional y Procesos / Uso de TICs / Difusión / Capacitación / Coordinación.","2.1.5","Vincular el derecho de acceso del derecho de acceso a la información con otras temáticas relevantes en el país, como al fiscalización y rendición de cuentas, el archivo y gestión documental, así como la generación y difusión de información estadística (IF)"]
["PROTAI2.1.6","PROTAI","Derecho de acceso a la información","2.1 Lograr el conocimiento del derecho de acceso a la información a distintos sectores de la población como medio para mejorar el acceso a la salud, educación, empleo, servicios, seguridad y justicia (OGL, IF, INAI)","Desempeño institucional y Procesos / Uso de TICs / Difusión / Capacitación / Coordinación.","2.1.6","Establecer convenios con otros sectores o partes interesadas para impulsar el acceso a la información y la promoción de los objetivos del programa (OGL, INAI)"]
["PROTAI2.1.7","PROTAI","Derecho de acceso a la información","2.1 Lograr el conocimiento del derecho de acceso a la información a distintos sectores de la población como medio para mejorar el acceso a la salud, educación, empleo, servicios, seguridad y justicia (OGL, IF, INAI)","Desempeño institucional y Procesos / Uso de TICs / Difusión / Capacitación / Coordinación.","2.1.7","Posicionar la capacitación en línea para ampliar la cobertura de capacitación a través de la promoción del Centro Virtual de Formación en Acceso a la Información y Protección de Datos Personales (OGL, INAI)"]
["PROTAI2.1.8","PROTAI","Derecho de acceso a la información","2.1 Lograr el conocimiento del derecho de acceso a la información a distintos sectores de la población como medio para mejorar el acceso a la salud, educación, empleo, servicios, seguridad y justicia (OGL, IF, INAI)","Desempeño institucional y Procesos / Uso de TICs / Difusión / Capacitación / Coordinación.","2.1.8","Impulsar el desarrollo de consultas a grupos vulnerables sobre sus necesidades de información pública como un mecanismo institucional de diagnóstico (INAI, OGL)"]
["PROTAI2.1.9","PROTAI","Derecho de acceso a la información","2.1 Lograr el conocimiento del derecho de acceso a la información a distintos sectores de la población como medio para mejorar el acceso a la salud, educación, empleo, servicios, seguridad y justicia (OGL, IF, INAI)","Desempeño institucional y Procesos / Uso de TICs / Difusión / Capacitación / Coordinación.","2.1.9","Impulsar la creación y mejora continua del Centro de Atención a la Sociedad (CAS) para beneficio de la ciudadanía en el ejercicio y goce del derecho de acceso a la información (OGL, INAI)"]
["PROTAI2.2.1 ","PROTAI","Derecho de acceso a la información","2.2 Promover la eficiencia de los recursos económicos, materiales y humanos para robustecer el ejercicio de los derechos de acceso a la información (OGL, INAI)","Desempeño institucional y Procesos / Uso de TICs / Difusión / Capacitación / Coordinación.","2.2.1 ","Coadyuvar a generar estrategias para asegurar recursos para el desempeño de las funciones de los organismos garantes atendiendo a sus obligaciones, capacidades y necesidades (OGL, INAI)"]
["PROTAI2.2.2","PROTAI","Derecho de acceso a la información","2.2 Promover la eficiencia de los recursos económicos, materiales y humanos para robustecer el ejercicio de los derechos de acceso a la información (OGL, INAI)","Desempeño institucional y Procesos / Uso de TICs / Difusión / Capacitación / Coordinación.","2.2.2","Contar con un programa permanente de capacitación de las y los servidores públicos sobre derecho de acceso a la información con enfoque de derechos humanos, así como perspectiva de género y de mejora continua (OGL, INAI)"]
["PROTAI2.2.3","PROTAI","Derecho de acceso a la información","2.2 Promover la eficiencia de los recursos económicos, materiales y humanos para robustecer el ejercicio de los derechos de acceso a la información (OGL, INAI)","Desempeño institucional y Procesos / Uso de TICs / Difusión / Capacitación / Coordinación.","2.2.3","Analizar, a partir de los contextos locales, los espacios de coordinación y colaboración que se pueden desarrollar en las redes por una cultura de la transparencia en distintas materias del acceso a la información (OGL, INAI)"]
["PROTAI2.2.4","PROTAI","Derecho de acceso a la información","2.2 Promover la eficiencia de los recursos económicos, materiales y humanos para robustecer el ejercicio de los derechos de acceso a la información (OGL, INAI)","Desempeño institucional y Procesos / Uso de TICs / Difusión / Capacitación / Coordinación.","2.2.4","Integrar redes locales por una cultura de la transparencia en las entidades como mecanismos de vinculación y operación entre organismos garantes y sujetos obligados en diversas perspectivas del acceso a la información (OGL)"]
["PROTAI2.3.1 ","PROTAI","Derecho de acceso a la información","2.3 Optimizar los procesos de gestión de solicitudes y medios de impugnación desde una perspectiva de mejora continua en los organismos garantes y los sujetos obligados (OGL, INAI)","Desempeño institucional y Procesos / Uso de TICs / Difusión / Capacitación / Coordinación.","2.3.1 ","Promover la difusión y conocimiento de los Lineamientos emitidos por el SNT (OGL, INAI)"]
["PROTAI2.3.2","PROTAI","Derecho de acceso a la información","2.3 Optimizar los procesos de gestión de solicitudes y medios de impugnación desde una perspectiva de mejora continua en los organismos garantes y los sujetos obligados (OGL, INAI)","Desempeño institucional y Procesos / Uso de TICs / Difusión / Capacitación / Coordinación.","2.3.2","Desarrollar metodologías para simplificar y coordinar el proceso interno de gestión de solicitudes de información entre las unidades administrativas, el Comité de Transparencia y la Unidad de Transparencia de los sujetos obligados (OGL, INAI)"]
["PROTAI2.3.3","PROTAI","Derecho de acceso a la información","2.3 Optimizar los procesos de gestión de solicitudes y medios de impugnación desde una perspectiva de mejora continua en los organismos garantes y los sujetos obligados (OGL, INAI)","Desempeño institucional y Procesos / Uso de TICs / Difusión / Capacitación / Coordinación.","2.3.3","Impulsar la instalación y coordinación de procesos entre los distintos sistemas informáticos relacionados a la gestión de solicitudes en los sujetos obligados (OGL, INAI)"]
["PROTAI2.3.4","PROTAI","Derecho de acceso a la información","2.3 Optimizar los procesos de gestión de solicitudes y medios de impugnación desde una perspectiva de mejora continua en los organismos garantes y los sujetos obligados (OGL, INAI)","Desempeño institucional y Procesos / Uso de TICs / Difusión / Capacitación / Coordinación.","2.3.4","Generar información estadística sobre la gestión de los Plenos para identificar áreas de mejora y buenas prácticas en los organismos garantes (OGL, INAI)"]
["PROTAI2.3.5","PROTAI","Derecho de acceso a la información","2.3 Optimizar los procesos de gestión de solicitudes y medios de impugnación desde una perspectiva de mejora continua en los organismos garantes y los sujetos obligados (OGL, INAI)","Desempeño institucional y Procesos / Uso de TICs / Difusión / Capacitación / Coordinación.","2.3.5","Desarrollar directrices para implementar procedimientos homogéneos en la gestión de quejas, denuncias e imposición de sanciones (OGL, INAI)"]
[{"$f":"CONCATENATE(B67,F67)","v":"PROTAI2.3.6"},"PROTAI","Derecho de acceso a la información","2.3 Optimizar los procesos de gestión de solicitudes y medios de impugnación desde una perspectiva de mejora continua en los organismos garantes y los sujetos obligados (OGL, INAI)","Desempeño institucional y Procesos / Uso de TICs / Difusión / Capacitación / Coordinación.","2.3.6","Revisar periódicamente los procesos y sistemas para la gestión de solicitudes y medios de impugnación con el fin de garantizar su mejora continua (OGL, INAI)"]
["PROTAI2.4.1 ","PROTAI","Derecho de acceso a la información","2.4 Homologar los criterios para la interpretación y tratamiento de las solicitudes de información entre los organismos garantes para mejorar el ejercicio y garantía del derecho de acceso a la información, con enfoque de derechos humanos y perspectiva de género (OGL, INAI)","Desempeño institucional y Procesos / Uso de TICs / Difusión / Capacitación / Coordinación.","2.4.1 ","Establecer criterios para la interpretación del derecho de acceso a la información y el tratamiento de las solicitudes de información a lo largo del país. (OGL, INAI)"]
["PROTAI2.4.2","PROTAI","Derecho de acceso a la información","2.4 Homologar los criterios para la interpretación y tratamiento de las solicitudes de información entre los organismos garantes para mejorar el ejercicio y garantía del derecho de acceso a la información, con enfoque de derechos humanos y perspectiva de género (OGL, INAI)","Desempeño institucional y Procesos / Uso de TICs / Difusión / Capacitación / Coordinación.","2.4.2","Impulsar el desarrollo, uso y difusión de una plataforma de criterios y precedentes sobre el derecho de acceso a la información en el país (OGL, INAI)"]
["PROTAI2.5.1 ","PROTAI","Derecho de acceso a la información","2.5 Fortalecer los procesos del INAI como integrante y cabeza del SNT (INAI)","Desempeño institucional y Procesos / Uso de TICs / Difusión / Capacitación / Coordinación.","2.5.1 ","Impulsar el diagnóstico y mejora continua del Sistema Nacional de Transparencia en coordinación con sus integrantes (INAI)"]
["PROTAI2.5.2","PROTAI","Derecho de acceso a la información","2.5 Fortalecer los procesos del INAI como integrante y cabeza del SNT (INAI)","Desempeño institucional y Procesos / Uso de TICs / Difusión / Capacitación / Coordinación.","2.5.2","Impulsar propuestas de políticas públicas de acceso a la información y el uso de elementos para su diseño, implementación, seguimiento y evaluación, con enfoque de derechos humanos y perspectiva de género (INAI)"]
["PROTAI2.5.3","PROTAI","Derecho de acceso a la información","2.5 Fortalecer los procesos del INAI como integrante y cabeza del SNT (INAI)","Desempeño institucional y Procesos / Uso de TICs / Difusión / Capacitación / Coordinación.","2.5.3","Establecer convenios con otros actores para la promoción, difusión y coordinación de los objetivos del programa y el SNT (INAI)"]
["PROTAI2.6.1 ","PROTAI","Derecho de acceso a la información","2.6 Impulsar la mejora continua en la operación de la Plataforma Nacional de Transparencia desde la competencia de los organismos garantes (OGL, INAI)","Desempeño institucional y Procesos / Uso de TICs / Difusión / Capacitación / Coordinación.","2.6.1 ","Fortalecer los procesos internos de los organismos garantes en la administración de la Plataforma Nacional de Transparencia (OGL, INAI)"]
["PROTAI2.6.2","PROTAI","Derecho de acceso a la información","2.6 Impulsar la mejora continua en la operación de la Plataforma Nacional de Transparencia desde la competencia de los organismos garantes (OGL, INAI)","Desempeño institucional y Procesos / Uso de TICs / Difusión / Capacitación / Coordinación.","2.6.2","Implementar programas y acciones para una capacitación más eficiente en el manejo de la Plataforma Nacional de Transparencia (OGL, INAI)"]
["PROTAI2.6.3","PROTAI","Derecho de acceso a la información","2.6 Impulsar la mejora continua en la operación de la Plataforma Nacional de Transparencia desde la competencia de los organismos garantes (OGL, INAI)","Desempeño institucional y Procesos / Uso de TICs / Difusión / Capacitación / Coordinación.","2.6.3","Generar estadísticas que identifiquen áreas de mejora para los procesos de seguimiento, verificación y evaluación sobre los cuatro sistemas de la Plataforma Nacional de Transparencia (INAI)"]
["PROTAI2.6.4","PROTAI","Derecho de acceso a la información","2.6 Impulsar la mejora continua en la operación de la Plataforma Nacional de Transparencia desde la competencia de los organismos garantes (OGL, INAI)","Desempeño institucional y Procesos / Uso de TICs / Difusión / Capacitación / Coordinación.","2.6.4","Implementar y operar una mesa de servicios de soporte técnico nacional para mejorar la funcionalidad de la Plataforma Nacional de Transparencia (INAI)"]
["PROTAI3.1.1 ","PROTAI","Gobierno Abierto, Transparencia Proactiva y SIPOT","3.1 Consolidar el enfoque de gobierno abierto como vía para la solución de problemas sociales, fomentando la innovación gubernamental y la participación ciudadana (OGL, IF, INAI) (Gobierno Abierto)","Uso de TICs / Coordinación / Capacitación / Procesos / Difusión","3.1.1 ","Difundir mecanismos de gobierno abierto como vías para la solución de problemas sociales considerando el enfoque de derechos humanos, la perspectiva de género, la innovación gubernamental y la participación ciudadana (OGL, INAI)"]
["PROTAI3.1.2","PROTAI","Gobierno Abierto, Transparencia Proactiva y SIPOT","3.1 Consolidar el enfoque de gobierno abierto como vía para la solución de problemas sociales, fomentando la innovación gubernamental y la participación ciudadana (OGL, IF, INAI) (Gobierno Abierto)","Uso de TICs / Coordinación / Capacitación / Procesos / Difusión","3.1.2","Promover la instalación y funcionamiento de secretariados técnicos de gobierno abierto (OGL, INAI)"]
["PROTAI3.1.3","PROTAI","Gobierno Abierto, Transparencia Proactiva y SIPOT","3.1 Consolidar el enfoque de gobierno abierto como vía para la solución de problemas sociales, fomentando la innovación gubernamental y la participación ciudadana (OGL, IF, INAI) (Gobierno Abierto)","Uso de TICs / Coordinación / Capacitación / Procesos / Difusión","3.1.3","Promover la instalación y funcionamiento de nuevos mecanismos de gobierno abierto que respondan a los contextos locales, con enfoque de derechos humanos y perspectiva de género (OGL, INAI)"]
["PROTAI3.1.4","PROTAI","Gobierno Abierto, Transparencia Proactiva y SIPOT","3.1 Consolidar el enfoque de gobierno abierto como vía para la solución de problemas sociales, fomentando la innovación gubernamental y la participación ciudadana (OGL, IF, INAI) (Gobierno Abierto)","Uso de TICs / Coordinación / Capacitación / Procesos / Difusión","3.1.4","Desarrollar herramientas de seguimiento, medición y evaluación de los mecanismos de gobierno abierto como metodologías para la solución de problemas sociales considerando el enfoque de derechos humanos, la perspectiva de género, la innovación gubernamental y la participación ciudadana (OGL, INAI)"]
["PROTAI3.1.5","PROTAI","Gobierno Abierto, Transparencia Proactiva y SIPOT","3.1 Consolidar el enfoque de gobierno abierto como vía para la solución de problemas sociales, fomentando la innovación gubernamental y la participación ciudadana (OGL, IF, INAI) (Gobierno Abierto)","Uso de TICs / Coordinación / Capacitación / Procesos / Difusión","3.1.5","Desarrollar herramientas de seguimiento, medición y evaluación de las acciones de apertura gubernamental emprendidas por organismos garantes y sujetos obligados (OGL, INAI)"]
["PROTAI3.1.6","PROTAI","Gobierno Abierto, Transparencia Proactiva y SIPOT","3.1 Consolidar el enfoque de gobierno abierto como vía para la solución de problemas sociales, fomentando la innovación gubernamental y la participación ciudadana (OGL, IF, INAI)(Gobierno Abierto)","Uso de TICs / Coordinación / Capacitación / Procesos / Difusión","3.1.6","Difundir información socialmente útil a partir de los problemas sociales, administrativos y de gobierno identificados en los sujetos obligados que sean de utilidad para ejercicios de gobierno abierto (OGL, IF, INAI)"]
["PROTAI3.2.1 ","PROTAI","Gobierno Abierto, Transparencia Proactiva y SIPOT","3.2 Fomentar la participación ciudadana en los procesos de toma de decisiones para fortalecer el enfoque de gobierno abierto con perspectiva de derechos humanos y de género (OGL, IF, INAI)(Gobierno Abierto)","Uso de TICs / Coordinación / Capacitación / Procesos / Difusión","3.2.1 ","Identificar y definir espacios de consulta en procesos de toma de decisión involucrados con la resolución de problemas sociales (OGL, IF, INAI)"]
["PROTAI3.2.2","PROTAI","Gobierno Abierto, Transparencia Proactiva y SIPOT","3.2 Fomentar la participación ciudadana en los procesos de toma de decisiones para fortalecer el enfoque de gobierno abierto con perspectiva de derechos humanos y de género (OGL, IF, INAI)(Gobierno Abierto)","Uso de TICs / Coordinación / Capacitación / Procesos / Difusión","3.2.2","Impulsar la ampliación de la participación y vinculación de la población y las organizaciones de la sociedad civil en procesos de toma de decisión considerando el uso de mejores prácticas (OGL, IF, INAI)"]
["PROTAI3.2.3","PROTAI","Gobierno Abierto, Transparencia Proactiva y SIPOT","3.2 Fomentar la participación ciudadana en los procesos de toma de decisiones para fortalecer el enfoque de gobierno abierto con perspectiva de derechos humanos y de género (OGL, IF, INAI)(Gobierno Abierto)","Uso de TICs / Coordinación / Capacitación / Procesos / Difusión","3.2.3","Establecer estándares de mejora de la calidad de la información en materia de transparencia proactiva, así como las acciones para su difusión, considerando el uso de mejores prácticas (OGL, IF, INAI)"]
["PROTAI3.2.4","PROTAI","Gobierno Abierto, Transparencia Proactiva y SIPOT","3.2 Fomentar la participación ciudadana en los procesos de toma de decisiones para fortalecer el enfoque de gobierno abierto con perspectiva de derechos humanos y de género (OGL, IF, INAI)(Gobierno Abierto)","Uso de TICs / Coordinación / Capacitación / Procesos / Difusión","3.2.4","Impulsar la creación de una estrategia nacional de participación ciudadana en procesos de toma de decisión que considere esfuerzos institucionales existentes y el uso de mejores prácticas (OGL, IF, INAI)"]
["PROTAI3.3.1 ","PROTAI","Gobierno Abierto, Transparencia Proactiva y SIPOT","3.3 Consolidar la capacitación de las y los servidores públicos en materia de gobierno abierto (OGL, IF, INAI)(Gobierno Abierto)","Uso de TICs / Coordinación / Capacitación / Procesos / Difusión","3.3.1 ","Coordinar criterios y acciones entre las instituciones integrantes del Sistema y las entidades federativas con el fin de homologar y hacer eficientes los mecanismos de capacitación de las y los servidores públicos en materia de gobierno abierto (OGL, IF, INAI)"]
["PROTAI3.3.2 ","PROTAI","Gobierno Abierto, Transparencia Proactiva y SIPOT","3.3 Consolidar la capacitación de las y los servidores públicos en materia de gobierno abierto (OGL, IF, INAI)(Gobierno Abierto)","Uso de TICs / Coordinación / Capacitación / Procesos / Difusión","3.3.2 ","Coadyuvar en el desarrollo de una estrategia nacional de capacitación en materia de gobierno abierto (OGL, IF, INAI)"]
["PROTAI3.3.3","PROTAI","Gobierno Abierto, Transparencia Proactiva y SIPOT","3.3 Consolidar la capacitación de las y los servidores públicos en materia de gobierno abierto (OGL, IF, INAI)(Gobierno Abierto)","Uso de TICs / Coordinación / Capacitación / Procesos / Difusión","3.3.3","Integrar en los programas de trabajo de las redes locales por una cultura de la transparencia en las entidades federativas la perspectiva de gobierno abierto (OGL, INAI)"]
["PROTAI3.4.1","PROTAI","Gobierno Abierto, Transparencia Proactiva y SIPOT","3.4 Desarrollar los mecanismos para la identificación de perfiles de personas usuarias e información pública que coadyuve toma de decisiones, reduzca las barreras de acceso y resuelva problemáticas específicas con enfoque de derechos humanos y perspectiva de género. (OGL, INEGI, INAI) (Transparencia Proactiva)","Uso de TICs / Coordinación / Capacitación / Procesos / Difusión","3.4.1","Establecer manuales con métodos de comportamiento económico para identificar perfiles de personas usuarias de la información pública e información que coadyuve a resolver problemáticas específicas, tomen decisiones acertadas, disminuyendo barreras de información para acceder a servicios, trámites y programas de gobierno (OGL, INAI)"]
["PROTAI3.4.2 ","PROTAI","Gobierno Abierto, Transparencia Proactiva y SIPOT","3.4 Desarrollar los mecanismos para la identificación de perfiles de personas usuarias e información pública que coadyuve toma de decisiones, reduzca las barreras de acceso y resuelva problemáticas específicas con enfoque de derechos humanos y perspectiva de género. (OGL, INEGI, INAI) (Transparencia Proactiva)","Uso de TICs / Coordinación / Capacitación / Procesos / Difusión","3.4.2 ","Implementar procedimientos para el uso de información pública que permita a los perfiles establecidos acceder a trámites, servicios, programas sociales e información necesaria que coadyuve a resolver problemáticas específicas (OGL, INAI)"]
["PROTAI3.4.3 ","PROTAI","Gobierno Abierto, Transparencia Proactiva y SIPOT","3.4 Desarrollar los mecanismos para la identificación de perfiles de personas usuarias e información pública que coadyuve toma de decisiones, reduzca las barreras de acceso y resuelva problemáticas específicas con enfoque de derechos humanos y perspectiva de género. (OGL, INEGI, INAI) (Transparencia Proactiva)","Uso de TICs / Coordinación / Capacitación / Procesos / Difusión","3.4.3 ","Contar con estándares de mejora de la calidad de la información basados en hallazgos de comportamiento económico que permita a los perfiles establecidos acceder a trámites, servicios, programas sociales e información necesaria que coadyuve a resolver problemáticas específicas (OGL, INEGI, INAI)"]
["PROTAI3.4.4 ","PROTAI","Gobierno Abierto, Transparencia Proactiva y SIPOT","3.4 Desarrollar los mecanismos para la identificación de perfiles de personas usuarias e información pública que coadyuve toma de decisiones, reduzca las barreras de acceso y resuelva problemáticas específicas con enfoque de derechos humanos y perspectiva de género. (OGL, INEGI, INAI) (Transparencia Proactiva)","Uso de TICs / Coordinación / Capacitación / Procesos / Difusión","3.4.4 ","Promover políticas de acceso a la información, transparencia proactiva y apertura gubernamental al interior del país con apoyo de la sociedad civil (OGL, INAI)"]
["PROTAI3.4.5 ","PROTAI","Gobierno Abierto, Transparencia Proactiva y SIPOT","3.4 Desarrollar los mecanismos para la identificación de perfiles de personas usuarias e información pública que coadyuve toma de decisiones, reduzca las barreras de acceso y resuelva problemáticas específicas con enfoque de derechos humanos y perspectiva de género. (OGL, INEGI, INAI) (Transparencia Proactiva)","Uso de TICs / Coordinación / Capacitación / Procesos / Difusión","3.4.5 ","Promover criterios mínimos y metodologías para desarrollar y documentar políticas de acceso a la información, transparencia proactiva y apertura gubernamental (OGL, INAI)"]
["PROTAI3.4.6 ","PROTAI","Gobierno Abierto, Transparencia Proactiva y SIPOT","3.4 Desarrollar los mecanismos para la identificación de perfiles de personas usuarias e información pública que coadyuve toma de decisiones, reduzca las barreras de acceso y resuelva problemáticas específicas con enfoque de derechos humanos y perspectiva de género. (OGL, INEGI, INAI) (Transparencia Proactiva)","Uso de TICs / Coordinación / Capacitación / Procesos / Difusión","3.4.6 ","Establecer criterios para difundir información a grupos vulnerables y/o sin acceso a las TIC, atendiendo a los medios más utilizados por la población (OGL, INEGI, INAI)"]
["PROTAI3.4.7","PROTAI","Gobierno Abierto, Transparencia Proactiva y SIPOT","3.4 Desarrollar los mecanismos para la identificación de perfiles de personas usuarias e información pública que coadyuve toma de decisiones, reduzca las barreras de acceso y resuelva problemáticas específicas con enfoque de derechos humanos y perspectiva de género. (OGL, INEGI, INAI) (Transparencia Proactiva)","Uso de TICs / Coordinación / Capacitación / Procesos / Difusión","3.4.7"," Establecer procedimientos para la publicación proactiva de información dirigida a sectores marginados de las TIC, indígenas y/o grupos vulnerables; así como la selección de medios de difusión con apoyo de la sociedad civil (OGL, INEGI, INAI)"]
["PROTAI3.4.8 ","PROTAI","Gobierno Abierto, Transparencia Proactiva y SIPOT","3.4 Desarrollar los mecanismos para la identificación de perfiles de personas usuarias e información pública que coadyuve toma de decisiones, reduzca las barreras de acceso y resuelva problemáticas específicas con enfoque de derechos humanos y perspectiva de género. (OGL, INEGI, INAI) (Transparencia Proactiva)","Uso de TICs / Coordinación / Capacitación / Procesos / Difusión","3.4.8 ","Contar con procesos para la implementación, verificación y reconocimiento de actividades de transparencia proactiva (OGL, INAI)"]
["PROTAI3.4.9 ","PROTAI","Gobierno Abierto, Transparencia Proactiva y SIPOT","3.4 Desarrollar los mecanismos para la identificación de perfiles de personas usuarias e información pública que coadyuve toma de decisiones, reduzca las barreras de acceso y resuelva problemáticas específicas con enfoque de derechos humanos y perspectiva de género. (OGL, INEGI, INAI) (Transparencia Proactiva)","Uso de TICs / Coordinación / Capacitación / Procesos / Difusión","3.4.9 ","Generar estadísticas y evaluaciones que permitan conocer avances en el uso de información sobre trámites, servicios y programas sociales y sobre las temáticas prioritarias y problemas sociales de los públicos objetivos definidos (OGL, INEGI, INAI)"]
["PROTAI3.5.1","PROTAI","Gobierno Abierto, Transparencia Proactiva y SIPOT","3.5 Impulsar el desarrollo de políticas homologadas de datos abiertos conforme a las facultades de los integrantes del Sistema Nacional de Transparencia (OGL, INEGI, INAI)  (Transparencia Proactiva)","Uso de TICs / Coordinación / Capacitación / Procesos / Difusión","3.5.1"," Promover criterios mínimos y metodologías para desarrollar y documentar políticas de acceso a la información, transparencia proactiva y apertura gubernamental (OGL, INAI)"]
["PROTAI3.5.2 ","PROTAI","Gobierno Abierto, Transparencia Proactiva y SIPOT","3.5 Impulsar el desarrollo de políticas homologadas de datos abiertos conforme a las facultades de los integrantes del Sistema Nacional de Transparencia (OGL, INEGI, INAI)  (Transparencia Proactiva)","Uso de TICs / Coordinación / Capacitación / Procesos / Difusión","3.5.2 ","Implementar criterios, prácticas y normas para el desarrollo de políticas de datos abiertos con incidencia en el ámbito nacional, local y en el Sistema Nacional de Transparencia con apoyo de la sociedad civil (OGL, INEGI, INAI)"]
["PROTAI3.5.3 ","PROTAI","Gobierno Abierto, Transparencia Proactiva y SIPOT","3.5 Impulsar el desarrollo de políticas homologadas de datos abiertos conforme a las facultades de los integrantes del Sistema Nacional de Transparencia (OGL, INEGI, INAI)  (Transparencia Proactiva)","Uso de TICs / Coordinación / Capacitación / Procesos / Difusión","3.5.3 ","Contar con estrategias de apertura de datos diseñadas a partir de ejercicios de participación ciudadana y del involucramiento de la sociedad civil que considere el enfoque de derechos humanos y perspectiva de género, (OGL, IF, INAI)"]
["PROTAI3.6.1 ","PROTAI","Gobierno Abierto, Transparencia Proactiva y SIPOT","3.6 Consolidar la capacitación de las y los servidores públicos en materia de transparencia proactiva (OGL, IF, INAI)(Transparencia Proactiva)","Uso de TICs / Coordinación / Capacitación / Procesos / Difusión","3.6.1 ","Coordinar criterios y acciones entre los integrantes del SNT y las Entidades Federativas con el fin de homologar y hacer eficientes los mecanismos de capacitación de las y los servidores públicos en materia de transparencia proactiva (OGL, IF, INAI)"]
["PROTAI3.6.2 ","PROTAI","Gobierno Abierto, Transparencia Proactiva y SIPOT","3.6 Consolidar la capacitación de las y los servidores públicos en materia de transparencia proactiva (OGL, IF, INAI)(Transparencia Proactiva)","Uso de TICs / Coordinación / Capacitación / Procesos / Difusión","3.6.2 ","Coadyuvar en el desarrollo de una estrategia nacional de capacitación, con enfoque de derechos humanos y perspectiva de género, en materia de transparencia proactiva (OGL, IF, INAI)"]
["PROTAI3.6.3 ","PROTAI","Gobierno Abierto, Transparencia Proactiva y SIPOT","3.6 Consolidar la capacitación de las y los servidores públicos en materia de transparencia proactiva (OGL, IF, INAI)(Transparencia Proactiva)","Uso de TICs / Coordinación / Capacitación / Procesos / Difusión","3.6.3 ","Integrar en los programas de trabajo de las redes locales por una cultura de la transparencia en las entidades federativas la perspectiva de transparencia proactiva (OGL, INAI)"]
["PROTAI3.7.1 ","PROTAI","Gobierno Abierto, Transparencia Proactiva y SIPOT","3.7 Desarrollar una estrategia de simplificación y priorización de la carga de información en el SIPOT que optimice sus recursos para promover entre los sujetos obligados la apertura de datos y alimentar de información pública a las políticas de transparencia proactiva y rendición de cuentas (OGL, IF, INAI) (SIPOT)","Uso de TICs / Coordinación / Capacitación / Procesos / Difusión","3.7.1 ","Generar un catálogo intuitivo de uso de información, con enfoque de derechos humanos y perspectiva de género, basado en las obligaciones de transparencia para agruparlas por temas y utilidad (OGL, IF, INAI)"]
["PROTAI3.7.2 ","PROTAI","Gobierno Abierto, Transparencia Proactiva y SIPOT","3.7 Desarrollar una estrategia de simplificación y priorización de la carga de información en el SIPOT que optimice sus recursos para promover entre los sujetos obligados la apertura de datos y alimentar de información pública a las políticas de transparencia proactiva y rendición de cuentas (OGL, IF, INAI) (SIPOT)","Uso de TICs / Coordinación / Capacitación / Procesos / Difusión","3.7.2 ","Contar con un plan de trabajo para el cumplimiento de las obligaciones de transparencia y carga de información prioritaria en el SIPOT (OGL, INAI)"]
["PROTAI3.7.3 ","PROTAI","Gobierno Abierto, Transparencia Proactiva y SIPOT","3.7 Desarrollar una estrategia de simplificación y priorización de la carga de información en el SIPOT que optimice sus recursos para promover entre los sujetos obligados la apertura de datos y alimentar de información pública a las políticas de transparencia proactiva y rendición de cuentas (OGL, IF, INAI) (SIPOT)","Uso de TICs / Coordinación / Capacitación / Procesos / Difusión","3.7.3 ","Generar estadísticas para conocer por sujeto obligado los avances en el cumplimiento de las obligaciones, uso de información del SIPOT en trámites, servicios y programas sociales y temáticas prioritarias de los públicos objetivos definidos (OGL, INAI)"]
["PROTAI3.7.4 ","PROTAI","Gobierno Abierto, Transparencia Proactiva y SIPOT","3.7 Desarrollar una estrategia de simplificación y priorización de la carga de información en el SIPOT que optimice sus recursos para promover entre los sujetos obligados la apertura de datos y alimentar de información pública a las políticas de transparencia proactiva y rendición de cuentas (OGL, IF, INAI) (SIPOT)","Uso de TICs / Coordinación / Capacitación / Procesos / Difusión","3.7.4 ","Socializar en los organismos garantes la Guía para la Revisión o Monitoreo de las Obligaciones de Transparencia relacionadas con las Áreas de Riesgo y de Vulnerabilidad en la Gestión Gubernamental identificadas por la Fiscalización, con las obligaciones de la Ley General de Contabilidad y con la Ley de Disciplina Financiera en las Entidades Federativas, e implementarla en las metodologías de verificación de obligaciones de transparencia   (OGL, ASF, INAI)"]
["PROTAI3.7.5 ","PROTAI","Gobierno Abierto, Transparencia Proactiva y SIPOT","3.7 Desarrollar una estrategia de simplificación y priorización de la carga de información en el SIPOT que optimice sus recursos para promover entre los sujetos obligados la apertura de datos y alimentar de información pública a las políticas de transparencia proactiva y rendición de cuentas (OGL, IF, INAI) (SIPOT)","Uso de TICs / Coordinación / Capacitación / Procesos / Difusión","3.7.5 ","Incluir en los criterios comunes de evaluación y seguimiento del cumplimiento de obligaciones de transparencia las áreas de riesgo y de vulnerabilidad en la gestión gubernamental identificadas por la fiscalización y el catálogo intuitivo de uso de información (OGL, INAI)"]
["PROTAI3.7.6 ","PROTAI","Gobierno Abierto, Transparencia Proactiva y SIPOT","3.7 Desarrollar una estrategia de simplificación y priorización de la carga de información en el SIPOT que optimice sus recursos para promover entre los sujetos obligados la apertura de datos y alimentar de información pública a las políticas de transparencia proactiva y rendición de cuentas (OGL, IF, INAI) (SIPOT)","Uso de TICs / Coordinación / Capacitación / Procesos / Difusión","3.7.6 ","Impulsar estrategias diferenciadas para la carga de información en el SIPOT en los municipios con menos de 70 mil habitantes (OGL, INAI)"]
["PROTAI3.7.7 ","PROTAI","Gobierno Abierto, Transparencia Proactiva y SIPOT","3.7 Desarrollar una estrategia de simplificación y priorización de la carga de información en el SIPOT que optimice sus recursos para promover entre los sujetos obligados la apertura de datos y alimentar de información pública a las políticas de transparencia proactiva y rendición de cuentas (OGL, IF, INAI) (SIPOT)","Uso de TICs / Coordinación / Capacitación / Procesos / Difusión","3.7.7 ","Impulsar la mejora continua de SIPOT con mecanismos y funcionalidades que faciliten el cumplimiento de las obligaciones de transparencia, así como su seguimiento, verificación y evaluación (INAI)"]
["PROTAI3.7.8 ","PROTAI","Gobierno Abierto, Transparencia Proactiva y SIPOT","3.7 Desarrollar una estrategia de simplificación y priorización de la carga de información en el SIPOT que optimice sus recursos para promover entre los sujetos obligados la apertura de datos y alimentar de información pública a las políticas de transparencia proactiva y rendición de cuentas (OGL, IF, INAI) (SIPOT)","Uso de TICs / Coordinación / Capacitación / Procesos / Difusión","3.7.8 ","Contar con un procedimiento de verificación y sanción definido conforme al derecho aplicable y los criterios emitidos por el Sistema Nacional de Transparencia dirigido a los sujetos obligados (OGL, INAI)"]
["PROTAI4.1.1 ","PROTAI","Rendición de Cuentas","4.1 Generar un ambiente de legalidad, control y rendición de cuentas en los organismos garantes y los sujetos obligados (OGL, ASF, INAI)","Uso de TICs / Procesos / Capacitación / Difusión / Coordinación","4.1.1 ","Desarrollar e implementar un modelo de rendición de cuentas para los organismos garantes en el marco del SNT que genere un enfoque compartido en la materia para que pueda ser incluido en los planes y programas institucionales de sus integrantes (ASF, OGL, INAI)"]
["PROTAI4.1.2 ","PROTAI","Rendición de Cuentas","4.1 Generar un ambiente de legalidad, control y rendición de cuentas en los organismos garantes y los sujetos obligados (OGL, ASF, INAI)","Uso de TICs / Procesos / Capacitación / Difusión / Coordinación","4.1.2 ","Realizar talleres de la herramienta para la autoevaluación de la integridad INTOSAINT e implementar las acciones derivadas de los mismo en los integrantes del SNT (ASF, OGL, INAI)"]
["PROTAI4.1.3 ","PROTAI","Rendición de Cuentas","4.1 Generar un ambiente de legalidad, control y rendición de cuentas en los organismos garantes y los sujetos obligados (OGL, ASF, INAI)","Uso de TICs / Procesos / Capacitación / Difusión / Coordinación","4.1.3 ","Promover la construcción y uso de catálogos intuitivos de uso de información u otro tipo de instrumentos a partir de los hallazgos de la encuesta realizada en el SNT para la detección de temas vinculados con transparencia y acceso a la información a ser considerados como posibles insumos para la fiscalización (OGL, INAI)"]
["PROTAI4.2.1 ","PROTAI","Rendición de Cuentas","4.2 Procurar que la información generada y divulgada facilite ejercicios de rendición de cuentas por parte de los usuarios de la información (OGL, IF, INAI)","Uso de TICs / Procesos / Capacitación / Difusión / Coordinación","4.2.1 ","Impulsar la publicación de información de interés público y la generación de políticas de transparencia proactiva a partir de su mejora continúa considerando las perspectivas de la sociedad civil (OGL, IF, INAI)"]
["PROTAI4.2.2 ","PROTAI","Rendición de Cuentas","4.2 Procurar que la información generada y divulgada facilite ejercicios de rendición de cuentas por parte de los usuarios de la información (OGL, IF, INAI)","Uso de TICs / Procesos / Capacitación / Difusión / Coordinación","4.2.2 ","Desarrollar e implementar herramientas para visualizar información de interés público de forma priorizada que facilite la rendición de cuentas (OGL, IF, INAI)"]
["PROTAI4.2.3 ","PROTAI","Rendición de Cuentas","4.2 Procurar que la información generada y divulgada facilite ejercicios de rendición de cuentas por parte de los usuarios de la información (OGL, IF, INAI)","Uso de TICs / Procesos / Capacitación / Difusión / Coordinación","4.2.3 ","Establecer procesos para la publicación de información orientada a fomentar la rendición de cuentas en los sujetos obligados considerando las perspectivas de la sociedad civil (OGL, INAI)"]
["PROTAI4.3.1 ","PROTAI","Rendición de Cuentas","4.3 Promover el acceso a información enfocado a la fiscalización, rendición de cuentas y denuncia de actos de corrupción en la sociedad (OGL, IF, INAI)","Uso de TICs / Procesos / Capacitación / Difusión / Coordinación","4.3.1 ","Establecer una estrategia de difusión con los distintos públicos usuarios, con enfoque de derechos humanos y perspectiva de género, para impulsar la fiscalización, seguimiento, vigilancia y contraloría de recursos públicos y facilitar la rendición de cuentas, así como la identificación y denuncia de posibles hechos de corrupción (OGL, ASF, INAI)"]
["PROTAI4.3.2 ","PROTAI","Rendición de Cuentas","4.3 Promover el acceso a información enfocado a la fiscalización, rendición de cuentas y denuncia de actos de corrupción en la sociedad (OGL, IF, INAI)","Uso de TICs / Procesos / Capacitación / Difusión / Coordinación","4.3.2 ","Difundir entre distintos públicos usuarios los recursos disponibles para realizar ejercicios de fiscalización, seguimiento, vigilancia y contraloría de recursos, facilitar la rendición de cuentas y permitir la identificación y denuncia de posibles hechos de corrupción, con énfasis en los recursos etiquetados para el logro de la igualdad sustantiva, así como para grupos en situación de vulnerabilidad (OGL, ASF, INAI)"]
["PROTAI4.3.3 ","PROTAI","Rendición de Cuentas","4.3 Promover el acceso a información enfocado a la fiscalización, rendición de cuentas y denuncia de actos de corrupción en la sociedad (OGL, IF, INAI)","Uso de TICs / Procesos / Capacitación / Difusión / Coordinación","4.3.3 ","Facilitar los ejercicios de fiscalización, seguimiento, vigilancia y contraloría de recursos en usuarios especializados a partir de la información pública (OGL, ASF, INAI)"]
["PROTAI4.3.4 ","PROTAI","Rendición de Cuentas","4.3 Promover el acceso a información enfocado a la fiscalización, rendición de cuentas y denuncia de actos de corrupción en la sociedad (OGL, IF, INAI)","Uso de TICs / Procesos / Capacitación / Difusión / Coordinación","4.3.4 ","Desarrollar catálogos de información que prioricen la carga de información en el SIPOT con un enfoque de rendición de cuentas (OGL, IF, INAI)"]
["PROTAI4.3.5 ","PROTAI","Rendición de Cuentas","4.3 Promover el acceso a información enfocado a la fiscalización, rendición de cuentas y denuncia de actos de corrupción en la sociedad (OGL, IF, INAI)","Uso de TICs / Procesos / Capacitación / Difusión / Coordinación","4.3.5 ","Incluir en el programa permanente de capacitación de las y los servidores públicos la perspectiva de rendición de cuentas (OGL, IF, INAI)"]
["PROTAI4.4.1 ","PROTAI","Rendición de Cuentas","4.4 Impulsar los mecanismos de coordinación y vinculación de los Sistemas Anticorrupción y de los Sistemas de Fiscalización a partir de las atribuciones de los integrantes del Sistema Nacional de Transparencia (OGL, IF, INAI)","Uso de TICs / Procesos / Capacitación / Difusión / Coordinación","4.4.1 ","Diseñar acciones de coordinación y vinculación en los Sistemas Anticorrupción y en los Sistemas de Fiscalización conforme a las atribuciones de los organismos garantes (OGL, ASF, INAI)"]
["PROTAI4.4.2 ","PROTAI","Rendición de Cuentas","4.4 Impulsar los mecanismos de coordinación y vinculación de los Sistemas Anticorrupción y de los Sistemas de Fiscalización a partir de las atribuciones de los integrantes del Sistema Nacional de Transparencia (OGL, IF, INAI)","Uso de TICs / Procesos / Capacitación / Difusión / Coordinación","4.4.2 ","Verificar que los documentos normativos que emanen del Sistema Nacional de Anticorrupción sean acordes a la LGTAIP (ASF, INAI)"]
["PROTAI4.4.3 ","PROTAI","Rendición de Cuentas","4.4 Impulsar los mecanismos de coordinación y vinculación de los Sistemas Anticorrupción y de los Sistemas de Fiscalización a partir de las atribuciones de los integrantes del Sistema Nacional de Transparencia (OGL, IF, INAI)","Uso de TICs / Procesos / Capacitación / Difusión / Coordinación","4.4.3 ","Coadyuvar en acciones específicas para prevenir y combatir la corrupción desde los campos de la transparencia, acceso a la información y gestión de archivos en el Sistema Nacional Anticorrupción (ASF, INAI)"]
["PROTAI4.4.4 ","PROTAI","Rendición de Cuentas","4.4 Impulsar los mecanismos de coordinación y vinculación de los Sistemas Anticorrupción y de los Sistemas de Fiscalización a partir de las atribuciones de los integrantes del Sistema Nacional de Transparencia (OGL, IF, INAI)","Uso de TICs / Procesos / Capacitación / Difusión / Coordinación","4.4.4 ","Establecer canales de comunicación o cualquier otro instrumento que permita el intercambio de información y vinculación con instituciones encargadas de la prevención y combate a la corrupción, orientadas a fomentar la legalidad, el control y procesos de rendición de cuentas social, con respeto a los derechos humanos, igualdad de género e inclusión social (OGL, IF, INAI)"]
["PROTAI4.4.5 ","PROTAI","Rendición de Cuentas","4.4 Impulsar los mecanismos de coordinación y vinculación de los Sistemas Anticorrupción y de los Sistemas de Fiscalización a partir de las atribuciones de los integrantes del Sistema Nacional de Transparencia (OGL, IF, INAI)","Uso de TICs / Procesos / Capacitación / Difusión / Coordinación","4.4.5 ","Establecer canales de comunicación o cualquier otro instrumento que permita el intercambio de información y vinculación con instituciones encargadas de la contabilidad gubernamental y la fiscalización (IF, INAI)"]
[{"$f":"CONCATENATE(B129,F129)","v":"PRONADATOS1.1.A1"},"PRONADATOS","Educación y cultura de protección de datos personales entre la sociedad mexicana","Lograr el conocimiento generalizado de la protección de los datos personales","1.1 Sensibilización, promoción, difusión y socialización sobre el tema de protección de datos personales","1.1.A1","Identificar la temática sobre la cual se emprenderán las actividades sobre la sensibilización, promoción, difusión y socialización de la protección de datos personales, y en este sentido, redactar y delimitar el mensaje que será difundido","Transversal"]
["PRONADATOS1.1.A2","PRONADATOS","Educación y cultura de protección de datos personales entre la sociedad mexicana","Lograr el conocimiento generalizado de la protección de los datos personales","1.1 Sensibilización, promoción, difusión y socialización sobre el tema de protección de datos personales","1.1.A2","Delimitar target groups (según las características de la población) para que reciba el mensaje sobre la protección de datos personales. De ser posible, establecer la cantidad de personas a las que les es relevante el mensaje y a cuántos se propone llegar","Transversal"]
["PRONADATOS1.1.A3","PRONADATOS","Educación y cultura de protección de datos personales entre la sociedad mexicana","Lograr el conocimiento generalizado de la protección de los datos personales","1.1 Sensibilización, promoción, difusión y socialización sobre el tema de protección de datos personales","1.1.A3","Conocer los medios de comunicación más efectivos para la promoción de la cultura de la protección de datos personales en la población de interés","Transversal"]
["PRONADATOS1.1.A4","PRONADATOS","Educación y cultura de protección de datos personales entre la sociedad mexicana","Lograr el conocimiento generalizado de la protección de los datos personales","1.1 Sensibilización, promoción, difusión y socialización sobre el tema de protección de datos personales","1.1.A4","Desarrollar materiales que permitan la sensibilización, promoción, difusión y socialización eficaz del tema de la protección de datos personales sin dejar de lado la pertinencia del target group y del medio de comunicación elegido.","Transversal"]
["PRONADATOS1.1.A5","PRONADATOS","Educación y cultura de protección de datos personales entre la sociedad mexicana","Lograr el conocimiento generalizado de la protección de los datos personales","1.1 Sensibilización, promoción, difusión y socialización sobre el tema de protección de datos personales","1.1.A5","Dar seguimiento puntual y constante a las acciones que se desarrollen, para poder estimar con certeza el volumen de la población que ha recibido el mensaje sobre la protección de datos personales","Transversal"]
["PRONADATOS1.1.A6","PRONADATOS","Educación y cultura de protección de datos personales entre la sociedad mexicana","Lograr el conocimiento generalizado de la protección de los datos personales","1.1 Sensibilización, promoción, difusión y socialización sobre el tema de protección de datos personales","1.1.A6","Verificar los resultados mediante mecanismos apropiados para evaluar la efectividad de las actividades emprendidas para sensibilizar, promover, difundir y socializar el tema de la protección de datos personales (mediante encuestas, entrevistas, grupos de enfoque, número de trámites, número de consultas, quejas o respuestas, etcétera)","Transversal"]
["PRONADATOS1.1.A7","PRONADATOS","Educación y cultura de protección de datos personales entre la sociedad mexicana","Lograr el conocimiento generalizado de la protección de los datos personales","1.1 Sensibilización, promoción, difusión y socialización sobre el tema de protección de datos personales","1.1.A7","De ser necesario, realizar ajustes a las actividades realizadas para lograr una efectiva sensibilización, promoción, difusión y socialización de la protección de datos personales, según las características de la población objetivo","Transversal"]
["PRONADATOS1.1.C1-C7 ","PRONADATOS","Educación y cultura de protección de datos personales entre la sociedad mexicana","Lograr el conocimiento generalizado de la protección de los datos personales","1.1 Sensibilización, promoción, difusión y socialización sobre el tema de protección de datos personales","1.1.C1-C7 ","Fortalecer la sensibilización, promoción, difusión y socialización con las líneas de acción de la línea trasversal C  (Organismos Garantes)","Transversal"]
[{"$f":"CONCATENATE(B137,F137)","v":"PRONADATOS1.2.1"},"PRONADATOS","Educación y cultura de protección de datos personales entre la sociedad mexicana","Lograr el conocimiento generalizado de la protección de los datos personales","1.2 Incluir la generación de una cultura de protección de datos personales en los programas educativos","1.2.1","Definir las estrategias que permitan la integración del tema de protección de datos personales en los programas educativos en común acuerdo con las autoridades educativas de los distintos niveles. (Organismos Garantes)"]
["PRONADATOS1.2.2","PRONADATOS","Educación y cultura de protección de datos personales entre la sociedad mexicana","Lograr el conocimiento generalizado de la protección de los datos personales","1.2 Incluir la generación de una cultura de protección de datos personales en los programas educativos","1.2.2","Desarrollar una ruta de adquisición de capacidades que exponga qué elementos deben ser conocidos por el alumnado en los niveles básico y medio superior. (Organismos Garantes)"]
["PRONADATOS1.2.3","PRONADATOS","Educación y cultura de protección de datos personales entre la sociedad mexicana","Lograr el conocimiento generalizado de la protección de los datos personales","1.2 Incluir la generación de una cultura de protección de datos personales en los programas educativos","1.2.3","Identificar aquellas carreras que son propensas a encontrar manejo de datos personales en su desarrollo profesional (derecho, medicina, trabajo social, ciencias políticas, ciencias de la comunicación, administración, ingenieros en sistemas, informática, estadísticos, actuarios, etc.) para dotarlos de contenidos relevantes a sus campos de estudio que los sensibilicen para dar un buen tratamiento a los datos personales. (Organismos Garantes)"]
["PRONADATOS1.2.4","PRONADATOS","Educación y cultura de protección de datos personales entre la sociedad mexicana","Lograr el conocimiento generalizado de la protección de los datos personales","1.2 Incluir la generación de una cultura de protección de datos personales en los programas educativos","1.2.4","Impulsar el desarrollo y establecimiento de diplomados, programas de especialización y posgrado en materia de protección de datos personales y medidas de seguridad para la información. (Organismos Garantes)"]
["PRONADATOS1.2.5","PRONADATOS","Educación y cultura de protección de datos personales entre la sociedad mexicana","Lograr el conocimiento generalizado de la protección de los datos personales","1.2 Incluir la generación de una cultura de protección de datos personales en los programas educativos","1.2.5","Promover en los responsables el establecimiento de perfiles profesionales para los encargados del tratamiento de datos personales. (Organismos Garantes)"]
["PRONADATOS1.2.C1-C7 ","PRONADATOS","Educación y cultura de protección de datos personales entre la sociedad mexicana","Lograr el conocimiento generalizado de la protección de los datos personales","1.2 Incluir la generación de una cultura de protección de datos personales en los programas educativos","1.2.C1-C7 ","Fortalecer la generación de una cultura de protección de datos personales en los programas educativos con las líneas de acción de la línea trasversal C (Organismos Garantes)","Transversal"]
["PRONADATOS1.3.1 ","PRONADATOS","Educación y cultura de protección de datos personales entre la sociedad mexicana","Lograr el conocimiento generalizado de la protección de los datos personales","1.3 Acompañar a los usuarios digitales en el cierre de la brecha digital en materia de protección de datos personales","1.3.1 ","Elaborar un documento bienal que dé cuenta de las tendencias y novedades que ofrecen las tecnologías de la información y sus riesgos en la protección de datos personales. (INAI)"]
[{"$f":"CONCATENATE(B144,F144)","v":"PRONADATOS1.3.A1"},"PRONADATOS","Educación y cultura de protección de datos personales entre la sociedad mexicana","Lograr el conocimiento generalizado de la protección de los datos personales","1.3 Acompañar a los usuarios digitales en el cierre de la brecha digital en materia de protección de datos personales","1.3.A1","Identificar la temática sobre la cual se emprenderán actividades que busquen acompañar a los usuarios digitales en el cierre de la brecha digital en materia de protección de datos personales, así como redactar y delimitar el mensaje a proporcionarse","Transversal"]
["PRONADATOS1.3.A2","PRONADATOS","Educación y cultura de protección de datos personales entre la sociedad mexicana","Lograr el conocimiento generalizado de la protección de los datos personales","1.3 Acompañar a los usuarios digitales en el cierre de la brecha digital en materia de protección de datos personales","1.3.A2","Delimitar target groups (según las características de los usuarios digitales) para que reciban información de acompañamiento en el cierre de la brecha digital. De ser posible, establecer la cantidad de personas a las que les es relevante el mensaje y a cuántos se propone llegar","Transversal"]
["PRONADATOS1.3.A3","PRONADATOS","Educación y cultura de protección de datos personales entre la sociedad mexicana","Lograr el conocimiento generalizado de la protección de los datos personales","1.3 Acompañar a los usuarios digitales en el cierre de la brecha digital en materia de protección de datos personales","1.3.A3","Conocer los medios de comunicación más efectivos para los usuarios digitales","Transversal"]
["PRONADATOS1.3.A4","PRONADATOS","Educación y cultura de protección de datos personales entre la sociedad mexicana","Lograr el conocimiento generalizado de la protección de los datos personales","1.3 Acompañar a los usuarios digitales en el cierre de la brecha digital en materia de protección de datos personales","1.3.A4","Desarrollar materiales que permitan el acompañamiento de los usuarios digitales en el cierre de la brecha digital en materia de la protección de datos personales, sin dejar de lado la pertinencia del target group y del medio de comunicación elegido.","Transversal"]
["PRONADATOS1.3.A5","PRONADATOS","Educación y cultura de protección de datos personales entre la sociedad mexicana","Lograr el conocimiento generalizado de la protección de los datos personales","1.3 Acompañar a los usuarios digitales en el cierre de la brecha digital en materia de protección de datos personales","1.3.A5","Dar seguimiento puntual y constante a las acciones que se desarrollen, para poder estimar con certeza el volumen de los usuarios digitales que han recibido el mensaje.","Transversal"]
["PRONADATOS1.3.A6","PRONADATOS","Educación y cultura de protección de datos personales entre la sociedad mexicana","Lograr el conocimiento generalizado de la protección de los datos personales","1.3 Acompañar a los usuarios digitales en el cierre de la brecha digital en materia de protección de datos personales","1.3.A6","Verificar los resultados de las acciones implementadas para el acompañamiento de los usuarios digitales en el cierre de la brecha digital en materia de protección de datos personales, por medio de encuestas, entrevistas, grupos de enfoque, número de trámites, número de consultas, quejas o respuestas, etcétera","Transversal"]
["PRONADATOS1.3.A7","PRONADATOS","Educación y cultura de protección de datos personales entre la sociedad mexicana","Lograr el conocimiento generalizado de la protección de los datos personales","1.3 Acompañar a los usuarios digitales en el cierre de la brecha digital en materia de protección de datos personales","1.3.A7","De ser necesario, realizar ajustes a las actividades realizadas para utilizar los medios y los mensajes más relevantes según las características de los usuarios digitales","Transversal"]
["PRONADATOS1.3.C1-C7 ","PRONADATOS","Educación y cultura de protección de datos personales entre la sociedad mexicana","Lograr el conocimiento generalizado de la protección de los datos personales","1.3 Acompañar a los usuarios digitales en el cierre de la brecha digital en materia de protección de datos personales","1.3.C1-C7 ","Fortalecer el acompañamiento a los usuarios digitales en el cierre de la brecha digital con las líneas de acción de la línea trasversal C (Organismos Garantes)","Transversal"]
["PRONADATOS1.4.1 ","PRONADATOS","Educación y cultura de protección de datos personales entre la sociedad mexicana","Lograr el conocimiento generalizado de la protección de los datos personales","1.4 Visibilizar el volumen y tipo de posibles vulneraciones","1.4.1 ","Identificar los distintos tipos de riesgo a los que se enfrentan las y los titulares al dar sus datos personales a instituciones públicas. (Integrantes del SNT)"]
["PRONADATOS1.4.2","PRONADATOS","Educación y cultura de protección de datos personales entre la sociedad mexicana","Lograr el conocimiento generalizado de la protección de los datos personales","1.4 Visibilizar el volumen y tipo de posibles vulneraciones","1.4.2","Revisar estudios similares en otros países y entre entidades federativas e identificar las metodologías más adecuadas para el desarrollo de métricas acondicionadas a la situación mexicana. (Organismos Garantes)"]
["PRONADATOS1.4.3","PRONADATOS","Educación y cultura de protección de datos personales entre la sociedad mexicana","Lograr el conocimiento generalizado de la protección de los datos personales","1.4 Visibilizar el volumen y tipo de posibles vulneraciones","1.4.3","Compilar los datos necesarios para poder establecer el número de vulneraciones que sufren los datos personales de las y los titulares. (Organismos Garantes)"]
["PRONADATOS1.4.4","PRONADATOS","Educación y cultura de protección de datos personales entre la sociedad mexicana","Lograr el conocimiento generalizado de la protección de los datos personales","1.4 Visibilizar el volumen y tipo de posibles vulneraciones","1.4.4","Generar un documento de análisis de los datos obtenidos sobre el volumen y tipo de posibles vulneraciones, que incluya un análisis de riesgos y estudios internacionales similares, para generar conocimiento estratégico que apoye la toma de decisiones y permita establecer los mensajes adecuados para las y los titulares. (INAI)"]
[{"$f":"CONCATENATE(B156,F156)","v":"PRONADATOS1.4.A1"},"PRONADATOS","Educación y cultura de protección de datos personales entre la sociedad mexicana","Lograr el conocimiento generalizado de la protección de los datos personales","1.4 Visibilizar el volumen y tipo de posibles vulneraciones","1.4.A1","Identificar la temática sobre la cual se emprenderán actividades que permitan visualizar el volumen y tipo de las posibles vulneraciones y en este sentido, redactar y delimitar el mensaje a proporcionarse","Transversal"]
["PRONADATOS1.4.A2","PRONADATOS","Educación y cultura de protección de datos personales entre la sociedad mexicana","Lograr el conocimiento generalizado de la protección de los datos personales","1.4 Visibilizar el volumen y tipo de posibles vulneraciones","1.4.A2","Delimitar target groups para que reciban el mensaje sobre el volumen y tipos de vulneraciones. De ser posible, establecer la cantidad de personas a las que les es relevante el mensaje y a cuántos se propone llegar","Transversal"]
["PRONADATOS1.4.A3","PRONADATOS","Educación y cultura de protección de datos personales entre la sociedad mexicana","Lograr el conocimiento generalizado de la protección de los datos personales","1.4 Visibilizar el volumen y tipo de posibles vulneraciones","1.4.A3"," Seleccionar los medios de comunicación más efectivos para dar a conocer sobre los tipos de vulneraciones entre la población","Transversal"]
["PRONADATOS1.4.A4","PRONADATOS","Educación y cultura de protección de datos personales entre la sociedad mexicana","Lograr el conocimiento generalizado de la protección de los datos personales","1.4 Visibilizar el volumen y tipo de posibles vulneraciones","1.4.A4","Desarrollar materiales que transmitan de manera efectiva el mensaje sobre el volumen y tipo de vulneraciones a los datos personales, sin dejar de lado la pertinencia del target group y del medio de comunicación elegido.","Transversal"]
["PRONADATOS1.4.A5","PRONADATOS","Educación y cultura de protección de datos personales entre la sociedad mexicana","Lograr el conocimiento generalizado de la protección de los datos personales","1.4 Visibilizar el volumen y tipo de posibles vulneraciones","1.4.A5","Dar seguimiento puntual y constante a las acciones que se desarrollen, para poder estimar con certeza la cantidad de usuarios que han recibido el mensaje sobre el volumen y tipo de vulneraciones","Transversal"]
["PRONADATOS1.4.A6","PRONADATOS","Educación y cultura de protección de datos personales entre la sociedad mexicana","Lograr el conocimiento generalizado de la protección de los datos personales","1.4 Visibilizar el volumen y tipo de posibles vulneraciones","1.4.A6","Verificar los resultados de las actividades emprendidas para la visualización del volumen y tipo de vulneraciones mediante encuestas, entrevistas, grupos de enfoque, número de trámites, número de consultas, quejas o respuestas, etcétera.","Transversal"]
["PRONADATOS1.4.A7","PRONADATOS","Educación y cultura de protección de datos personales entre la sociedad mexicana","Lograr el conocimiento generalizado de la protección de los datos personales","1.4 Visibilizar el volumen y tipo de posibles vulneraciones","1.4.A7","De ser necesario, realizar ajustes a las actividades realizadas para la visualización del volumen y tipo de vulneraciones, para utilizar los medios y los mensajes más relevantes según las características de la población objetivo","Transversal"]
["PRONADATOS1.4.C1-C7 ","PRONADATOS","Educación y cultura de protección de datos personales entre la sociedad mexicana","Lograr el conocimiento generalizado de la protección de los datos personales","1.4 Visibilizar el volumen y tipo de posibles vulneraciones","1.4.C1-C7 ","Fortalecer la visibilización del volumen y tipo de posibles vulneraciones con las líneas de acción de la línea trasversal C (Organismos Garantes)","Transversal"]
["PRONADATOS1.5.1 ","PRONADATOS","Educación y cultura de protección de datos personales entre la sociedad mexicana","Lograr el conocimiento generalizado de la protección de los datos personales","1.5 Publicitar los resultados de la protección de datos personales ","1.5.1 ","Identificar las resoluciones y políticas públicas más relevantes en materia de protección de datos personales que han sido producidos por el Organismo Garante. (Organismos Garantes)"]
["PRONADATOS1.5.2","PRONADATOS","Educación y cultura de protección de datos personales entre la sociedad mexicana","Lograr el conocimiento generalizado de la protección de los datos personales","1.5 Publicitar los resultados de la protección de datos personales ","1.5.2","Enumerar y difundir los beneficios que generan las medidas de protección de datos personales que son promovidas desde el Organismo Garante. (Organismos Garantes)"]
[{"$f":"CONCATENATE(B166,F166)","v":"PRONADATOS1.5.A1"},"PRONADATOS","Educación y cultura de protección de datos personales entre la sociedad mexicana","Lograr el conocimiento generalizado de la protección de los datos personales","1.5 Publicitar los resultados de la protección de datos personales ","1.5.A1","Identificar la temática sobre la cual se emprenderán actividades que permitan publicitar los resultados de la protección de datos personales y en este sentido, redactar y delimitar el mensaje a proporcionarse","Transversal"]
["PRONADATOS1.5.A2","PRONADATOS","Educación y cultura de protección de datos personales entre la sociedad mexicana","Lograr el conocimiento generalizado de la protección de los datos personales","1.5 Publicitar los resultados de la protección de datos personales ","1.5.A2","Delimitar target groups para que reciban el mensaje sobre los resultados de la protección de datos personales. De ser posible, establecer la cantidad de personas a las que les es relevante el mensaje y a cuántos se propone llegar","Transversal"]
["PRONADATOS1.5.A3","PRONADATOS","Educación y cultura de protección de datos personales entre la sociedad mexicana","Lograr el conocimiento generalizado de la protección de los datos personales","1.5 Publicitar los resultados de la protección de datos personales ","1.5.A3"," Seleccionar los medios de comunicación más efectivos para dar a conocer sobre los resultados de la protección de datos personales","Transversal"]
["PRONADATOS1.5.A4","PRONADATOS","Educación y cultura de protección de datos personales entre la sociedad mexicana","Lograr el conocimiento generalizado de la protección de los datos personales","1.5 Publicitar los resultados de la protección de datos personales ","1.5.A4","Desarrollar materiales que transmitan de manera efectiva el mensaje sobre los resultados obtenidos con la protección de datos personales, sin dejar de lado la pertinencia del target group y del medio de comunicación elegido.","Transversal"]
["PRONADATOS1.5.A5","PRONADATOS","Educación y cultura de protección de datos personales entre la sociedad mexicana","Lograr el conocimiento generalizado de la protección de los datos personales","1.5 Publicitar los resultados de la protección de datos personales ","1.5.A5","Dar seguimiento puntual y constante a las acciones que se desarrollen, para poder estimar con certeza el volumen de la población que han recibido el mensaje sobre los resultados de la protección de datos personales","Transversal"]
["PRONADATOS1.5.A6","PRONADATOS","Educación y cultura de protección de datos personales entre la sociedad mexicana","Lograr el conocimiento generalizado de la protección de los datos personales","1.5 Publicitar los resultados de la protección de datos personales ","1.5.A6","Verificar la influencia de las actividades emprendidas para publicitar los resultados de la protección de datos personales, mediante los mecanismos apropiados de evaluación (encuestas, entrevistas, grupos de enfoque, número de trámites, número de consultas, quejas o respuestas, etcétera)","Transversal"]
["PRONADATOS1.5.A7","PRONADATOS","Educación y cultura de protección de datos personales entre la sociedad mexicana","Lograr el conocimiento generalizado de la protección de los datos personales","1.5 Publicitar los resultados de la protección de datos personales ","1.5.A7","De ser necesario, realizar ajustes a las actividades realizadas para difundir los resultados de la protección de datos personales, para utilizar los medios y los mensajes más relevantes según las características de la población objetivo","Transversal"]
["PRONADATOS1.5.C1-C7 ","PRONADATOS","Educación y cultura de protección de datos personales entre la sociedad mexicana","Lograr el conocimiento generalizado de la protección de los datos personales","1.5 Publicitar los resultados de la protección de datos personales ","1.5.C1-C7 ","Fortalecer la publicidad de los resultados de la protección de datos personales con las líneas de acción de la línea trasversal C (Organismos Garantes)","Transversal"]
[{"$f":"CONCATENATE(B174,F174)","v":"PRONADATOS1.6.A1"},"PRONADATOS","Educación y cultura de protección de datos personales entre la sociedad mexicana","Lograr el conocimiento generalizado de la protección de los datos personales","1.6 Fortalecer la imagen institucional de los organismos como garantes de la protección de datos personales","1.6.A1","Identificar la temática sobre la cual se emprenderán actividades que permitan fortalecer la imagen institucional de los organismos garantes de la protección de datos y en este sentido, redactar y delimitar el mensaje a proporcionarse","Transversal"]
["PRONADATOS1.6.A2","PRONADATOS","Educación y cultura de protección de datos personales entre la sociedad mexicana","Lograr el conocimiento generalizado de la protección de los datos personales","1.6 Fortalecer la imagen institucional de los organismos como garantes de la protección de datos personales","1.6.A2","Delimitar target groups para que reciban el mensaje sobre el papel de los organismos como garantes de la protección de datos. De ser posible, establecer la cantidad de personas a las que les es relevante el mensaje y a cuántos se propone llegar","Transversal"]
["PRONADATOS1.6.A3","PRONADATOS","Educación y cultura de protección de datos personales entre la sociedad mexicana","Lograr el conocimiento generalizado de la protección de los datos personales","1.6 Fortalecer la imagen institucional de los organismos como garantes de la protección de datos personales","1.6.A3"," Seleccionar los medios de comunicación más efectivos para fortalecer la imagen institucional de los organismos como garantes de la protección de datos","Transversal"]
["PRONADATOS1.6.A4","PRONADATOS","Educación y cultura de protección de datos personales entre la sociedad mexicana","Lograr el conocimiento generalizado de la protección de los datos personales","1.6 Fortalecer la imagen institucional de los organismos como garantes de la protección de datos personales","1.6.A4","Desarrollar materiales que transmitan de manera efectiva el mensaje sobre el papel de los organismos garantes en la protección de datos personales, sin dejar de lado la pertinencia del target group y del medio de comunicación elegido.","Transversal"]
["PRONADATOS1.6.A5","PRONADATOS","Educación y cultura de protección de datos personales entre la sociedad mexicana","Lograr el conocimiento generalizado de la protección de los datos personales","1.6 Fortalecer la imagen institucional de los organismos como garantes de la protección de datos personales","1.6.A5","Dar seguimiento puntual y constante a las acciones que se desarrollen, para poder estimar con certeza el volumen de la población que han recibido el mensaje sobre los organismos garantes de la protección de datos","Transversal"]
["PRONADATOS1.6.A6","PRONADATOS","Educación y cultura de protección de datos personales entre la sociedad mexicana","Lograr el conocimiento generalizado de la protección de los datos personales","1.6 Fortalecer la imagen institucional de los organismos como garantes de la protección de datos personales","1.6.A6","Verificar los resultados obtenidos con el fortalecimiento de la imagen institucional de los organismos garantes de la protección de datos personales, mediante los mecanismos apropiados de evaluación (encuestas, entrevistas, grupos de enfoque, número de trámites, número de consultas, quejas o respuestas, etcétera)","Transversal"]
["PRONADATOS1.6.A7","PRONADATOS","Educación y cultura de protección de datos personales entre la sociedad mexicana","Lograr el conocimiento generalizado de la protección de los datos personales","1.6 Fortalecer la imagen institucional de los organismos como garantes de la protección de datos personales","1.6.A7","De ser necesario, realizar ajustes a las actividades que buscan fortalecer la imagen institucional de los organismos como garantes de la protección de datos personales, según las características de la población objetivo","Transversal"]
["PRONADATOS1.6.C1-C7 ","PRONADATOS","Educación y cultura de protección de datos personales entre la sociedad mexicana","Lograr el conocimiento generalizado de la protección de los datos personales","1.6 Fortalecer la imagen institucional de los organismos como garantes de la protección de datos personales","1.6.C1-C7 ","Fortalecer la imagen institucional de los organismos como garantes de la protección de datos personales con las líneas de acción de la línea trasversal C (Organismos Garantes)","Transversal"]
["PRONADATOS2.1.A1","PRONADATOS","Ejercicio de los derechos ARCO y de portabilidad","Establecer las bases para que exista un ejercicio adecuado de los derechos ARCO y la portabilidad de datos personales","2.1 Sensibilización, promoción, difusión y socialización sobre los derechos ARCO y la portabilidad de datos personales","2.1.A1","Identificar la temática sobre la cual se emprenderán actividades que permitan sensibilizar, promover, difundir y socializar los derechos ARCO y la portabilidad de datos y en este sentido, redactar y delimitar el mensaje a proporcionarse","Transversal"]
["PRONADATOS2.1.A2","PRONADATOS","Ejercicio de los derechos ARCO y de portabilidad","Establecer las bases para que exista un ejercicio adecuado de los derechos ARCO y la portabilidad de datos personales","2.1 Sensibilización, promoción, difusión y socialización sobre los derechos ARCO y la portabilidad de datos personales","2.1.A2","Delimitar target groups para que reciban el mensaje sobre la sensibilización, promoción, difusión y socialización de los derechos ARCO y la portabilidad de datos. De ser posible, establecer la cantidad de personas a las que les es relevante el mensaje y a cuántos se propone llegar","Transversal"]
["PRONADATOS2.1.A3","PRONADATOS","Ejercicio de los derechos ARCO y de portabilidad","Establecer las bases para que exista un ejercicio adecuado de los derechos ARCO y la portabilidad de datos personales","2.1 Sensibilización, promoción, difusión y socialización sobre los derechos ARCO y la portabilidad de datos personales","2.1.A3"," Seleccionar los medios de comunicación más efectivos dar a conocer sobre los derechos ARCO y la portabilidad de datos","Transversal"]
["PRONADATOS2.1.A4","PRONADATOS","Ejercicio de los derechos ARCO y de portabilidad","Establecer las bases para que exista un ejercicio adecuado de los derechos ARCO y la portabilidad de datos personales","2.1 Sensibilización, promoción, difusión y socialización sobre los derechos ARCO y la portabilidad de datos personales","2.1.A4","Desarrollar materiales que transmitan, de manera efectiva, información sobre los derechos ARCO y la portabilidad de datos, sin dejar de lado la pertinencia del target group y del medio de comunicación elegido.","Transversal"]
["PRONADATOS2.1.A5","PRONADATOS","Ejercicio de los derechos ARCO y de portabilidad","Establecer las bases para que exista un ejercicio adecuado de los derechos ARCO y la portabilidad de datos personales","2.1 Sensibilización, promoción, difusión y socialización sobre los derechos ARCO y la portabilidad de datos personales","2.1.A5","Dar seguimiento puntual y constante a las acciones que se desarrollen, para poder estimar con certeza el volumen de la población que han recibido el mensaje sobre los derechos ARCO y la portabilidad de datos","Transversal"]
["PRONADATOS2.1.A6","PRONADATOS","Ejercicio de los derechos ARCO y de portabilidad","Establecer las bases para que exista un ejercicio adecuado de los derechos ARCO y la portabilidad de datos personales","2.1 Sensibilización, promoción, difusión y socialización sobre los derechos ARCO y la portabilidad de datos personales","2.1.A6","Verificar los resultados mediante mecanismos apropiados para evaluar la efectividad de las actividades realizadas para la sensibilización, promoción, difusión y socialización de los derechos ARCO y la portabilidad de datos personales (encuestas, entrevistas, grupos de enfoque, número de trámites, número de consultas, quejas o respuestas, etcétera)","Transversal"]
["PRONADATOS2.1.A7","PRONADATOS","Ejercicio de los derechos ARCO y de portabilidad","Establecer las bases para que exista un ejercicio adecuado de los derechos ARCO y la portabilidad de datos personales","2.1 Sensibilización, promoción, difusión y socialización sobre los derechos ARCO y la portabilidad de datos personales","2.1.A7","De ser necesario, realizar ajustes a las actividades de sensibilización, promoción, difusión y socialización de los derechos ARCO y la portabilidad de datos personales, según las características de la población objetivo","Transversal"]
["PRONADATOS2.1.C1-C7 ","PRONADATOS","Ejercicio de los derechos ARCO y de portabilidad","Establecer las bases para que exista un ejercicio adecuado de los derechos ARCO y la portabilidad de datos personales","2.1 Sensibilización, promoción, difusión y socialización sobre los derechos ARCO y la portabilidad de datos personales","2.1.C1-C7 ","Fortalecer la sensibilización, promoción, difusión y socialización sobre los derechos ARCO y la portabilidad de datos personales con las líneas de acción de la línea trasversal C, con énfasis en el estudio diagnóstico (Organismos Garantes)","Transversal"]
["PRONADATOS2.2.1 ","PRONADATOS","Ejercicio de los derechos ARCO y de portabilidad","Establecer las bases para que exista un ejercicio adecuado de los derechos ARCO y la portabilidad de datos personales","2.2 Inclusión del tema de derechos ARCO en los programas educativos","2.2.1 ","Definir las estrategias que permitan la integración del ejercicio de los derechos ARCO y la portabilidad de datos personales en los programas educativos en común acuerdo con las autoridades educativas de los distintos niveles (Organismos garantes)"]
["PRONADATOS2.2.2","PRONADATOS","Ejercicio de los derechos ARCO y de portabilidad","Establecer las bases para que exista un ejercicio adecuado de los derechos ARCO y la portabilidad de datos personales","2.2 Inclusión del tema de derechos ARCO en los programas educativos","2.2.2","Desarrollar una ruta de adquisición de capacidades que exponga los elementos que deben ser conocidas por el alumnado y en los niveles básico y medio superior. (Organismos garantes)"]
["PRONADATOS2.2.C1-C7 ","PRONADATOS","Ejercicio de los derechos ARCO y de portabilidad","Establecer las bases para que exista un ejercicio adecuado de los derechos ARCO y la portabilidad de datos personales","2.2 Inclusión del tema de derechos ARCO en los programas educativos","2.2.C1-C7 ","Fortalecer la Inclusión del tema de derechos ARCO en los programas educativos con las líneas de acción de la línea trasversal C, con énfasis en facilitar los recursos necesarios a los servidores públicos (Organismos Garantes)","Transversal"]
["PRONADATOS2.3.1 ","PRONADATOS","Ejercicio de los derechos ARCO y de portabilidad","Establecer las bases para que exista un ejercicio adecuado de los derechos ARCO y la portabilidad de datos personales","2.3 Vincular el ejercicio de los derechos ARCO con el acceso a otros derechos con enfoque de derechos humanos y perspectiva de género","2.3.1 ","Visibilizar el ejercicio de los derechos ARCO a distintos sectores de la población como medio para mejorar el acceso a la salud, educación, empleo, seguridad y justicia (Organismos garantes)"]
["PRONADATOS2.3.2","PRONADATOS","Ejercicio de los derechos ARCO y de portabilidad","Establecer las bases para que exista un ejercicio adecuado de los derechos ARCO y la portabilidad de datos personales","2.3 Vincular el ejercicio de los derechos ARCO con el acceso a otros derechos con enfoque de derechos humanos y perspectiva de género","2.3.2","Establecer convenios con otros sectores o partes interesadas para impulsar el ejercicio de los derechos ARCO y la promoción de los objetivos de este PRONADATOS  (Organismos garantes)"]
["PRONADATOS2.3.4","PRONADATOS","Ejercicio de los derechos ARCO y de portabilidad","Establecer las bases para que exista un ejercicio adecuado de los derechos ARCO y la portabilidad de datos personales","2.3 Vincular el ejercicio de los derechos ARCO con el acceso a otros derechos con enfoque de derechos humanos y perspectiva de género","2.3.4","Impulsar el desarrollo de consultas a grupos vulnerables sobre las necesidades que perciben en la protección de sus datos personales como un mecanismo institucional de diagnóstico (INAI)"]
["PRONADATOS2.3.5","PRONADATOS","Ejercicio de los derechos ARCO y de portabilidad","Establecer las bases para que exista un ejercicio adecuado de los derechos ARCO y la portabilidad de datos personales","2.3 Vincular el ejercicio de los derechos ARCO con el acceso a otros derechos con enfoque de derechos humanos y perspectiva de género","2.3.5","Impulsar el establecimiento o mejora continua de centros de atención a la sociedad (CAS) para beneficio de las y los titulares en el ejercicio de sus derechos ARCO (Organismos garantes)"]
["PRONADATOS2.3.6","PRONADATOS","Ejercicio de los derechos ARCO y de portabilidad","Establecer las bases para que exista un ejercicio adecuado de los derechos ARCO y la portabilidad de datos personales","2.3 Vincular el ejercicio de los derechos ARCO con el acceso a otros derechos con enfoque de derechos humanos y perspectiva de género","2.3.6","Impulsar el establecimiento de condiciones que establezcan la accesibilidad al ejercicio de los derechos ARCO a grupos vulnerables (Organismos garantes)"]
["PRONADATOS2.3.C1-C7 ","PRONADATOS","Ejercicio de los derechos ARCO y de portabilidad","Establecer las bases para que exista un ejercicio adecuado de los derechos ARCO y la portabilidad de datos personales","2.3 Vincular el ejercicio de los derechos ARCO con el acceso a otros derechos con enfoque de derechos humanos y perspectiva de género","2.3.C1-C7 ","Fortalecer la vinculación del ejercicio de los derechos ARCO con el acceso a otros derechos con las líneas de acción de la línea trasversal C, con énfasis en facilitar los recursos necesarios a los servidores públicos (Organismos Garantes)","Transversal"]
["PRONADATOS2.4.1 ","PRONADATOS","Ejercicio de los derechos ARCO y de portabilidad","Establecer las bases para que exista un ejercicio adecuado de los derechos ARCO y la portabilidad de datos personales","2.4 Mejorar continuamente los mecanismos de acceso a los derechos ARCO","2.4.1 ","Facilitar los medios de identificación de las y los titulares hasta donde las medidas de seguridad permitan la pertinencia de esto. (Integrantes del SNT)"]
["PRONADATOS2.4.2","PRONADATOS","Ejercicio de los derechos ARCO y de portabilidad","Establecer las bases para que exista un ejercicio adecuado de los derechos ARCO y la portabilidad de datos personales","2.4 Mejorar continuamente los mecanismos de acceso a los derechos ARCO","2.4.2","Revisar los mecanismos existentes y extender su alcance para poder abarcar a un mayor número de titulares. (Integrantes del SNT)"]
["PRONADATOS2.4.3","PRONADATOS","Ejercicio de los derechos ARCO y de portabilidad","Establecer las bases para que exista un ejercicio adecuado de los derechos ARCO y la portabilidad de datos personales","2.4 Mejorar continuamente los mecanismos de acceso a los derechos ARCO","2.4.3","Actualizar de acuerdo a la LGPDPPSO los parámetros de los sistemas informáticos existentes para el ejercicio de los derechos ARCO en las entidades federativas. (Organismos garantes)"]
["PRONADATOS2.4.4","PRONADATOS","Ejercicio de los derechos ARCO y de portabilidad","Establecer las bases para que exista un ejercicio adecuado de los derechos ARCO y la portabilidad de datos personales","2.4 Mejorar continuamente los mecanismos de acceso a los derechos ARCO","2.4.4","Identificar los sectores y responsables que tengan una mayor demanda potencial en el ejercicio de los derechos ARCO (Organismos garantes)"]
["PRONADATOS2.4.5","PRONADATOS","Ejercicio de los derechos ARCO y de portabilidad","Establecer las bases para que exista un ejercicio adecuado de los derechos ARCO y la portabilidad de datos personales","2.4 Mejorar continuamente los mecanismos de acceso a los derechos ARCO","2.4.5","Promover el desarrollo de acciones de mejora continua a los procedimientos de ejercicio de los derechos ARCO de manera privilegiada en los sectores y responsables que tengan una mayor demanda potencial de los mismos (Organismos garantes)"]
["PRONADATOS2.4.C1-C7 ","PRONADATOS","Ejercicio de los derechos ARCO y de portabilidad","Establecer las bases para que exista un ejercicio adecuado de los derechos ARCO y la portabilidad de datos personales","2.4 Mejorar continuamente los mecanismos de acceso a los derechos ARCO","2.4.C1-C7 ","Fortalecer la mejora continua de los mecanismos de acceso a los derechos ARCO con las líneas de acción de la línea trasversal C, con énfasis en foros que permitan visibilizar y sensibilizar las necesidades económicas en esta materia (Organismos Garantes)","Transversal"]
["PRONADATOS2.5.1 ","PRONADATOS","Ejercicio de los derechos ARCO y de portabilidad","Establecer las bases para que exista un ejercicio adecuado de los derechos ARCO y la portabilidad de datos personales","2.5 Reducir costos asociados en el ejercicio de los derechos ARCO","2.5.1 ","Implementar los mecanismos para informar a los usuarios de su derecho a utilizar los mecanismos de ejercicio de sus derechos que más convengan a sus intereses, mostrando todas las ofertas y los costos que cada opción tiene asociado, reiterando siempre que el ejercicio de los derechos ARCO deberá ser gratuito. (Integrantes del SNT)"]
["PRONADATOS2.5.2","PRONADATOS","Ejercicio de los derechos ARCO y de portabilidad","Establecer las bases para que exista un ejercicio adecuado de los derechos ARCO y la portabilidad de datos personales","2.5 Reducir costos asociados en el ejercicio de los derechos ARCO","2.5.2","Revisar las legislaciones y reglamentaciones que impongan restricciones de facto al ejercicio de los derechos ARCO para recomendar su ajuste y adecuación. (Integrantes del SNT)"]
["PRONADATOS2.5.3","PRONADATOS","Ejercicio de los derechos ARCO y de portabilidad","Establecer las bases para que exista un ejercicio adecuado de los derechos ARCO y la portabilidad de datos personales","2.5 Reducir costos asociados en el ejercicio de los derechos ARCO","2.5.3","Atendiendo al artículo 50 de la LGPDPPSO, los Organismos Garantes podrán suscribir convenios de colaboración para que se pueda exceptuar el pago en aquellos casos en que atendiendo a circunstancias socioeconómicas los costos de reproducción se conviertan en una carga prohibitiva para que la o el titular ejerza sus derechos. (Organismos garantes)"]
["PRONADATOS2.5.C1-C7 ","PRONADATOS","Ejercicio de los derechos ARCO y de portabilidad","Establecer las bases para que exista un ejercicio adecuado de los derechos ARCO y la portabilidad de datos personales","2.5 Reducir costos asociados en el ejercicio de los derechos ARCO","2.5.C1-C7 ","Apoyar la reducción de los costos asociados en el ejercicio de los derechos ARCO con las líneas de acción de la línea trasversal C (Organismos Garantes)","Transversal"]
["PRONADATOS2.6.B1","PRONADATOS","Ejercicio de los derechos ARCO y de portabilidad","Establecer las bases para que exista un ejercicio adecuado de los derechos ARCO y la portabilidad de datos personales","2.6 Fortalecimiento de los Organismos Garantes para el adecuado impulso al ejercicio de los derechos ARCO","2.6.B1","Desarrollar capacidades en los servidores públicos para la obtención de información sobre las actividades que se realizarán para impulsar los derechos ARCO ","Transversal"]
["PRONADATOS2.6.B2","PRONADATOS","Ejercicio de los derechos ARCO y de portabilidad","Establecer las bases para que exista un ejercicio adecuado de los derechos ARCO y la portabilidad de datos personales","2.6 Fortalecimiento de los Organismos Garantes para el adecuado impulso al ejercicio de los derechos ARCO","2.6.B2","Proveer a los servidores públicos de las capacidades que requieren para planear y establecer objetivos sobre el impulso adecuado de los derechos ARCO ","Transversal"]
["PRONADATOS2.6.B3","PRONADATOS","Ejercicio de los derechos ARCO y de portabilidad","Establecer las bases para que exista un ejercicio adecuado de los derechos ARCO y la portabilidad de datos personales","2.6 Fortalecimiento de los Organismos Garantes para el adecuado impulso al ejercicio de los derechos ARCO","2.6.B3","Dotar a los servidores públicos de las capacidades que les permitan entablar relaciones de colaboración con otros servidores públicos para el adecuado impulso al ejercicio de los derechos ARCO","Transversal"]
["PRONADATOS2.6.B4","PRONADATOS","Ejercicio de los derechos ARCO y de portabilidad","Establecer las bases para que exista un ejercicio adecuado de los derechos ARCO y la portabilidad de datos personales","2.6 Fortalecimiento de los Organismos Garantes para el adecuado impulso al ejercicio de los derechos ARCO","2.6.B4","Garantizar el apoyo institucional a las acciones que los servidores públicos realicen, en el marco de sus atribuciones y los principios de su organización, para impulsar el ejercicio de los derechos ARCO","Transversal"]
["PRONADATOS2.6.B5","PRONADATOS","Ejercicio de los derechos ARCO y de portabilidad","Establecer las bases para que exista un ejercicio adecuado de los derechos ARCO y la portabilidad de datos personales","2.6 Fortalecimiento de los Organismos Garantes para el adecuado impulso al ejercicio de los derechos ARCO","2.6.B5","Proporcionar a los servidores públicos las capacidades que les permitan aprovechar la información que se genera sobre sus actividades y su incorporación en el impulso al ejercicio de los derechos ARCO","Transversal"]
["PRONADATOS2.6.B6","PRONADATOS","Ejercicio de los derechos ARCO y de portabilidad","Establecer las bases para que exista un ejercicio adecuado de los derechos ARCO y la portabilidad de datos personales","2.6 Fortalecimiento de los Organismos Garantes para el adecuado impulso al ejercicio de los derechos ARCO","2.6.B6","Promover el desarrollo de procesos que doten a los integrantes del SNT de información sobre el impulso adecuado de los derechos ARCO","Transversal"]
["PRONADATOS2.6.B7","PRONADATOS","Ejercicio de los derechos ARCO y de portabilidad","Establecer las bases para que exista un ejercicio adecuado de los derechos ARCO y la portabilidad de datos personales","2.6 Fortalecimiento de los Organismos Garantes para el adecuado impulso al ejercicio de los derechos ARCO","2.6.B7","Desarrollar en los integrantes del SNT capacidades para la definición de objetivos claros en el impulso de los derechos ARCO ","Transversal"]
["PRONADATOS2.6.B8","PRONADATOS","Ejercicio de los derechos ARCO y de portabilidad","Establecer las bases para que exista un ejercicio adecuado de los derechos ARCO y la portabilidad de datos personales","2.6 Fortalecimiento de los Organismos Garantes para el adecuado impulso al ejercicio de los derechos ARCO","2.6.B8","Crear las condiciones en cada integrante del SNT que le permitan relacionarse y establecer los convenios que convengan al adecuado impulso al ejercicio de los derechos ARCO","Transversal"]
["PRONADATOS2.6.B9","PRONADATOS","Ejercicio de los derechos ARCO y de portabilidad","Establecer las bases para que exista un ejercicio adecuado de los derechos ARCO y la portabilidad de datos personales","2.6 Fortalecimiento de los Organismos Garantes para el adecuado impulso al ejercicio de los derechos ARCO","2.6.B9","Crear los instrumentos organizacionales que estructuren el quehacer de cada institución integrante del SNT en el impulso de los derechos ARCO","Transversal"]
["PRONADATOS2.6.B10","PRONADATOS","Ejercicio de los derechos ARCO y de portabilidad","Establecer las bases para que exista un ejercicio adecuado de los derechos ARCO y la portabilidad de datos personales","2.6 Fortalecimiento de los Organismos Garantes para el adecuado impulso al ejercicio de los derechos ARCO","2.6.B10","Contar con procesos institucionales de monitoreo, evaluación y mejora continua para promover el fortalecimiento de los Organismos Garantes en el impulso al ejercicio de los derechos ARCO","Transversal"]
["PRONADATOS2.6.B11","PRONADATOS","Ejercicio de los derechos ARCO y de portabilidad","Establecer las bases para que exista un ejercicio adecuado de los derechos ARCO y la portabilidad de datos personales","2.6 Fortalecimiento de los Organismos Garantes para el adecuado impulso al ejercicio de los derechos ARCO","2.6.B11","Desarrollar mecanismos de comunicación de información sobre el impulso al ejercicio de los derechos ARCO ","Transversal"]
["PRONADATOS2.6.B12","PRONADATOS","Ejercicio de los derechos ARCO y de portabilidad","Establecer las bases para que exista un ejercicio adecuado de los derechos ARCO y la portabilidad de datos personales","2.6 Fortalecimiento de los Organismos Garantes para el adecuado impulso al ejercicio de los derechos ARCO","2.6.B12","Establecer metas para el desarrollo de acciones en el adecuado impulso de los derechos ARCO, de manera conjunta entre organismos garantes y sus respectivos responsables","Transversal"]
["PRONADATOS2.6.B13","PRONADATOS","Ejercicio de los derechos ARCO y de portabilidad","Establecer las bases para que exista un ejercicio adecuado de los derechos ARCO y la portabilidad de datos personales","2.6 Fortalecimiento de los Organismos Garantes para el adecuado impulso al ejercicio de los derechos ARCO","2.6.B13","Fomentar la creación de mecanismos de colaboración entre responsables o de responsables con otras instituciones para el impulso al ejercicio de los derechos ARCO ","Transversal"]
["PRONADATOS2.6.B14","PRONADATOS","Ejercicio de los derechos ARCO y de portabilidad","Establecer las bases para que exista un ejercicio adecuado de los derechos ARCO y la portabilidad de datos personales","2.6 Fortalecimiento de los Organismos Garantes para el adecuado impulso al ejercicio de los derechos ARCO","2.6.B14","Promover la integración de las acciones y deberes en el impulso al ejercicio de los derechos ARCO, en los instrumentos organizacionales de los responsables","Transversal"]
["PRONADATOS2.6.B15","PRONADATOS","Ejercicio de los derechos ARCO y de portabilidad","Establecer las bases para que exista un ejercicio adecuado de los derechos ARCO y la portabilidad de datos personales","2.6 Fortalecimiento de los Organismos Garantes para el adecuado impulso al ejercicio de los derechos ARCO","2.6.B15","Contar con sistemas de monitoreo y evaluación del ejercicio de los derechos ARCO","Transversal"]
["PRONADATOS2.6.B16","PRONADATOS","Ejercicio de los derechos ARCO y de portabilidad","Establecer las bases para que exista un ejercicio adecuado de los derechos ARCO y la portabilidad de datos personales","2.6 Fortalecimiento de los Organismos Garantes para el adecuado impulso al ejercicio de los derechos ARCO","2.6.B16","Desarrollar los mecanismos que permitan al SNT conocer, analizar y tomar acciones en el impulso al ejercicio de los derechos ARCO ","Transversal"]
["PRONADATOS2.6.B17","PRONADATOS","Ejercicio de los derechos ARCO y de portabilidad","Establecer las bases para que exista un ejercicio adecuado de los derechos ARCO y la portabilidad de datos personales","2.6 Fortalecimiento de los Organismos Garantes para el adecuado impulso al ejercicio de los derechos ARCO","2.6.B17","Promover el establecimiento de objetivos del SNT en el impulso al ejercicio de los derechos ARCO ","Transversal"]
["PRONADATOS2.6.B18","PRONADATOS","Ejercicio de los derechos ARCO y de portabilidad","Establecer las bases para que exista un ejercicio adecuado de los derechos ARCO y la portabilidad de datos personales","2.6 Fortalecimiento de los Organismos Garantes para el adecuado impulso al ejercicio de los derechos ARCO","2.6.B18","Buscar el establecimiento de marcos de colaboración entre el SNT y los actores más relevantes para el impulso de los derechos ARCO","Transversal"]
["PRONADATOS2.6.B19","PRONADATOS","Ejercicio de los derechos ARCO y de portabilidad","Establecer las bases para que exista un ejercicio adecuado de los derechos ARCO y la portabilidad de datos personales","2.6 Fortalecimiento de los Organismos Garantes para el adecuado impulso al ejercicio de los derechos ARCO","2.6.B19","Proveer al SNT de los instrumentos que le permitan desarrollar sus acciones con el apoyo institucional de sus integrantes para el adecuado impulso al ejercicio de los derechos ARCO","Transversal"]
["PRONADATOS2.6.B20","PRONADATOS","Ejercicio de los derechos ARCO y de portabilidad","Establecer las bases para que exista un ejercicio adecuado de los derechos ARCO y la portabilidad de datos personales","2.6 Fortalecimiento de los Organismos Garantes para el adecuado impulso al ejercicio de los derechos ARCO","2.6.B20","Crear los mecanismos que permitan al SNT monitorear, evaluar y ajustar las acciones que emprende para el impulso del ejercicio de los derechos ARCO, y generar conocimiento a partir de esto","Transversal"]
["PRONADATOS2.6.C1-C7 ","PRONADATOS","Ejercicio de los derechos ARCO y de portabilidad","Establecer las bases para que exista un ejercicio adecuado de los derechos ARCO y la portabilidad de datos personales","2.6 Fortalecimiento de los Organismos Garantes para el adecuado impulso al ejercicio de los derechos ARCO","2.6.C1-C7 ","Apoyar al fortalecimiento de los Organismos Garantes para el adecuado impulso al ejercicio de los derechos ARCO con las líneas de acción de la línea trasversal C (Organismos Garantes)","Transversal"]
["PRONADATOS2.7.1 ","PRONADATOS","Ejercicio de los derechos ARCO y de portabilidad","Establecer las bases para que exista un ejercicio adecuado de los derechos ARCO y la portabilidad de datos personales","2.7 Acompañar a los usuarios digitales en el cierre de la brecha digital para el ejercicio de los derechos ARCO y el desarrollo de sus herramientas de facilitación","2.7.1 ","Elaborar un documento bienal que dé cuenta de las tendencias y novedades que ofrecen las tecnologías de la información y sus riesgos en la protección de datos personales. (INAI)"]
["PRONADATOS2.7.2","PRONADATOS","Ejercicio de los derechos ARCO y de portabilidad","Establecer las bases para que exista un ejercicio adecuado de los derechos ARCO y la portabilidad de datos personales","2.7 Acompañar a los usuarios digitales en el cierre de la brecha digital para el ejercicio de los derechos ARCO y el desarrollo de sus herramientas de facilitación","2.7.2","Identificar los riesgos que estas tendencias y novedades conllevan para el ejercicio de los derechos ARCO y el desarrollo de sus herramientas de facilitación. (Integrantes del SNT)"]
["PRONADATOS2.7.C1-C7 ","PRONADATOS","Ejercicio de los derechos ARCO y de portabilidad","Establecer las bases para que exista un ejercicio adecuado de los derechos ARCO y la portabilidad de datos personales","2.7 Acompañar a los usuarios digitales en el cierre de la brecha digital para el ejercicio de los derechos ARCO y el desarrollo de sus herramientas de facilitación","2.7.C1-C7 ","Fortalecer el acompañamiento a los usuarios digitales en el cierre de la brecha digital para el ejercicio de los derechos ARCO con las líneas de acción de la línea trasversal C (Organismos Garantes)","Transversal"]
["PRONADATOS2.8.1 ","PRONADATOS","Ejercicio de los derechos ARCO y de portabilidad","Establecer las bases para que exista un ejercicio adecuado de los derechos ARCO y la portabilidad de datos personales","2.8 Desarrollar herramientas de facilitación para el ejercicio de los derechos de las y los titulares","2.8.1 ","Revisar los mecanismos existentes para el ejercicio de derechos ARCO y aquellos que estén por comenzar a ejecutarse a fin de identificar sus aspectos claves, para plasmar éstos en las herramientas de facilitación (guías, recomendaciones, modelos, formatos, etc.). (Integrantes del SNT)"]
["PRONADATOS2.8.2","PRONADATOS","Ejercicio de los derechos ARCO y de portabilidad","Establecer las bases para que exista un ejercicio adecuado de los derechos ARCO y la portabilidad de datos personales","2.8 Desarrollar herramientas de facilitación para el ejercicio de los derechos de las y los titulares","2.8.2","Identificar la población potencialmente usuaria de estos mecanismos a partir de las solicitudes de ejercicio de los derechos ARCO, así como sus características, para poder establecer los mejores medios en la generación de estas herramientas. (Integrantes del SNT)"]
["PRONADATOS2.8.3","PRONADATOS","Ejercicio de los derechos ARCO y de portabilidad","Establecer las bases para que exista un ejercicio adecuado de los derechos ARCO y la portabilidad de datos personales","2.8 Desarrollar herramientas de facilitación para el ejercicio de los derechos de las y los titulares","2.8.3","Emprender soluciones innovadoras en los mecanismos para el ejercicio de los derechos ARCO, en ejercicios piloto para observar sus resultados en la práctica, manteniendo un registro adecuado de los costos que implica y los beneficios que generan a las y los titulares. (Integrantes del SNT)"]
[{"$f":"CONCATENATE(B236,F236)","v":"PRONADATOS2.8.A1"},"PRONADATOS","Ejercicio de los derechos ARCO y de portabilidad","Establecer las bases para que exista un ejercicio adecuado de los derechos ARCO y la portabilidad de datos personales","2.8 Desarrollar herramientas de facilitación para el ejercicio de los derechos de las y los titulares","2.8.A1","Identificar la temática sobre la cual se emprenderán actividades para el desarrollo de herramientas de facilitación para el ejercicio de los derechos de los y las titulares","Transversal"]
["PRONADATOS2.8.A2","PRONADATOS","Ejercicio de los derechos ARCO y de portabilidad","Establecer las bases para que exista un ejercicio adecuado de los derechos ARCO y la portabilidad de datos personales","2.8 Desarrollar herramientas de facilitación para el ejercicio de los derechos de las y los titulares","2.8.A2","Delimitar a la población de interés para que conozca estas herramientas de facilitación. En la medida de lo posible establecer la cantidad de personas a las que les son relevantes y a cuántos se propone llegar","Transversal"]
["PRONADATOS2.8.A3","PRONADATOS","Ejercicio de los derechos ARCO y de portabilidad","Establecer las bases para que exista un ejercicio adecuado de los derechos ARCO y la portabilidad de datos personales","2.8 Desarrollar herramientas de facilitación para el ejercicio de los derechos de las y los titulares","2.8.A3","Seleccionar los medios de comunicación más efectivos para dar a conocer las herramientas de facilitación para el ejercicio de los derechos de las y los titulares.","Transversal"]
["PRONADATOS2.8.A4","PRONADATOS","Ejercicio de los derechos ARCO y de portabilidad","Establecer las bases para que exista un ejercicio adecuado de los derechos ARCO y la portabilidad de datos personales","2.8 Desarrollar herramientas de facilitación para el ejercicio de los derechos de las y los titulares","2.8.A4","Desarrollar materiales que transmitan de manera efectiva el mensaje sobre la existencia/desarrollo de herramientas de facilitación para el ejercicio de los derechos de las y los titulares, sin dejar de lado la pertinencia de la población objetivo y del medio de comunicación elegido.","Transversal"]
["PRONADATOS2.8.A5","PRONADATOS","Ejercicio de los derechos ARCO y de portabilidad","Establecer las bases para que exista un ejercicio adecuado de los derechos ARCO y la portabilidad de datos personales","2.8 Desarrollar herramientas de facilitación para el ejercicio de los derechos de las y los titulares","2.8.A5","Dar seguimiento puntual y constante a las acciones desarrolladas, para poder estimar con certeza el volumen de la población que ha recibido el mensaje sobre las herramientas de facilitación del ejercicio de los derechos de las y los titulares","Transversal"]
["PRONADATOS2.8.A6","PRONADATOS","Ejercicio de los derechos ARCO y de portabilidad","Establecer las bases para que exista un ejercicio adecuado de los derechos ARCO y la portabilidad de datos personales","2.8 Desarrollar herramientas de facilitación para el ejercicio de los derechos de las y los titulares","2.8.A6","Verificar los resultados de las actividades implementadas para dar a conocer sobre las herramientas de facilitación del ejercicio de los derechos de las y los titulares; haciendo uso de encuestas, entrevistas, grupos de enfoque, número de trámites, número de consultas, quejas o respuestas, etcétera.","Transversal"]
["PRONADATOS2.8.A7","PRONADATOS","Ejercicio de los derechos ARCO y de portabilidad","Establecer las bases para que exista un ejercicio adecuado de los derechos ARCO y la portabilidad de datos personales","2.8 Desarrollar herramientas de facilitación para el ejercicio de los derechos de las y los titulares","2.8.A7","De ser necesario, realizar ajustes a las actividades realizadas respecto a las herramientas de facilitación, según las características de las y los titulares","Transversal"]
["PRONADATOS2.8.C1-C7 ","PRONADATOS","Ejercicio de los derechos ARCO y de portabilidad","Establecer las bases para que exista un ejercicio adecuado de los derechos ARCO y la portabilidad de datos personales","2.8 Desarrollar herramientas de facilitación para el ejercicio de los derechos de las y los titulares","2.8.C1-C7 ","Fortalecer el desarrollo de herramientas de facilitación para el ejercicio de los derechos de las y los titulares con las líneas de acción de la línea trasversal C (Organismos Garantes)","Transversal"]
["PRONADATOS2.9.1 ","PRONADATOS","Ejercicio de los derechos ARCO y de portabilidad","Establecer las bases para que exista un ejercicio adecuado de los derechos ARCO y la portabilidad de datos personales","2.9 Desarrollar un marco homogéneo para la implementación de acciones en materia de portabilidad","2.9.1 ","Desarrollar un modelo teórico que establezca con certeza los alcances y objetivos de la portabilidad de los datos personales en el sector público. (Organismos garantes)"]
["PRONADATOS2.9.2","PRONADATOS","Ejercicio de los derechos ARCO y de portabilidad","Establecer las bases para que exista un ejercicio adecuado de los derechos ARCO y la portabilidad de datos personales","2.9 Desarrollar un marco homogéneo para la implementación de acciones en materia de portabilidad","2.9.2","Promover la implementación de acciones por parte de responsables relevantes en el marco del mencionado modelo. (Organismos garantes)"]
["PRONADATOS2.9.3","PRONADATOS","Ejercicio de los derechos ARCO y de portabilidad","Establecer las bases para que exista un ejercicio adecuado de los derechos ARCO y la portabilidad de datos personales","2.9 Desarrollar un marco homogéneo para la implementación de acciones en materia de portabilidad","2.9.3","Desarrollar herramientas de seguimiento, medición y evaluación de los mecanismos de portabilidad que se lleguen a desarrollar. (Organismos garantes)"]
["PRONADATOS2.9.C1-C7 ","PRONADATOS","Ejercicio de los derechos ARCO y de portabilidad","Establecer las bases para que exista un ejercicio adecuado de los derechos ARCO y la portabilidad de datos personales","2.9 Desarrollar un marco homogéneo para la implementación de acciones en materia de portabilidad","2.9.C1-C7 ","Fortalecer el desarrollo de acciones en materia de portabilidad con las líneas de acción de la línea trasversal C (Organismos Garantes)","Transversal"]
[{"$f":"CONCATENATE(B248,F248)","v":"PRONADATOS3.1.A1"},"PRONADATOS","Capacitación a los responsables en materia de protección de datos personales","Promover que existan las capacidades técnicas adecuadas y suficientes entre los servidores públicos para la protección de los datos personales","3.1 Sensibilización, promoción, difusión y socialización constantes, eficaces y evaluables","3.1.A1","Identificar la temática sobre la cual se emprenderán actividades que procuren la sensibilización, promoción, difusión y socialización constante, eficaz y evaluable sobre la protección de datos personales a los servidores públicos","Transversal"]
["PRONADATOS3.1.A2","PRONADATOS","Capacitación a los responsables en materia de protección de datos personales","Promover que existan las capacidades técnicas adecuadas y suficientes entre los servidores públicos para la protección de los datos personales","3.1 Sensibilización, promoción, difusión y socialización constantes, eficaces y evaluables","3.1.A2","Delimitar target groups dentro de las instituciones para que los servidores públicos implicados en el trato de datos personales, reciban el mensaje sobre la protección de datos personales. De ser posible, establecer la cantidad de servidores a los que es relevante el mensaje y a cuántos se propone llegar","Transversal"]
["PRONADATOS3.1.A3","PRONADATOS","Capacitación a los responsables en materia de protección de datos personales","Promover que existan las capacidades técnicas adecuadas y suficientes entre los servidores públicos para la protección de los datos personales","3.1 Sensibilización, promoción, difusión y socialización constantes, eficaces y evaluables","3.1.A3"," Seleccionar los medios de comunicación más efectivos para dar a conocer sobre protección de datos personales entre los servidores públicos ","Transversal"]
["PRONADATOS3.1.A4","PRONADATOS","Capacitación a los responsables en materia de protección de datos personales","Promover que existan las capacidades técnicas adecuadas y suficientes entre los servidores públicos para la protección de los datos personales","3.1 Sensibilización, promoción, difusión y socialización constantes, eficaces y evaluables","3.1.A4","Desarrollar materiales que permitan la sensibilización, promoción, difusión y socialización constantes, eficaces y evaluables en materia de protección de datos personales entre los servidores públicos, sin dejar de lado la pertinencia del target group y del medio de comunicación elegido.","Transversal"]
["PRONADATOS3.1.A5","PRONADATOS","Capacitación a los responsables en materia de protección de datos personales","Promover que existan las capacidades técnicas adecuadas y suficientes entre los servidores públicos para la protección de los datos personales","3.1 Sensibilización, promoción, difusión y socialización constantes, eficaces y evaluables","3.1.A5","Dar seguimiento puntual y constante a las acciones, herramientas y materiales de capacitación, para poder estimar con certeza el volumen de servidores que han recibido el mensaje sobre la protección de los datos personales.","Transversal"]
["PRONADATOS3.1.A6","PRONADATOS","Capacitación a los responsables en materia de protección de datos personales","Promover que existan las capacidades técnicas adecuadas y suficientes entre los servidores públicos para la protección de los datos personales","3.1 Sensibilización, promoción, difusión y socialización constantes, eficaces y evaluables","3.1.A6","Verificar los resultados obtenidos de las actividades de sensibilización, promoción, difusión y socialización constantes, eficaces y evaluables entre los servidores públicos; utilizando encuestas, entrevistas, grupos de enfoque, número de trámites, número de consultas, quejas o respuestas, etcétera","Transversal"]
["PRONADATOS3.1.A7","PRONADATOS","Capacitación a los responsables en materia de protección de datos personales","Promover que existan las capacidades técnicas adecuadas y suficientes entre los servidores públicos para la protección de los datos personales","3.1 Sensibilización, promoción, difusión y socialización constantes, eficaces y evaluables","3.1.A7","De ser necesario, realizar ajustes a las actividades de sensibilización, promoción, difusión y socialización, según las características de los servidores","Transversal"]
["PRONADATOS3.1.C1-C7 ","PRONADATOS","Capacitación a los responsables en materia de protección de datos personales","Promover que existan las capacidades técnicas adecuadas y suficientes entre los servidores públicos para la protección de los datos personales","3.1 Sensibilización, promoción, difusión y socialización constantes, eficaces y evaluables","3.1.C1-C7 ","Fortalecer la sensibilización, promoción, difusión y socialización constantes, eficaces y evaluables con las líneas de acción de la línea trasversal C (Organismos Garantes)","Transversal"]
["PRONADATOS3.2.1 ","PRONADATOS","Capacitación a los responsables en materia de protección de datos personales","Promover que existan las capacidades técnicas adecuadas y suficientes entre los servidores públicos para la protección de los datos personales","3.2 Desarrollo institucionalizado de prioridades y criterios para la generación de capacidades y competencias","3.2.1 ","Impulsar la elaboración documentos de control de riesgos en los responsables, para identificar aquellos datos personales cuyo tratamiento se encuentra más vulnerable para trazar prioridades. (Organismos garantes)"]
["PRONADATOS3.2.2","PRONADATOS","Capacitación a los responsables en materia de protección de datos personales","Promover que existan las capacidades técnicas adecuadas y suficientes entre los servidores públicos para la protección de los datos personales","3.2 Desarrollo institucionalizado de prioridades y criterios para la generación de capacidades y competencias","3.2.2","Identificar desde los Organismos Garantes a aquellos sectores y responsables que realizan un tratamiento de datos personales constante y de volumen más significativo, para apoyarlos en el establecimiento de sus prioridades de capacitación. (Organismos garantes)"]
["PRONADATOS3.2.3","PRONADATOS","Capacitación a los responsables en materia de protección de datos personales","Promover que existan las capacidades técnicas adecuadas y suficientes entre los servidores públicos para la protección de los datos personales","3.2 Desarrollo institucionalizado de prioridades y criterios para la generación de capacidades y competencias","3.2.3","Impulsar que todos los responsables del país cumplan con su obligación de hacer un inventario o mapeo de sus tratamientos de datos personales, poniendo especial atención en aquellos que se desarrollan de forma más constante. (Integrantes del SNT)"]
["PRONADATOS3.2.4","PRONADATOS","Capacitación a los responsables en materia de protección de datos personales","Promover que existan las capacidades técnicas adecuadas y suficientes entre los servidores públicos para la protección de los datos personales","3.2 Desarrollo institucionalizado de prioridades y criterios para la generación de capacidades y competencias","3.2.4","Supervisar la creación e implementación de avisos de privacidad que indiquen el tratamiento y protección de los datos personales así como demás instrumentos aplicables. (Organismos garantes)"]
["PRONADATOS3.2.5","PRONADATOS","Capacitación a los responsables en materia de protección de datos personales","Promover que existan las capacidades técnicas adecuadas y suficientes entre los servidores públicos para la protección de los datos personales","3.2 Desarrollo institucionalizado de prioridades y criterios para la generación de capacidades y competencias","3.2.5","Ampliar la cobertura de la capacitación en línea por medio del Centro Virtual de Formación en Acceso a la Información y Protección de Datos Personales. (Organismos Garantes)"]
["PRONADATOS3.2.6","PRONADATOS","Capacitación a los responsables en materia de protección de datos personales","Promover que existan las capacidades técnicas adecuadas y suficientes entre los servidores públicos para la protección de los datos personales","3.2 Desarrollo institucionalizado de prioridades y criterios para la generación de capacidades y competencias","3.2.6","Establecer propuestas de capacitación desde los Organismos Garantes basadas en la información que se logre recopilar de las líneas de acción previamente sugeridas. (Organismos garantes)"]
["PRONADATOS3.2.7","PRONADATOS","Capacitación a los responsables en materia de protección de datos personales","Promover que existan las capacidades técnicas adecuadas y suficientes entre los servidores públicos para la protección de los datos personales","3.2 Desarrollo institucionalizado de prioridades y criterios para la generación de capacidades y competencias","3.2.7","Establecer canales de comunicación con los funcionarios públicos capacitados, para contar con información de primera mano que permita la atención de las necesidades de capacitación. (Organismos garantes)"]
[{"$f":"CONCATENATE(B263,F263)","v":"PRONADATOS3.2.8"},"PRONADATOS","Capacitación a los responsables en materia de protección de datos personales","Promover que existan las capacidades técnicas adecuadas y suficientes entre los servidores públicos para la protección de los datos personales","3.2 Desarrollo institucionalizado de prioridades y criterios para la generación de capacidades y competencias","3.2.8","Establecer un conjunto de criterios que permitan determinar la vulnerabilidad que pueden llegar a tener los datos personales en el marco del SNT (Organismos garantes)"]
["PRONADATOS3.2.C1-C7 ","PRONADATOS","Capacitación a los responsables en materia de protección de datos personales","Promover que existan las capacidades técnicas adecuadas y suficientes entre los servidores públicos para la protección de los datos personales","3.2 Desarrollo institucionalizado de prioridades y criterios para la generación de capacidades y competencias","3.2.C1-C7 ","Fortalecer el desarrollo institucionalizado de capacidades y competencias con las líneas de acción de la línea trasversal C (Organismos Garantes)","Transversal"]
["PRONADATOS3.3.1 ","PRONADATOS","Capacitación a los responsables en materia de protección de datos personales","Promover que existan las capacidades técnicas adecuadas y suficientes entre los servidores públicos para la protección de los datos personales","3.3 Vincular las actividades de capacitación con los objetivos de los programas institucionales","3.3.1 ","Construir guías y planes de capacitación que cuenten con narrativas específicas para cada una de las temáticas que permitan vincular éstas con una mejora en el desarrollo de las acciones de los responsables. (Organismos garantes)"]
["PRONADATOS3.3.2","PRONADATOS","Capacitación a los responsables en materia de protección de datos personales","Promover que existan las capacidades técnicas adecuadas y suficientes entre los servidores públicos para la protección de los datos personales","3.3 Vincular las actividades de capacitación con los objetivos de los programas institucionales","3.3.2","Establecer Redes por una Cultura de la Transparencia y Protección de Datos como canales de comunicación con los funcionarios públicos para contar con información de primera mano que permita ajustar e implementar las narrativas desarrolladas. (Organismos garantes)"]
["PRONADATOS3.3.C1-C7 ","PRONADATOS","Capacitación a los responsables en materia de protección de datos personales","Promover que existan las capacidades técnicas adecuadas y suficientes entre los servidores públicos para la protección de los datos personales","3.3 Vincular las actividades de capacitación con los objetivos de los programas institucionales","3.3.C1-C7 ","Fortalecer las actividades de capacitación con las líneas de acción de la línea trasversal C (Organismos Garantes)","Transversal"]
[{"$f":"CONCATENATE(B268,F268)","v":"PRONADATOS3.4.B1"},"PRONADATOS","Capacitación a los responsables en materia de protección de datos personales","Promover que existan las capacidades técnicas adecuadas y suficientes entre los servidores públicos para la protección de los datos personales","3.4 Fortalecimiento de los Organismos Garantes para la imposición de sanciones conforme a la normatividad aplicable","3.4.B1","Desarrollar capacidades en los servidores públicos para la obtención de información sobre la imposición de sanciones conforme a la normatividad aplicable","Transversal"]
["PRONADATOS3.4.B2","PRONADATOS","Capacitación a los responsables en materia de protección de datos personales","Promover que existan las capacidades técnicas adecuadas y suficientes entre los servidores públicos para la protección de los datos personales","3.4 Fortalecimiento de los Organismos Garantes para la imposición de sanciones conforme a la normatividad aplicable","3.4.B2","Proveer a los servidores públicos de las capacidades que requieren para planear y establecer objetivos para la imposición de sanciones conforme a la normatividad aplicable","Transversal"]
["PRONADATOS3.4.B3","PRONADATOS","Capacitación a los responsables en materia de protección de datos personales","Promover que existan las capacidades técnicas adecuadas y suficientes entre los servidores públicos para la protección de los datos personales","3.4 Fortalecimiento de los Organismos Garantes para la imposición de sanciones conforme a la normatividad aplicable","3.4.B3","Dotar a los servidores públicos de las capacidades que les permitan entablar relaciones de colaboración con otros servidores públicos para la imposición de sanciones conforme a la normatividad aplicable","Transversal"]
["PRONADATOS3.4.B4","PRONADATOS","Capacitación a los responsables en materia de protección de datos personales","Promover que existan las capacidades técnicas adecuadas y suficientes entre los servidores públicos para la protección de los datos personales","3.4 Fortalecimiento de los Organismos Garantes para la imposición de sanciones conforme a la normatividad aplicable","3.4.B4","Garantizar el apoyo institucional a las acciones que los servidores públicos realicen, en el marco de sus atribuciones y los principios de su organización, para la imposición de sanciones conforme a la normatividad aplicable","Transversal"]
["PRONADATOS3.4.B5","PRONADATOS","Capacitación a los responsables en materia de protección de datos personales","Promover que existan las capacidades técnicas adecuadas y suficientes entre los servidores públicos para la protección de los datos personales","3.4 Fortalecimiento de los Organismos Garantes para la imposición de sanciones conforme a la normatividad aplicable","3.4.B5","Proporcionar a los servidores públicos las capacidades que les permitan aprovechar la información que se genera sobre sus actividades y su incorporación para la imposición de sanciones conforme a la normatividad aplicable","Transversal"]
["PRONADATOS3.4.B6","PRONADATOS","Capacitación a los responsables en materia de protección de datos personales","Promover que existan las capacidades técnicas adecuadas y suficientes entre los servidores públicos para la protección de los datos personales","3.4 Fortalecimiento de los Organismos Garantes para la imposición de sanciones conforme a la normatividad aplicable","3.4.B6","Promover el desarrollo de procesos que doten a los integrantes del SNT de información sobre la imposición de sanciones conforme a la normatividad aplicable","Transversal"]
["PRONADATOS3.4.B7","PRONADATOS","Capacitación a los responsables en materia de protección de datos personales","Promover que existan las capacidades técnicas adecuadas y suficientes entre los servidores públicos para la protección de los datos personales","3.4 Fortalecimiento de los Organismos Garantes para la imposición de sanciones conforme a la normatividad aplicable","3.4.B7","Desarrollar en los integrantes del SNT capacidades para la definición de objetivos claros en materia de imposición de sanciones conforme a la normatividad aplicable","Transversal"]
["PRONADATOS3.4.B8","PRONADATOS","Capacitación a los responsables en materia de protección de datos personales","Promover que existan las capacidades técnicas adecuadas y suficientes entre los servidores públicos para la protección de los datos personales","3.4 Fortalecimiento de los Organismos Garantes para la imposición de sanciones conforme a la normatividad aplicable","3.4.B8","Crear las condiciones en cada integrante del SNT que le permitan relacionarse y establecer los convenios que convengan a la imposición de sanciones conforme a la normatividad aplicable","Transversal"]
["PRONADATOS3.4.B9","PRONADATOS","Capacitación a los responsables en materia de protección de datos personales","Promover que existan las capacidades técnicas adecuadas y suficientes entre los servidores públicos para la protección de los datos personales","3.4 Fortalecimiento de los Organismos Garantes para la imposición de sanciones conforme a la normatividad aplicable","3.4.B9","Crear los instrumentos organizacionales en el quehacer de cada institución integrante del SNT para la imposición de sanciones conforme a la normatividad aplicable","Transversal"]
["PRONADATOS3.4.B10","PRONADATOS","Capacitación a los responsables en materia de protección de datos personales","Promover que existan las capacidades técnicas adecuadas y suficientes entre los servidores públicos para la protección de los datos personales","3.4 Fortalecimiento de los Organismos Garantes para la imposición de sanciones conforme a la normatividad aplicable","3.4.B10","Contar con procesos institucionales de monitoreo, evaluación y mejora continua para promover la imposición de sanciones conforme a la normatividad aplicable","Transversal"]
["PRONADATOS3.4.B11","PRONADATOS","Capacitación a los responsables en materia de protección de datos personales","Promover que existan las capacidades técnicas adecuadas y suficientes entre los servidores públicos para la protección de los datos personales","3.4 Fortalecimiento de los Organismos Garantes para la imposición de sanciones conforme a la normatividad aplicable","3.4.B11","Desarrollar mecanismos de comunicación de información en materia de imposición de sanciones conforme a la normatividad aplicable","Transversal"]
["PRONADATOS3.4.B12","PRONADATOS","Capacitación a los responsables en materia de protección de datos personales","Promover que existan las capacidades técnicas adecuadas y suficientes entre los servidores públicos para la protección de los datos personales","3.4 Fortalecimiento de los Organismos Garantes para la imposición de sanciones conforme a la normatividad aplicable","3.4.B12","Establecer metas en materia de imposición de sanciones conforme a la normatividad aplicable, de manera conjunta entre dichos organismos y sus respectivos responsables","Transversal"]
["PRONADATOS3.4.B13","PRONADATOS","Capacitación a los responsables en materia de protección de datos personales","Promover que existan las capacidades técnicas adecuadas y suficientes entre los servidores públicos para la protección de los datos personales","3.4 Fortalecimiento de los Organismos Garantes para la imposición de sanciones conforme a la normatividad aplicable","3.4.B13","Fomentar la creación de mecanismos de colaboración entre responsables o de responsables con otras instituciones para la imposición de sanciones conforme a la normatividad aplicable","Transversal"]
["PRONADATOS3.4.B14","PRONADATOS","Capacitación a los responsables en materia de protección de datos personales","Promover que existan las capacidades técnicas adecuadas y suficientes entre los servidores públicos para la protección de los datos personales","3.4 Fortalecimiento de los Organismos Garantes para la imposición de sanciones conforme a la normatividad aplicable","3.4.B14","Promover la integración de las acciones y deberes en la imposición de sanciones conforme a la normatividad aplicable, en los instrumentos organizacionales de los responsables","Transversal"]
["PRONADATOS3.4.B15","PRONADATOS","Capacitación a los responsables en materia de protección de datos personales","Promover que existan las capacidades técnicas adecuadas y suficientes entre los servidores públicos para la protección de los datos personales","3.4 Fortalecimiento de los Organismos Garantes para la imposición de sanciones conforme a la normatividad aplicable","3.4.B15","Contar con sistemas de monitoreo y evaluación de la imposición de sanciones conforme a la normatividad aplicable","Transversal"]
["PRONADATOS3.4.B16","PRONADATOS","Capacitación a los responsables en materia de protección de datos personales","Promover que existan las capacidades técnicas adecuadas y suficientes entre los servidores públicos para la protección de los datos personales","3.4 Fortalecimiento de los Organismos Garantes para la imposición de sanciones conforme a la normatividad aplicable","3.4.B16","Desarrollar los mecanismos que permitan al SNT conocer, analizar y tomar acciones para la imposición de sanciones conforme a la normatividad aplicable","Transversal"]
["PRONADATOS3.4.B17","PRONADATOS","Capacitación a los responsables en materia de protección de datos personales","Promover que existan las capacidades técnicas adecuadas y suficientes entre los servidores públicos para la protección de los datos personales","3.4 Fortalecimiento de los Organismos Garantes para la imposición de sanciones conforme a la normatividad aplicable","3.4.B17","Promover el establecimiento de objetivos del SNT en materia de imposición de sanciones conforme a la normatividad aplicable","Transversal"]
["PRONADATOS3.4.B18","PRONADATOS","Capacitación a los responsables en materia de protección de datos personales","Promover que existan las capacidades técnicas adecuadas y suficientes entre los servidores públicos para la protección de los datos personales","3.4 Fortalecimiento de los Organismos Garantes para la imposición de sanciones conforme a la normatividad aplicable","3.4.B18","Buscar el establecimiento de marcos de colaboración entre el SNT y los actores más relevantes para la imposición de sanciones conforme a la normatividad aplicable","Transversal"]
["PRONADATOS3.4.B19","PRONADATOS","Capacitación a los responsables en materia de protección de datos personales","Promover que existan las capacidades técnicas adecuadas y suficientes entre los servidores públicos para la protección de los datos personales","3.4 Fortalecimiento de los Organismos Garantes para la imposición de sanciones conforme a la normatividad aplicable","3.4.B19","Proveer al SNT de los instrumentos que le permitan desarrollar sus acciones con el apoyo institucional de sus integrantes para la imposición de sanciones conforme a la normatividad aplicable","Transversal"]
["PRONADATOS3.4.B20","PRONADATOS","Capacitación a los responsables en materia de protección de datos personales","Promover que existan las capacidades técnicas adecuadas y suficientes entre los servidores públicos para la protección de los datos personales","3.4 Fortalecimiento de los Organismos Garantes para la imposición de sanciones conforme a la normatividad aplicable","3.4.B20","Crear los mecanismos que permitan al SNT monitorear, evaluar y ajustar las acciones que emprende para la imposición de sanciones conforme a la normatividad aplicable, y generar conocimiento a partir de esto","Transversal"]
["PRONADATOS3.4.C1-C7 ","PRONADATOS","Capacitación a los responsables en materia de protección de datos personales","Promover que existan las capacidades técnicas adecuadas y suficientes entre los servidores públicos para la protección de los datos personales","3.4 Fortalecimiento de los Organismos Garantes para la imposición de sanciones conforme a la normatividad aplicable","3.4.C1-C7 ","Fortalecer la capacidad de imposición de sanciones de los Organismos Garantes con las líneas de acción de la línea trasversal C (Organismos Garantes)","Transversal"]
["PRONADATOS3.5.1 ","PRONADATOS","Capacitación a los responsables en materia de protección de datos personales","Promover que existan las capacidades técnicas adecuadas y suficientes entre los servidores públicos para la protección de los datos personales","3.5 Desarrollar acciones para el involucramiento de las OSC’s en materia de capacitación","3.5.1 ","Establecer contacto con los secretariados técnicos locales y/o con los responsables de los mecanismos de participación ciudadana de aquellos responsables que dan un tratamiento constante a datos personales. (Organismos garantes)"]
["PRONADATOS3.5.2","PRONADATOS","Capacitación a los responsables en materia de protección de datos personales","Promover que existan las capacidades técnicas adecuadas y suficientes entre los servidores públicos para la protección de los datos personales","3.5 Desarrollar acciones para el involucramiento de las OSC’s en materia de capacitación","3.5.2","Dotar con información referente a la protección de los datos personales a los actores relevantes de la sociedad civil en los mecanismos anteriormente contactados. (Integrantes del SNT)"]
["PRONADATOS3.5.3","PRONADATOS","Capacitación a los responsables en materia de protección de datos personales","Promover que existan las capacidades técnicas adecuadas y suficientes entre los servidores públicos para la protección de los datos personales","3.5 Desarrollar acciones para el involucramiento de las OSC’s en materia de capacitación","3.5.3","Impulsar el establecimiento de compromisos que privilegien el seguimiento conjunto de las acciones de capacitación en materia de protección de datos personales de los responsables. (Integrantes del SNT)"]
["PRONADATOS3.5.C1-C7 ","PRONADATOS","Capacitación a los responsables en materia de protección de datos personales","Promover que existan las capacidades técnicas adecuadas y suficientes entre los servidores públicos para la protección de los datos personales","3.5 Desarrollar acciones para el involucramiento de las OSC’s en materia de capacitación","3.5.C1-C7 ","Fortalecer las acciones para el involucramiento de las OSC’s en materia de capacitación con las líneas de acción de la línea trasversal C (Organismos Garantes)","Transversal"]
["PRONADATOS4.1.1","PRONADATOS","Implementación y mantenimiento de un sistema de gestión de seguridad","Fomentar que los responsables establezcan un sistema de gestión de seguridad para garantizar que cuenten con medidas de seguridad de la información","4.1 Desarrollar herramientas y metodologías para la implementación de sistemas de gestión de seguridad","4.1.1","Construir metodologías para el mapeo de los flujos y tratamientos de datos personales para su uso al interior de las instituciones responsables. (Organismos Garantes)"]
["PRONADATOS4.1.2","PRONADATOS","Implementación y mantenimiento de un sistema de gestión de seguridad","Fomentar que los responsables establezcan un sistema de gestión de seguridad para garantizar que cuenten con medidas de seguridad de la información","4.1 Desarrollar herramientas y metodologías para la implementación de sistemas de gestión de seguridad","4.1.2","Elaborar una herramienta de autodiagnóstico que permita a los responsables identificar sus necesidades de seguridad en el tratamiento de datos personales. (Organismos Garantes)"]
["PRONADATOS4.1.3","PRONADATOS","Implementación y mantenimiento de un sistema de gestión de seguridad","Fomentar que los responsables establezcan un sistema de gestión de seguridad para garantizar que cuenten con medidas de seguridad de la información","4.1 Desarrollar herramientas y metodologías para la implementación de sistemas de gestión de seguridad","4.1.3","Compilar por Organismo Garante la información de las herramientas de autodiagnóstico respondidas por los responsables para su sistematización y análisis conforme a la metodología de la herramienta. (Organismos Garantes)"]
["PRONADATOS4.1.4","PRONADATOS","Implementación y mantenimiento de un sistema de gestión de seguridad","Fomentar que los responsables establezcan un sistema de gestión de seguridad para garantizar que cuenten con medidas de seguridad de la información","4.1 Desarrollar herramientas y metodologías para la implementación de sistemas de gestión de seguridad","4.1.4","Trazar las acciones generales para la atención de los distintos tipos de necesidades que surjan a partir del análisis de las respuestas a la herramienta de autodiagnóstico de los responsables. (Organismos Garantes)"]
["PRONADATOS4.1.5","PRONADATOS","Implementación y mantenimiento de un sistema de gestión de seguridad","Fomentar que los responsables establezcan un sistema de gestión de seguridad para garantizar que cuenten con medidas de seguridad de la información","4.1 Desarrollar herramientas y metodologías para la implementación de sistemas de gestión de seguridad","4.1.5","Dar seguimiento a la implementación de las acciones recomendadas a los responsables del tratamiento de datos personales para la instalación de su sistema de gestión de seguridad de la información. (Organismos Garantes)"]
["PRONADATOS4.1.6","PRONADATOS","Implementación y mantenimiento de un sistema de gestión de seguridad","Fomentar que los responsables establezcan un sistema de gestión de seguridad para garantizar que cuenten con medidas de seguridad de la información","4.1 Desarrollar herramientas y metodologías para la implementación de sistemas de gestión de seguridad","4.1.6","Promover la vinculación necesaria entre los sistemas de seguridad y los sistemas institucionales de archivo. (Organismos Garantes)"]
["PRONADATOS4.1.7","PRONADATOS","Implementación y mantenimiento de un sistema de gestión de seguridad","Fomentar que los responsables establezcan un sistema de gestión de seguridad para garantizar que cuenten con medidas de seguridad de la información","4.1 Desarrollar herramientas y metodologías para la implementación de sistemas de gestión de seguridad","4.1.7","Privilegiar el desarrollo de herramientas, metodologías y acciones para la implementación de adecuados sistemas de seguridad en registros públicos, instituciones que traten expedientes clínicos y en su caso de otros sectores que se consideren relevantes (Organismos Garantes)"]
["PRONADATOS4.1.8","PRONADATOS","Implementación y mantenimiento de un sistema de gestión de seguridad","Fomentar que los responsables establezcan un sistema de gestión de seguridad para garantizar que cuenten con medidas de seguridad de la información","4.1 Desarrollar herramientas y metodologías para la implementación de sistemas de gestión de seguridad","4.1.8","Facilitar a los responsables diversas metodologías para la elaboración de análisis de riesgos y de brecha, a fin de que cuenten con un nivel aceptable de protección de datos personales. (Organismos Garantes)"]
["PRONADATOS4.1.9","PRONADATOS","Implementación y mantenimiento de un sistema de gestión de seguridad","Fomentar que los responsables establezcan un sistema de gestión de seguridad para garantizar que cuenten con medidas de seguridad de la información","4.1 Desarrollar herramientas y metodologías para la implementación de sistemas de gestión de seguridad","4.1.9","Reconocer niveles adecuados de protección y cláusulas tipo en contratos entre responsables y encargados para facilitar el régimen de transferencias. (Organismos Garantes)"]
["PRONADATOS4.1.C1-C7 ","PRONADATOS","Implementación y mantenimiento de un sistema de gestión de seguridad","Fomentar que los responsables establezcan un sistema de gestión de seguridad para garantizar que cuenten con medidas de seguridad de la información","4.1 Desarrollar herramientas y metodologías para la implementación de sistemas de gestión de seguridad","4.1.C1-C7 ","Fortalecer el desarrollo de herramientas y metodologías para la implementación de los sistemas de gestión de seguridad con las líneas de acción de la línea trasversal C (Organismos Garantes)","Transversal"]
["PRONADATOS4.2.1 ","PRONADATOS","Implementación y mantenimiento de un sistema de gestión de seguridad","Fomentar que los responsables establezcan un sistema de gestión de seguridad para garantizar que cuenten con medidas de seguridad de la información","4.2 Desarrollar diagnósticos, herramientas y metodologías para el mantenimiento y mejora de los sistemas de gestión de seguridad","4.2.1 ","Elaborar herramientas de autodiagnóstico que permitan a los responsables identificar las nuevas necesidades y vulnerabilidades de los sistemas de gestión seguridad que están operando. (Organismos Garantes)"]
["PRONADATOS4.2.2","PRONADATOS","Implementación y mantenimiento de un sistema de gestión de seguridad","Fomentar que los responsables establezcan un sistema de gestión de seguridad para garantizar que cuenten con medidas de seguridad de la información","4.2 Desarrollar diagnósticos, herramientas y metodologías para el mantenimiento y mejora de los sistemas de gestión de seguridad","4.2.2","Dar seguimiento a la atención de las necesidades y vulnerabilidades detectadas en los de gestión seguridad operados por los responsables. (Organismos Garantes)"]
["PRONADATOS4.2.3","PRONADATOS","Implementación y mantenimiento de un sistema de gestión de seguridad","Fomentar que los responsables establezcan un sistema de gestión de seguridad para garantizar que cuenten con medidas de seguridad de la información","4.2 Desarrollar diagnósticos, herramientas y metodologías para el mantenimiento y mejora de los sistemas de gestión de seguridad","4.2.3","Impulsar el desarrollo de las acciones de mejora en los sistemas de seguridad existentes en particular en los registros públicos e instituciones que tratan expedientes clínicos y en su caso de otros sectores que se consideren relevantes (Organismos Garantes)"]
["PRONADATOS4.2.4","PRONADATOS","Implementación y mantenimiento de un sistema de gestión de seguridad","Fomentar que los responsables establezcan un sistema de gestión de seguridad para garantizar que cuenten con medidas de seguridad de la información","4.2 Desarrollar diagnósticos, herramientas y metodologías para el mantenimiento y mejora de los sistemas de gestión de seguridad","4.2.4","Prever medidas de seguridad en el tratamiento de los datos personales, considerando de ser el caso, la inclusión del tema de sistemas de gestión de seguridad y su operación (Integrantes del SNT)"]
["PRONADATOS4.2.5","PRONADATOS","Implementación y mantenimiento de un sistema de gestión de seguridad","Fomentar que los responsables establezcan un sistema de gestión de seguridad para garantizar que cuenten con medidas de seguridad de la información","4.2 Desarrollar diagnósticos, herramientas y metodologías para el mantenimiento y mejora de los sistemas de gestión de seguridad","4.2.5","Contribuir con experiencia técnica a la construcción de metodologías y herramientas que fortalezcan los sistemas de gestión de seguridad en los responsables. (INEGI)"]
["PRONADATOS4.2.6","PRONADATOS","Implementación y mantenimiento de un sistema de gestión de seguridad","Fomentar que los responsables establezcan un sistema de gestión de seguridad para garantizar que cuenten con medidas de seguridad de la información","4.2 Desarrollar diagnósticos, herramientas y metodologías para el mantenimiento y mejora de los sistemas de gestión de seguridad","4.2.6","Incluir en el desarrollo de la línea estratégica 5.2 Coordinación institucional del eje V. Estándares nacionales, internacionales y buenas/mejores prácticas en la materia la operación de los sistemas de gestión de seguridad de la información. (Organismos Garantes)"]
["PRONADATOS4.2.C1-C7 ","PRONADATOS","Implementación y mantenimiento de un sistema de gestión de seguridad","Fomentar que los responsables establezcan un sistema de gestión de seguridad para garantizar que cuenten con medidas de seguridad de la información","4.2 Desarrollar diagnósticos, herramientas y metodologías para el mantenimiento y mejora de los sistemas de gestión de seguridad","4.2.C1-C7 ","Fortalecer el desarrollo de herramientas y metodologías para el mantenimiento y mejora de los sistemas de gestión de seguridad con las líneas de acción de la línea trasversal C (Organismos Garantes)","Transversal"]
[{"$f":"CONCATENATE(B310,F310)","v":"PRONADATOS4.3.A1"},"PRONADATOS","Implementación y mantenimiento de un sistema de gestión de seguridad","Fomentar que los responsables establezcan un sistema de gestión de seguridad para garantizar que cuenten con medidas de seguridad de la información","4.3 Sensibilización, promoción, difusión y socialización de los sistemas de gestión de seguridad","4.3.A1","Identificar la temática sobre la cual se emprenderán actividades de difusión respecto a los sistemas de gestión de seguridad y, en este sentido, redactar y delimitar el mensaje a difundirse entre los sujetos obligados","Transversal"]
["PRONADATOS4.3.A2","PRONADATOS","Implementación y mantenimiento de un sistema de gestión de seguridad","Fomentar que los responsables establezcan un sistema de gestión de seguridad para garantizar que cuenten con medidas de seguridad de la información","4.3 Sensibilización, promoción, difusión y socialización de los sistemas de gestión de seguridad","4.3.A2","Delimitar target groups entre los sujetos obligados para que reciban el mensaje sobre los sistemas de gestión de seguridad. De ser posible, establecer la cantidad de personas a las que les es relevante el mensaje y a cuántos se propone llegar","Transversal"]
["PRONADATOS4.3.A3","PRONADATOS","Implementación y mantenimiento de un sistema de gestión de seguridad","Fomentar que los responsables establezcan un sistema de gestión de seguridad para garantizar que cuenten con medidas de seguridad de la información","4.3 Sensibilización, promoción, difusión y socialización de los sistemas de gestión de seguridad","4.3.A3","Conocer los medios de comunicación más efectivos entre los sujetos obligados para dar a conocer sobre los sistemas de gestión de seguridad","Transversal"]
["PRONADATOS4.3.A4","PRONADATOS","Implementación y mantenimiento de un sistema de gestión de seguridad","Fomentar que los responsables establezcan un sistema de gestión de seguridad para garantizar que cuenten con medidas de seguridad de la información","4.3 Sensibilización, promoción, difusión y socialización de los sistemas de gestión de seguridad","4.3.A4","Desarrollar materiales que permitan la sensibilización, promoción, difusión y socialización de los sistemas de gestión de seguridad entre los responsables, sin dejar de lado la pertinencia del target group y del medio de comunicación elegido.","Transversal"]
["PRONADATOS4.3.A5","PRONADATOS","Implementación y mantenimiento de un sistema de gestión de seguridad","Fomentar que los responsables establezcan un sistema de gestión de seguridad para garantizar que cuenten con medidas de seguridad de la información","4.3 Sensibilización, promoción, difusión y socialización de los sistemas de gestión de seguridad","4.3.A5","Dar seguimiento puntual y constante a las acciones que se desarrollen, para poder estimar con certeza el volumen de sujetos obligados que han recibido el mensaje sobre los sistemas de gestión de seguridad","Transversal"]
["PRONADATOS4.3.A6","PRONADATOS","Implementación y mantenimiento de un sistema de gestión de seguridad","Fomentar que los responsables establezcan un sistema de gestión de seguridad para garantizar que cuenten con medidas de seguridad de la información","4.3 Sensibilización, promoción, difusión y socialización de los sistemas de gestión de seguridad","4.3.A6","Verificar los resultados mediante mecanismos apropiados para evaluar la efectividad de las actividades de sensibilización, promoción, difusión y socialización de los sistemas de gestión de seguridad (mediante encuestas, entrevistas, grupos de enfoque, número de trámites, número de consultas, quejas o respuestas, etcétera)","Transversal"]
["PRONADATOS4.3.A7","PRONADATOS","Implementación y mantenimiento de un sistema de gestión de seguridad","Fomentar que los responsables establezcan un sistema de gestión de seguridad para garantizar que cuenten con medidas de seguridad de la información","4.3 Sensibilización, promoción, difusión y socialización de los sistemas de gestión de seguridad","4.3.A7","De ser necesario, realizar ajustes a las actividades de sensibilización, promoción, difusión y socialización de los sistemas de gestión de seguridad; para utilizar los medios y los mensajes más relevantes según las características del target group","Transversal"]
["PRONADATOS4.3.C1-C7 ","PRONADATOS","Implementación y mantenimiento de un sistema de gestión de seguridad","Fomentar que los responsables establezcan un sistema de gestión de seguridad para garantizar que cuenten con medidas de seguridad de la información","4.3 Sensibilización, promoción, difusión y socialización de los sistemas de gestión de seguridad","4.3.C1-C7 ","Fortalecer la sensibilización, promoción, difusión y socialización de los sistemas de seguridad con las líneas de acción de la línea trasversal C (Organismos Garantes)","Transversal"]
["PRONADATOS4.4.1 ","PRONADATOS","Implementación y mantenimiento de un sistema de gestión de seguridad","Fomentar que los responsables establezcan un sistema de gestión de seguridad para garantizar que cuenten con medidas de seguridad de la información","4.4 Crear y difundir material relacionado con la seguridad de datos personales","4.4.1 ","Identificar las medidas de seguridad que, por su frecuencia e impacto, son las más pertinentes en las instituciones públicas. (Integrantes del SNT)"]
["PRONADATOS4.4.2","PRONADATOS","Implementación y mantenimiento de un sistema de gestión de seguridad","Fomentar que los responsables establezcan un sistema de gestión de seguridad para garantizar que cuenten con medidas de seguridad de la información","4.4 Crear y difundir material relacionado con la seguridad de datos personales","4.4.2","Generar materiales para la difusión de las medidas de seguridad identificadas, así como del proceso general para el establecimiento de un sistema de seguridad. (Integrantes del SNT)"]
["PRONADATOS4.4.3","PRONADATOS","Implementación y mantenimiento de un sistema de gestión de seguridad","Fomentar que los responsables establezcan un sistema de gestión de seguridad para garantizar que cuenten con medidas de seguridad de la información","4.4 Crear y difundir material relacionado con la seguridad de datos personales","4.4.3","Compartir estos materiales en el marco del Sistema Nacional de Transparencia para su mayor y mejor aprovechamiento. (Integrantes del SNT)"]
["PRONADATOS4.4.4","PRONADATOS","Implementación y mantenimiento de un sistema de gestión de seguridad","Fomentar que los responsables establezcan un sistema de gestión de seguridad para garantizar que cuenten con medidas de seguridad de la información","4.4 Crear y difundir material relacionado con la seguridad de datos personales","4.4.4","Difundir los materiales identificando las temáticas, poblaciones y canales de comunicación adecuados (Integrantes del SNT)"]
["PRONADATOS4.4.C1-C7 ","PRONADATOS","Implementación y mantenimiento de un sistema de gestión de seguridad","Fomentar que los responsables establezcan un sistema de gestión de seguridad para garantizar que cuenten con medidas de seguridad de la información","4.4 Crear y difundir material relacionado con la seguridad de datos personales","4.4.C1-C7 ","Fortalecer la creación y difusión de material relacionado con la seguridad de datos personales con las líneas de acción de la línea trasversal C (Organismos Garantes)","Transversal"]
["PRONADATOS4.5.1 ","PRONADATOS","Implementación y mantenimiento de un sistema de gestión de seguridad","Fomentar que los responsables establezcan un sistema de gestión de seguridad para garantizar que cuenten con medidas de seguridad de la información","4.5 Sensibilización sobre los beneficios de contar con un sistema de gestión de seguridad en los responsables","4.5.1 ","Identificar los beneficios (adicionales al cumplimiento de los deberes y obligaciones de la normatividad en materia de protección de datos personales) que se generan en responsables al contar con un sistema de gestión de seguridad de la información. (Integrantes del SNT)"]
["PRONADATOS4.5.2","PRONADATOS","Implementación y mantenimiento de un sistema de gestión de seguridad","Fomentar que los responsables establezcan un sistema de gestión de seguridad para garantizar que cuenten con medidas de seguridad de la información","4.5 Sensibilización sobre los beneficios de contar con un sistema de gestión de seguridad en los responsables","4.5.2","Difundir los materiales identificando las temáticas, poblaciones y canales de comunicación adecuados. (Integrantes del SNT)"]
["PRONADATOS4.5.C1-C7 ","PRONADATOS","Implementación y mantenimiento de un sistema de gestión de seguridad","Fomentar que los responsables establezcan un sistema de gestión de seguridad para garantizar que cuenten con medidas de seguridad de la información","4.5 Sensibilización sobre los beneficios de contar con un sistema de gestión de seguridad en los responsables","4.5.C1-C7 ","Fortalecer la sensibilización sobre los beneficios de contar con un sistema de gestión de seguridad en los responsables con las líneas de acción de la línea trasversal C (Organismos Garantes)","Transversal"]
["PRONADATOS4.6.1 ","PRONADATOS","Implementación y mantenimiento de un sistema de gestión de seguridad","Fomentar que los responsables establezcan un sistema de gestión de seguridad para garantizar que cuenten con medidas de seguridad de la información","4.6 Difundir casos de éxito","4.6.1 ","Identificar a los responsables que por sus facultades y funciones pudieran estar implementando sistemas de gestión de seguridad de datos personales ejemplares y revisarlos para verificar su calidad. (Organismos garantes)"]
["PRONADATOS4.6.2","PRONADATOS","Implementación y mantenimiento de un sistema de gestión de seguridad","Fomentar que los responsables establezcan un sistema de gestión de seguridad para garantizar que cuenten con medidas de seguridad de la información","4.6 Difundir casos de éxito","4.6.2","En caso de no poder identificar un responsable que por sus facultades y funciones pudieran estar implementando sistemas de gestión de seguridad de datos personales ejemplares, emprender un programa piloto con un responsable que tenga un sistema de seguridad con áreas de oportunidad, para atenderlas en colaboración y así generar una institución que pueda servir de modelo para los demás responsables en el tratamiento de los datos personales. (Organismos garantes)"]
["PRONADATOS4.6.3","PRONADATOS","Implementación y mantenimiento de un sistema de gestión de seguridad","Fomentar que los responsables establezcan un sistema de gestión de seguridad para garantizar que cuenten con medidas de seguridad de la información","4.6 Difundir casos de éxito","4.6.3","Difundir los casos de éxito identificando las temáticas, poblaciones y canales de comunicación adecuados (Organismos garantes)"]
["PRONADATOS4.6.C1-C7 ","PRONADATOS","Implementación y mantenimiento de un sistema de gestión de seguridad","Fomentar que los responsables establezcan un sistema de gestión de seguridad para garantizar que cuenten con medidas de seguridad de la información","4.6 Difundir casos de éxito","4.6.C1-C7 ","Fortalecer la difusión de casos de éxito con las líneas de acción de la línea trasversal C (Organismos Garantes)","Transversal"]
["PRONADATOS4.7.1 ","PRONADATOS","Implementación y mantenimiento de un sistema de gestión de seguridad","Fomentar que los responsables establezcan un sistema de gestión de seguridad para garantizar que cuenten con medidas de seguridad de la información","4.7 Profesionalización encaminada a la cultura de la seguridad de los datos personales y el manejo de sistemas de gestión de seguridad","4.7.1 ","Generar perfiles técnicos para el manejo de sistemas de gestión de seguridad de datos personales (Integrantes del SNT)"]
["PRONADATOS4.7.2","PRONADATOS","Implementación y mantenimiento de un sistema de gestión de seguridad","Fomentar que los responsables establezcan un sistema de gestión de seguridad para garantizar que cuenten con medidas de seguridad de la información","4.7 Profesionalización encaminada a la cultura de la seguridad de los datos personales y el manejo de sistemas de gestión de seguridad","4.7.2","Difundir las certificaciones profesionales en materia de sistemas de gestión de seguridad de datos personales (Integrantes del SNT)"]
["PRONADATOS4.7.3","PRONADATOS","Implementación y mantenimiento de un sistema de gestión de seguridad","Fomentar que los responsables establezcan un sistema de gestión de seguridad para garantizar que cuenten con medidas de seguridad de la información","4.7 Profesionalización encaminada a la cultura de la seguridad de los datos personales y el manejo de sistemas de gestión de seguridad","4.7.3","Creación de roles adecuados y diferenciados para el manejo de sistemas gestión de seguridad de datos personales, incluyendo, en su caso, al oficial de protección de datos personales (Integrantes del SNT)"]
["PRONADATOS4.7.4","PRONADATOS","Implementación y mantenimiento de un sistema de gestión de seguridad","Fomentar que los responsables establezcan un sistema de gestión de seguridad para garantizar que cuenten con medidas de seguridad de la información","4.7 Profesionalización encaminada a la cultura de la seguridad de los datos personales y el manejo de sistemas de gestión de seguridad","4.7.4","Promover la gestión adecuada y obtención suficiente de recursos para el funcionamiento del sistema de gestión de seguridad de datos personales con base en los requerimientos institucionales sustantivos (Integrantes del SNT)"]
["PRONADATOS4.7.C1-C7 ","PRONADATOS","Implementación y mantenimiento de un sistema de gestión de seguridad","Fomentar que los responsables establezcan un sistema de gestión de seguridad para garantizar que cuenten con medidas de seguridad de la información","4.7 Profesionalización encaminada a la cultura de la seguridad de los datos personales y el manejo de sistemas de gestión de seguridad","4.7.C1-C7 ","Fortalecer la profesionalización de la cultura de la seguridad de los datos personales y el manejo de sistemas de gestión de seguridad con las líneas de acción de la línea trasversal C (Organismos Garantes)","Transversal"]
[{"$f":"CONCATENATE(B335,F335)","v":"PRONADATOS5.1.A1"},"PRONADATOS","Estándares nacionales, internacionales y buenas/mejores prácticas en la materia","Crear y facilitar la identificación de los incentivos que permiten a los responsables adoptar mejores prácticas en la protección de datos personales","5.1 Sensibilización, promoción, difusión y socialización sobre los mecanismos de buenas prácticas y la legislación","5.1.A1","Identificar la temática sobre los mecanismos de buenas prácticas a difundir y en este sentido, redactar y delimitar el mensaje a proporcionarse.","Transversal"]
["PRONADATOS5.1.A2","PRONADATOS","Estándares nacionales, internacionales y buenas/mejores prácticas en la materia","Crear y facilitar la identificación de los incentivos que permiten a los responsables adoptar mejores prácticas en la protección de datos personales","5.1 Sensibilización, promoción, difusión y socialización sobre los mecanismos de buenas prácticas y la legislación","5.1.A2","Delimitar target groups para que reciban el mensaje sobre los mecanismos de buenas prácticas. De ser posible, establecer la cantidad de responsables a los que es relevante el mensaje y a cuántos se propone llegar","Transversal"]
["PRONADATOS5.1.A3","PRONADATOS","Estándares nacionales, internacionales y buenas/mejores prácticas en la materia","Crear y facilitar la identificación de los incentivos que permiten a los responsables adoptar mejores prácticas en la protección de datos personales","5.1 Sensibilización, promoción, difusión y socialización sobre los mecanismos de buenas prácticas y la legislación","5.1.A3","Conocer los medios de comunicación más efectivos para difundir los mecanismos de buenas prácticas entre los responsables","Transversal"]
["PRONADATOS5.1.A4","PRONADATOS","Estándares nacionales, internacionales y buenas/mejores prácticas en la materia","Crear y facilitar la identificación de los incentivos que permiten a los responsables adoptar mejores prácticas en la protección de datos personales","5.1 Sensibilización, promoción, difusión y socialización sobre los mecanismos de buenas prácticas y la legislación","5.1.A4","Desarrollar materiales para transmitir el mensaje sobre los mecanismos de buenas prácticas y la legislación, tomando en cuenta siempre la pertinencia del medio de comunicación elegido, así como del target group","Transversal"]
["PRONADATOS5.1.A5","PRONADATOS","Estándares nacionales, internacionales y buenas/mejores prácticas en la materia","Crear y facilitar la identificación de los incentivos que permiten a los responsables adoptar mejores prácticas en la protección de datos personales","5.1 Sensibilización, promoción, difusión y socialización sobre los mecanismos de buenas prácticas y la legislación","5.1.A5","Dar seguimiento puntual a las acciones desarrolladas para poder estimar con certeza el volumen de responsables que han recibido el mensaje sobre los mecanismos de buenas prácticas","Transversal"]
["PRONADATOS5.1.A6","PRONADATOS","Estándares nacionales, internacionales y buenas/mejores prácticas en la materia","Crear y facilitar la identificación de los incentivos que permiten a los responsables adoptar mejores prácticas en la protección de datos personales","5.1 Sensibilización, promoción, difusión y socialización sobre los mecanismos de buenas prácticas y la legislación","5.1.A6","Verificar los resultados obtenidos en las actividades de sensibilización, promoción, difusión y socialización de los mecanismos de buenas prácticas; haciendo uso de encuestas, entrevistas, grupos de enfoque, número de trámites, número de consultas, quejas o respuestas, etc.","Transversal"]
["PRONADATOS5.1.A7","PRONADATOS","Estándares nacionales, internacionales y buenas/mejores prácticas en la materia","Crear y facilitar la identificación de los incentivos que permiten a los responsables adoptar mejores prácticas en la protección de datos personales","5.1 Sensibilización, promoción, difusión y socialización sobre los mecanismos de buenas prácticas y la legislación","5.1.A7","De ser necesario, realizar ajustes a las acciones emprendidas para utilizar los medios de comunicación y mensajes más relevantes sobre los mecanismos de buenas prácticas entre los responsables","Transversal"]
["PRONADATOS5.1.C1-C7 ","PRONADATOS","Estándares nacionales, internacionales y buenas/mejores prácticas en la materia","Crear y facilitar la identificación de los incentivos que permiten a los responsables adoptar mejores prácticas en la protección de datos personales","5.1 Sensibilización, promoción, difusión y socialización sobre los mecanismos de buenas prácticas y la legislación","5.1.C1-C7 ","Fortalecer la sensibilización, promoción, difusión y socialización sobre los mecanismos de buenas prácticas y la legislación con las líneas de acción de la línea trasversal C (Organismos Garantes)","Transversal"]
["PRONADATOS5.2.1 ","PRONADATOS","Estándares nacionales, internacionales y buenas/mejores prácticas en la materia","Crear y facilitar la identificación de los incentivos que permiten a los responsables adoptar mejores prácticas en la protección de datos personales","5.2 Coordinación interinstitucional con los actores relevantes de los mecanismos de incentivos","5.2.1 ","Realizar un estudio sobre referencias y prácticas nacionales e internacionales en la protección de datos personales en el sector público con énfasis en los incentivos que permitan su replicación. (INAI)"]
["PRONADATOS5.2.2 ","PRONADATOS","Estándares nacionales, internacionales y buenas/mejores prácticas en la materia","Crear y facilitar la identificación de los incentivos que permiten a los responsables adoptar mejores prácticas en la protección de datos personales","5.2 Coordinación interinstitucional con los actores relevantes de los mecanismos de incentivos","5.2.2 ","Definir el mecanismo de incentivo adecuado para que los responsables adopten esquemas de mejores prácticas en materia de protección de datos personales. (Organismos garantes)"]
["PRONADATOS5.2.3 ","PRONADATOS","Estándares nacionales, internacionales y buenas/mejores prácticas en la materia","Crear y facilitar la identificación de los incentivos que permiten a los responsables adoptar mejores prácticas en la protección de datos personales","5.2 Coordinación interinstitucional con los actores relevantes de los mecanismos de incentivos","5.2.3 ","Elaborar una lista de los actores relevantes para entablar un primer contacto de acercamiento y presentación del mecanismo propuesto. (Organismos garantes)"]
["PRONADATOS5.2.4 ","PRONADATOS","Estándares nacionales, internacionales y buenas/mejores prácticas en la materia","Crear y facilitar la identificación de los incentivos que permiten a los responsables adoptar mejores prácticas en la protección de datos personales","5.2 Coordinación interinstitucional con los actores relevantes de los mecanismos de incentivos","5.2.4 ","Reconocer las aportaciones que cada actor puede proveer al proyecto del establecimiento del mecanismo de incentivo y emprender la colaboración institucional necesaria para su desarrollo. (Organismos garantes)"]
["PRONADATOS5.2.C1-C7 ","PRONADATOS","Estándares nacionales, internacionales y buenas/mejores prácticas en la materia","Crear y facilitar la identificación de los incentivos que permiten a los responsables adoptar mejores prácticas en la protección de datos personales","5.2 Coordinación interinstitucional con los actores relevantes de los mecanismos de incentivos","5.2.C1-C7 ","Fortalecer la coordinación interinstitucional con los actores relevantes de los mecanismos de incentivos con las líneas de acción de la línea trasversal C (Organismos Garantes)","Transversal"]
["PRONADATOS5.3.1 ","PRONADATOS","Estándares nacionales, internacionales y buenas/mejores prácticas en la materia","Crear y facilitar la identificación de los incentivos que permiten a los responsables adoptar mejores prácticas en la protección de datos personales","5.3 Visibilizar los resultados de las mejores prácticas","5.3.1 ","Identificar y publicar los resultados y experiencias más relevantes sobre esquemas de mejores prácticas de forma sectorizada en materia de protección de datos personales que han sido producidos por los responsables. (Integrantes del SNT)"]
["PRONADATOS5.3.2 ","PRONADATOS","Estándares nacionales, internacionales y buenas/mejores prácticas en la materia","Crear y facilitar la identificación de los incentivos que permiten a los responsables adoptar mejores prácticas en la protección de datos personales","5.3 Visibilizar los resultados de las mejores prácticas","5.3.2 ","Difundir los beneficios que generan la adopción de mejores prácticas en materia de protección de datos personales que son promovidas desde los Organismos Garantes. (Integrantes del SNT)"]
[{"$f":"CONCATENATE(B350,F350)","v":"PRONADATOS5.3.A1"},"PRONADATOS","Estándares nacionales, internacionales y buenas/mejores prácticas en la materia","Crear y facilitar la identificación de los incentivos que permiten a los responsables adoptar mejores prácticas en la protección de datos personales","5.3 Visibilizar los resultados de las mejores prácticas","5.3.A1","Identificar la temática sobre los mecanismos de buenas prácticas a difundir y en este sentido, redactar y delimitar el mensaje a proporcionarse.","Transversal"]
["PRONADATOS5.3.A2","PRONADATOS","Estándares nacionales, internacionales y buenas/mejores prácticas en la materia","Crear y facilitar la identificación de los incentivos que permiten a los responsables adoptar mejores prácticas en la protección de datos personales","5.3 Visibilizar los resultados de las mejores prácticas","5.3.A2","Delimitar target groups para que reciban el mensaje sobre los mecanismos de buenas prácticas. De ser posible, establecer la cantidad de responsables a los que es relevante el mensaje y a cuántos se propone llegar","Transversal"]
["PRONADATOS5.3.A3","PRONADATOS","Estándares nacionales, internacionales y buenas/mejores prácticas en la materia","Crear y facilitar la identificación de los incentivos que permiten a los responsables adoptar mejores prácticas en la protección de datos personales","5.3 Visibilizar los resultados de las mejores prácticas","5.3.A3","Conocer los medios de comunicación más efectivos para difundir los mecanismos de buenas prácticas entre los responsables","Transversal"]
["PRONADATOS5.3.A4","PRONADATOS","Estándares nacionales, internacionales y buenas/mejores prácticas en la materia","Crear y facilitar la identificación de los incentivos que permiten a los responsables adoptar mejores prácticas en la protección de datos personales","5.3 Visibilizar los resultados de las mejores prácticas","5.3.A4","Desarrollar materiales para transmitir el mensaje sobre los mecanismos de buenas prácticas y la legislación, tomando en cuenta siempre la pertinencia del medio de comunicación elegido, así como del target group","Transversal"]
["PRONADATOS5.3.A5","PRONADATOS","Estándares nacionales, internacionales y buenas/mejores prácticas en la materia","Crear y facilitar la identificación de los incentivos que permiten a los responsables adoptar mejores prácticas en la protección de datos personales","5.3 Visibilizar los resultados de las mejores prácticas","5.3.A5","Dar seguimiento puntual a las acciones desarrolladas para poder estimar con certeza el volumen de responsables que han recibido el mensaje sobre los mecanismos de buenas prácticas","Transversal"]
["PRONADATOS5.3.A6","PRONADATOS","Estándares nacionales, internacionales y buenas/mejores prácticas en la materia","Crear y facilitar la identificación de los incentivos que permiten a los responsables adoptar mejores prácticas en la protección de datos personales","5.3 Visibilizar los resultados de las mejores prácticas","5.3.A6","Verificar los resultados obtenidos en las actividades de sensibilización, promoción, difusión y socialización de los mecanismos de buenas prácticas; haciendo uso de encuestas, entrevistas, grupos de enfoque, número de trámites, número de consultas, quejas o respuestas, etc.","Transversal"]
["PRONADATOS5.3.A7","PRONADATOS","Estándares nacionales, internacionales y buenas/mejores prácticas en la materia","Crear y facilitar la identificación de los incentivos que permiten a los responsables adoptar mejores prácticas en la protección de datos personales","5.3 Visibilizar los resultados de las mejores prácticas","5.3.A7","De ser necesario, realizar ajustes a las acciones emprendidas para utilizar los medios de comunicación y mensajes más relevantes sobre los mecanismos de buenas prácticas entre los responsables","Transversal"]
["PRONADATOS5.3.C1-C7 ","PRONADATOS","Estándares nacionales, internacionales y buenas/mejores prácticas en la materia","Crear y facilitar la identificación de los incentivos que permiten a los responsables adoptar mejores prácticas en la protección de datos personales","5.3 Visibilizar los resultados de las mejores prácticas","5.3.C1-C7 ","Fortalecer la visibilización de los resultados de las mejores prácticas con las líneas de acción de la línea trasversal C (Organismos Garantes)","Transversal"]
["PRONADATOS5.4.1 ","PRONADATOS","Estándares nacionales, internacionales y buenas/mejores prácticas en la materia","Crear y facilitar la identificación de los incentivos que permiten a los responsables adoptar mejores prácticas en la protección de datos personales","5.4 Desarrollo de acciones de involucramiento de la sociedad civil organizada en los mecanismos de incentivo para la adopción de esquemas de mejores prácticas","5.4.1 ","Privilegiar el establecimiento de contacto con los secretariados técnicos locales y/o con los responsables de los mecanismos de participación ciudadana de aquellos responsables que dan un tratamiento constante a datos personales. (Organismos garantes)"]
["PRONADATOS5.4.2 ","PRONADATOS","Estándares nacionales, internacionales y buenas/mejores prácticas en la materia","Crear y facilitar la identificación de los incentivos que permiten a los responsables adoptar mejores prácticas en la protección de datos personales","5.4 Desarrollo de acciones de involucramiento de la sociedad civil organizada en los mecanismos de incentivo para la adopción de esquemas de mejores prácticas","5.4.2 ","Dotar de información referente a la adopción de esquemas de mejores prácticas en materia de protección de los datos personales a los actores relevantes de la sociedad civil. (Organismos garantes)"]
["PRONADATOS5.4.3 ","PRONADATOS","Estándares nacionales, internacionales y buenas/mejores prácticas en la materia","Crear y facilitar la identificación de los incentivos que permiten a los responsables adoptar mejores prácticas en la protección de datos personales","5.4 Desarrollo de acciones de involucramiento de la sociedad civil organizada en los mecanismos de incentivo para la adopción de esquemas de mejores prácticas","5.4.3 ","Impulsar el establecimiento de compromisos que privilegien el seguimiento conjunto de la adopción de esquemas de mejores prácticas en materia de protección de datos personales. (Integrantes del SNT)"]
["PRONADATOS5.4.4 ","PRONADATOS","Estándares nacionales, internacionales y buenas/mejores prácticas en la materia","Crear y facilitar la identificación de los incentivos que permiten a los responsables adoptar mejores prácticas en la protección de datos personales","5.4 Desarrollo de acciones de involucramiento de la sociedad civil organizada en los mecanismos de incentivo para la adopción de esquemas de mejores prácticas","5.4.4 ","Desarrollar mecanismos de reconocimiento que sean otorgados por la sociedad civil a las buenas/mejores prácticas desarrolladas por los organismos garantes de las entidades federativas. (Organismos garantes)"]
["PRONADATOS5.4.C1-C7 ","PRONADATOS","Estándares nacionales, internacionales y buenas/mejores prácticas en la materia","Crear y facilitar la identificación de los incentivos que permiten a los responsables adoptar mejores prácticas en la protección de datos personales","5.4 Desarrollo de acciones de involucramiento de la sociedad civil organizada en los mecanismos de incentivo para la adopción de esquemas de mejores prácticas","5.4.C1-C7 ","Fortalecer el involucramiento de la sociedad civil organizada en los mecanismos de incentivo para la adopción de esquemas de mejores prácticas con las líneas de acción de la línea trasversal C (Organismos Garantes)","Transversal"]
["PRONADATOS6.1.1 ","PRONADATOS","Monitoreo, seguimiento, y verificación de metas","Conocer el desempeño de los responsables en la aplicación de la LGPDPPSO o las leyes estatales en la materia","6.1 Identificación de mecanismos de seguimiento y evaluación existentes en los responsables para el cumplimiento de la LGPDPPSO","6.1.1 ","Identificar las obligaciones, deberes, principios y responsabilidades a los que la LGPDPPSO y las legislaciones locales en la materia supeditan a los responsables. (Organismos garantes)"]
[{"$f":"CONCATENATE(B364,F364)","v":"PRONADATOS6.1.2 "},"PRONADATOS","Monitoreo, seguimiento, y verificación de metas","Conocer el desempeño de los responsables en la aplicación de la LGPDPPSO o las leyes estatales en la materia","6.1 Identificación de mecanismos de seguimiento y evaluación existentes en los responsables para el cumplimiento de la LGPDPPSO","6.1.2 ","Recopilar y enlistar las posibles fuentes de información que contengan datos valiosos para la identificación de acciones cumplidas en materia de protección de datos personales. (Organismos garantes)"]
["PRONADATOS6.1.3 ","PRONADATOS","Monitoreo, seguimiento, y verificación de metas","Conocer el desempeño de los responsables en la aplicación de la LGPDPPSO o las leyes estatales en la materia","6.1 Identificación de mecanismos de seguimiento y evaluación existentes en los responsables para el cumplimiento de la LGPDPPSO","6.1.3 ","Contactar a los generadores de la información y verificar los métodos de recolección para asegurar la calidad de la misma. (Organismos garantes)"]
["PRONADATOS6.1.C1-C7","PRONADATOS","Monitoreo, seguimiento, y verificación de metas","Conocer el desempeño de los responsables en la aplicación de la LGPDPPSO o las leyes estatales en la materia","6.1 Identificación de mecanismos de seguimiento y evaluación existentes en los responsables para el cumplimiento de la LGPDPPSO","6.1.C1-C7"," Fortalecer la identificación de mecanismos de seguimiento y evaluación existentes en los responsables para el cumplimiento de la LGPDPPSO con las líneas de acción de la línea trasversal C (Organismos Garantes)","Transversal"]
[{"$f":"CONCATENATE(B367,F367)","v":"PRONADATOS6.2.A1"},"PRONADATOS","Monitoreo, seguimiento, y verificación de metas","Conocer el desempeño de los responsables en la aplicación de la LGPDPPSO o las leyes estatales en la materia","6.2 Sensibilización: entre los responsables y organismos garantes, para resaltar la importancia y utilidad de generar información que permita dar seguimiento a los indicadores establecidos para el cumplimiento de la LGPDPPSO en los responsables","6.2.A1","Identificar la temática sobre la cual se emprenderán las actividades de difusión para resaltar la importancia y utilidad de generar información que permita dar seguimiento a los indicadores establecidos para el cumplimiento de la LGPDPPSO y en este sentido, redactar y delimitar el mensaje a proporcionarse.","Transversal"]
["PRONADATOS6.2.A2","PRONADATOS","Monitoreo, seguimiento, y verificación de metas","Conocer el desempeño de los responsables en la aplicación de la LGPDPPSO o las leyes estatales en la materia","6.2 Sensibilización: entre los responsables y organismos garantes, para resaltar la importancia y utilidad de generar información que permita dar seguimiento a los indicadores establecidos para el cumplimiento de la LGPDPPSO en los responsables","6.2.A2","Delimitar target groups según las características de los servidores públicos para que reciban el mensaje sobre el seguimiento y la verificación de metas. De ser posible, establecer la cantidad de servidores a los que es relevante el mensaje y a cuántos se propone llegar","Transversal"]
["PRONADATOS6.2.A3","PRONADATOS","Monitoreo, seguimiento, y verificación de metas","Conocer el desempeño de los responsables en la aplicación de la LGPDPPSO o las leyes estatales en la materia","6.2 Sensibilización: entre los responsables y organismos garantes, para resaltar la importancia y utilidad de generar información que permita dar seguimiento a los indicadores establecidos para el cumplimiento de la LGPDPPSO en los responsables","6.2.A3","Conocer los medios de comunicación más efectivos para difundir el tema del seguimiento y la verificación de metas entre los servidores públicos","Transversal"]
["PRONADATOS6.2.A4","PRONADATOS","Monitoreo, seguimiento, y verificación de metas","Conocer el desempeño de los responsables en la aplicación de la LGPDPPSO o las leyes estatales en la materia","6.2 Sensibilización: entre los responsables y organismos garantes, para resaltar la importancia y utilidad de generar información que permita dar seguimiento a los indicadores establecidos para el cumplimiento de la LGPDPPSO en los responsables","6.2.A4","Desarrollar los materiales que transmitan el mensaje sobre seguimiento y la verificación de metas, tomando en cuenta siempre la pertinencia del medio de comunicación elegido, así como de la población de interés.","Transversal"]
["PRONADATOS6.2.A5","PRONADATOS","Monitoreo, seguimiento, y verificación de metas","Conocer el desempeño de los responsables en la aplicación de la LGPDPPSO o las leyes estatales en la materia","6.2 Sensibilización: entre los responsables y organismos garantes, para resaltar la importancia y utilidad de generar información que permita dar seguimiento a los indicadores establecidos para el cumplimiento de la LGPDPPSO en los responsables","6.2.A5","Dar seguimiento puntual a las acciones desarrolladas para poder estimar con certeza el volumen de servidores públicos que han recibido el mensaje sobre el seguimiento y la verificación de metas en los responsables","Transversal"]
["PRONADATOS6.2.A6","PRONADATOS","Monitoreo, seguimiento, y verificación de metas","Conocer el desempeño de los responsables en la aplicación de la LGPDPPSO o las leyes estatales en la materia","6.2 Sensibilización: entre los responsables y organismos garantes, para resaltar la importancia y utilidad de generar información que permita dar seguimiento a los indicadores establecidos para el cumplimiento de la LGPDPPSO en los responsables","6.2.A6","Verificar los resultados obtenidos en las actividades implementadas para la sensibilización de los responsables y organismos garantes sobre el seguimiento y la verificación de metas; haciendo uso de encuestas, entrevistas, grupos de enfoque, número de trámites, número de consultas, quejas o respuestas, etc.","Transversal"]
["PRONADATOS6.2.A7","PRONADATOS","Monitoreo, seguimiento, y verificación de metas","Conocer el desempeño de los responsables en la aplicación de la LGPDPPSO o las leyes estatales en la materia","6.2 Sensibilización: entre los responsables y organismos garantes, para resaltar la importancia y utilidad de generar información que permita dar seguimiento a los indicadores establecidos para el cumplimiento de la LGPDPPSO en los responsables","6.2.A7","De ser necesario, realizar ajustes a las acciones emprendidas para utilizar los medios de comunicación y mensajes más relevantes sobre el seguimiento y la verificación de metas","Transversal"]
["PRONADATOS6.2.C1-C7 ","PRONADATOS","Monitoreo, seguimiento, y verificación de metas","Conocer el desempeño de los responsables en la aplicación de la LGPDPPSO o las leyes estatales en la materia","6.2 Sensibilización: entre los responsables y organismos garantes, para resaltar la importancia y utilidad de generar información que permita dar seguimiento a los indicadores establecidos para el cumplimiento de la LGPDPPSO en los responsables","6.2.C1-C7 ","Fortalecer la sensibilización entre los responsables y organismos garantes respecto a los indicadores establecidos para el cumplimiento de la LGPDPPSO con las líneas de acción de la línea trasversal C (Organismos Garantes)","Transversal"]
["PRONADATOS6.3.1 ","PRONADATOS","Monitoreo, seguimiento, y verificación de metas","Conocer el desempeño de los responsables en la aplicación de la LGPDPPSO o las leyes estatales en la materia","6.3 Desarrollo de instrumentos para compilación y sistematización de información del cumplimiento de la LGPDPPSO por parte de los responsables","6.3.1 ","Identificar a los sectores y responsables que por sus facultades y funciones pudieran contar con un mayor volumen de información en el tratamiento de datos personales. (Organismos garantes)"]
["PRONADATOS6.3.2","PRONADATOS","Monitoreo, seguimiento, y verificación de metas","Conocer el desempeño de los responsables en la aplicación de la LGPDPPSO o las leyes estatales en la materia","6.3 Desarrollo de instrumentos para compilación y sistematización de información del cumplimiento de la LGPDPPSO por parte de los responsables","6.3.2"," Establecer las variables de interés que podrán servir como datos primarios para el sistema de seguimiento y evaluación. (Organismos garantes)"]
["PRONADATOS6.3.3 ","PRONADATOS","Monitoreo, seguimiento, y verificación de metas","Conocer el desempeño de los responsables en la aplicación de la LGPDPPSO o las leyes estatales en la materia","6.3 Desarrollo de instrumentos para compilación y sistematización de información del cumplimiento de la LGPDPPSO por parte de los responsables","6.3.3 ","Desarrollar los formatos que más se adecuen para capturar la información que se requiere como insumo del sistema de seguimiento y evaluación. (Organismos garantes)"]
["PRONADATOS6.3.4 ","PRONADATOS","Monitoreo, seguimiento, y verificación de metas","Conocer el desempeño de los responsables en la aplicación de la LGPDPPSO o las leyes estatales en la materia","6.3 Desarrollo de instrumentos para compilación y sistematización de información del cumplimiento de la LGPDPPSO por parte de los responsables","6.3.4 ","Desarrollar indicadores relevantes con base en las fuentes de información identificadas (Organismos garantes)"]
["PRONADATOS6.3.C1-C7 ","PRONADATOS","Monitoreo, seguimiento, y verificación de metas","Conocer el desempeño de los responsables en la aplicación de la LGPDPPSO o las leyes estatales en la materia","6.3 Desarrollo de instrumentos para compilación y sistematización de información del cumplimiento de la LGPDPPSO por parte de los responsables","6.3.C1-C7 ","Fortalecer el desarrollo de instrumentos para compilación y sistematización de información del cumplimiento de la LGPDPPSO con las líneas de acción de la línea trasversal C (Organismos Garantes)","Transversal"]
[{"$f":"CONCATENATE(B380,F380)","v":"PRONADATOS6.4.B1"},"PRONADATOS","Monitoreo, seguimiento, y verificación de metas","Conocer el desempeño de los responsables en la aplicación de la LGPDPPSO o las leyes estatales en la materia","6.4 Fortalecimiento de los Organismos Garantes para implementar el sistema de seguimiento y evaluación del desempeño de los responsables en el cumplimiento de la LGPDPPSO","6.4.B1","Desarrollar capacidades en los servidores públicos para obtener información sobre sistemas de seguimiento y evaluación del desempeño en el cumplimiento de la LGPDPPSO","Transversal"]
["PRONADATOS6.4.B2","PRONADATOS","Monitoreo, seguimiento, y verificación de metas","Conocer el desempeño de los responsables en la aplicación de la LGPDPPSO o las leyes estatales en la materia","6.4 Fortalecimiento de los Organismos Garantes para implementar el sistema de seguimiento y evaluación del desempeño de los responsables en el cumplimiento de la LGPDPPSO","6.4.B2","Proveer a los servidores públicos de las capacidades que requieren para planear y establecer objetivos sobre la implementación del sistema de seguimiento y evaluación del desempeño en el cumplimiento de la LGPDPPSO","Transversal"]
["PRONADATOS6.4.B3","PRONADATOS","Monitoreo, seguimiento, y verificación de metas","Conocer el desempeño de los responsables en la aplicación de la LGPDPPSO o las leyes estatales en la materia","6.4 Fortalecimiento de los Organismos Garantes para implementar el sistema de seguimiento y evaluación del desempeño de los responsables en el cumplimiento de la LGPDPPSO","6.4.B3","Dotar a los servidores públicos de las capacidades que les permitan entablar relaciones de colaboración con otros servidores públicos para la implementación del sistema de seguimiento y evaluación del desempeño en el cumplimiento de la LGPDPPSO","Transversal"]
["PRONADATOS6.4.B4","PRONADATOS","Monitoreo, seguimiento, y verificación de metas","Conocer el desempeño de los responsables en la aplicación de la LGPDPPSO o las leyes estatales en la materia","6.4 Fortalecimiento de los Organismos Garantes para implementar el sistema de seguimiento y evaluación del desempeño de los responsables en el cumplimiento de la LGPDPPSO","6.4.B4","Garantizar el apoyo institucional a las acciones que los servidores públicos realicen, en el marco de sus atribuciones y los principios de su organización, para la implementación del sistema de seguimiento y evaluación del desempeño de los responsables en el cumplimiento de la LGPDPPSO","Transversal"]
["PRONADATOS6.4.B5","PRONADATOS","Monitoreo, seguimiento, y verificación de metas","Conocer el desempeño de los responsables en la aplicación de la LGPDPPSO o las leyes estatales en la materia","6.4 Fortalecimiento de los Organismos Garantes para implementar el sistema de seguimiento y evaluación del desempeño de los responsables en el cumplimiento de la LGPDPPSO","6.4.B5","Proporcionar a los servidores públicos las capacidades que les permitan aprovechar la información que se genera sobre sus actividades en la implementación del sistema de seguimiento y evaluación del desempeño en el cumplimiento de la LGPDPPSO y su incorporación para el mejoramiento de su desempeño","Transversal"]
["PRONADATOS6.4.B6","PRONADATOS","Monitoreo, seguimiento, y verificación de metas","Conocer el desempeño de los responsables en la aplicación de la LGPDPPSO o las leyes estatales en la materia","6.4 Fortalecimiento de los Organismos Garantes para implementar el sistema de seguimiento y evaluación del desempeño de los responsables en el cumplimiento de la LGPDPPSO","6.4.B6","Promover el desarrollo de procesos que doten a los integrantes del SNT de información sobre la implementación del sistema de seguimiento y evaluación del desempeño de los responsables en el cumplimiento de la LGPDPPSO","Transversal"]
["PRONADATOS6.4.B7","PRONADATOS","Monitoreo, seguimiento, y verificación de metas","Conocer el desempeño de los responsables en la aplicación de la LGPDPPSO o las leyes estatales en la materia","6.4 Fortalecimiento de los Organismos Garantes para implementar el sistema de seguimiento y evaluación del desempeño de los responsables en el cumplimiento de la LGPDPPSO","6.4.B7","Desarrollar en los integrantes del SNT capacidades para la definición de objetivos claros en la implementación del sistema de seguimiento y evaluación del desempeño de los responsables en el cumplimiento de la LGPDPPSO","Transversal"]
["PRONADATOS6.4.B8","PRONADATOS","Monitoreo, seguimiento, y verificación de metas","Conocer el desempeño de los responsables en la aplicación de la LGPDPPSO o las leyes estatales en la materia","6.4 Fortalecimiento de los Organismos Garantes para implementar el sistema de seguimiento y evaluación del desempeño de los responsables en el cumplimiento de la LGPDPPSO","6.4.B8","Crear las condiciones en cada integrante del SNT que le permitan relacionarse y establecer los convenios que convengan en la implementación del sistema de seguimiento y evaluación del desempeño en el cumplimiento de la LGPDPPSO","Transversal"]
["PRONADATOS6.4.B9","PRONADATOS","Monitoreo, seguimiento, y verificación de metas","Conocer el desempeño de los responsables en la aplicación de la LGPDPPSO o las leyes estatales en la materia","6.4 Fortalecimiento de los Organismos Garantes para implementar el sistema de seguimiento y evaluación del desempeño de los responsables en el cumplimiento de la LGPDPPSO","6.4.B9","Crear los instrumentos organizacionales en el quehacer de cada institución integrante del SNT para la implementación del sistema de seguimiento y evaluación del desempeño de los responsables en el cumplimiento de la LGPDPPSO","Transversal"]
["PRONADATOS6.4.B10","PRONADATOS","Monitoreo, seguimiento, y verificación de metas","Conocer el desempeño de los responsables en la aplicación de la LGPDPPSO o las leyes estatales en la materia","6.4 Fortalecimiento de los Organismos Garantes para implementar el sistema de seguimiento y evaluación del desempeño de los responsables en el cumplimiento de la LGPDPPSO","6.4.B10","Contar con procesos institucionales de monitoreo, evaluación y mejora continua en la implementación del sistema de seguimiento y evaluación del desempeño de los responsables en el cumplimiento de la LGPDPPSO","Transversal"]
["PRONADATOS6.4.B11","PRONADATOS","Monitoreo, seguimiento, y verificación de metas","Conocer el desempeño de los responsables en la aplicación de la LGPDPPSO o las leyes estatales en la materia","6.4 Fortalecimiento de los Organismos Garantes para implementar el sistema de seguimiento y evaluación del desempeño de los responsables en el cumplimiento de la LGPDPPSO","6.4.B11","Desarrollar mecanismos de comunicación de información en materia de la implementación del sistema de seguimiento y evaluación del desempeño en el cumplimiento de la LGPDPPSO","Transversal"]
["PRONADATOS6.4.B12","PRONADATOS","Monitoreo, seguimiento, y verificación de metas","Conocer el desempeño de los responsables en la aplicación de la LGPDPPSO o las leyes estatales en la materia","6.4 Fortalecimiento de los Organismos Garantes para implementar el sistema de seguimiento y evaluación del desempeño de los responsables en el cumplimiento de la LGPDPPSO","6.4.B12","Establecer metas en materia de la implementación del sistema de seguimiento y evaluación del desempeño en el cumplimiento de la LGPDPPSO, de manera conjunta entre organismos garantes y sus respectivos responsables","Transversal"]
["PRONADATOS6.4.B13","PRONADATOS","Monitoreo, seguimiento, y verificación de metas","Conocer el desempeño de los responsables en la aplicación de la LGPDPPSO o las leyes estatales en la materia","6.4 Fortalecimiento de los Organismos Garantes para implementar el sistema de seguimiento y evaluación del desempeño de los responsables en el cumplimiento de la LGPDPPSO","6.4.B13","Fomentar la creación de mecanismos de colaboración entre responsables o de responsables con otras instituciones para fortalecer el papel de los Organismos Garantes en la implementación del sistema de seguimiento y evaluación del desempeño en el cumplimiento de la LGPDPPSO","Transversal"]
["PRONADATOS6.4.B14","PRONADATOS","Monitoreo, seguimiento, y verificación de metas","Conocer el desempeño de los responsables en la aplicación de la LGPDPPSO o las leyes estatales en la materia","6.4 Fortalecimiento de los Organismos Garantes para implementar el sistema de seguimiento y evaluación del desempeño de los responsables en el cumplimiento de la LGPDPPSO","6.4.B14","Promover la integración de las acciones y deberes en la implementación del sistema de seguimiento y evaluación del desempeño en el cumplimiento de la LGPDPPSO, en los instrumentos organizacionales de los responsables","Transversal"]
["PRONADATOS6.4.B15","PRONADATOS","Monitoreo, seguimiento, y verificación de metas","Conocer el desempeño de los responsables en la aplicación de la LGPDPPSO o las leyes estatales en la materia","6.4 Fortalecimiento de los Organismos Garantes para implementar el sistema de seguimiento y evaluación del desempeño de los responsables en el cumplimiento de la LGPDPPSO","6.4.B15","Contar con sistemas de monitoreo y evaluación de la implementación del sistema de seguimiento y evaluación del desempeño de los responsables en el cumplimiento de la LGPDPPSO","Transversal"]
["PRONADATOS6.4.B16","PRONADATOS","Monitoreo, seguimiento, y verificación de metas","Conocer el desempeño de los responsables en la aplicación de la LGPDPPSO o las leyes estatales en la materia","6.4 Fortalecimiento de los Organismos Garantes para implementar el sistema de seguimiento y evaluación del desempeño de los responsables en el cumplimiento de la LGPDPPSO","6.4.B16","Desarrollar los mecanismos que permitan al SNT conocer, analizar y tomar acciones en la implementación  del sistema de seguimiento y evaluación del desempeño de los responsables en el cumplimiento de la LGPDPPSO","Transversal"]
["PRONADATOS6.4.B17","PRONADATOS","Monitoreo, seguimiento, y verificación de metas","Conocer el desempeño de los responsables en la aplicación de la LGPDPPSO o las leyes estatales en la materia","6.4 Fortalecimiento de los Organismos Garantes para implementar el sistema de seguimiento y evaluación del desempeño de los responsables en el cumplimiento de la LGPDPPSO","6.4.B17","Promover el establecimiento de objetivos del SNT en la implementación del sistema de seguimiento y evaluación del desempeño de los responsables en el cumplimiento de la LGPDPPSO","Transversal"]
["PRONADATOS6.4.B18","PRONADATOS","Monitoreo, seguimiento, y verificación de metas","Conocer el desempeño de los responsables en la aplicación de la LGPDPPSO o las leyes estatales en la materia","6.4 Fortalecimiento de los Organismos Garantes para implementar el sistema de seguimiento y evaluación del desempeño de los responsables en el cumplimiento de la LGPDPPSO","6.4.B18","Buscar el establecimiento de marcos de colaboración entre el SNT y los actores más relevantes para fortalecer la participación de los Organismos Garantes en la implementación del sistema de seguimiento y evaluación del desempeño de los responsables en el cumplimiento de la LGPDPPSO","Transversal"]
["PRONADATOS6.4.B19","PRONADATOS","Monitoreo, seguimiento, y verificación de metas","Conocer el desempeño de los responsables en la aplicación de la LGPDPPSO o las leyes estatales en la materia","6.4 Fortalecimiento de los Organismos Garantes para implementar el sistema de seguimiento y evaluación del desempeño de los responsables en el cumplimiento de la LGPDPPSO","6.4.B19","Proveer al SNT de los instrumentos que le permitan desarrollar sus acciones con el apoyo institucional de sus integrantes para la implementación del sistema de seguimiento y evaluación del desempeño en el cumplimiento de la LGPDPPSO","Transversal"]
["PRONADATOS6.4.B20","PRONADATOS","Monitoreo, seguimiento, y verificación de metas","Conocer el desempeño de los responsables en la aplicación de la LGPDPPSO o las leyes estatales en la materia","6.4 Fortalecimiento de los Organismos Garantes para implementar el sistema de seguimiento y evaluación del desempeño de los responsables en el cumplimiento de la LGPDPPSO","6.4.B20","Crear los mecanismos que permitan al SNT monitorear, evaluar y ajustar las acciones que emprende en la implementación del sistema de seguimiento y evaluación del desempeño de los responsables en el cumplimiento de la LGPDPPSO","Transversal"]
["PRONADATOS6.4.C1-C7 ","PRONADATOS","Monitoreo, seguimiento, y verificación de metas","Conocer el desempeño de los responsables en la aplicación de la LGPDPPSO o las leyes estatales en la materia","6.4 Fortalecimiento de los Organismos Garantes para implementar el sistema de seguimiento y evaluación del desempeño de los responsables en el cumplimiento de la LGPDPPSO","6.4.C1-C7 ","Fortalecer a los Organismos Garantes para implementar el sistema de seguimiento y evaluación del desempeño de los responsables en el cumplimiento de la LGPDPPSO con las líneas de acción de la línea trasversal C (Organismos Garantes)","Transversal"]
["PRONADATOS6.5.1 ","PRONADATOS","Monitoreo, seguimiento, y verificación de metas","Conocer el desempeño de los responsables en la aplicación de la LGPDPPSO o las leyes estatales en la materia","6.5 Desarrollo específico de la normatividad: generar el cuerpo normativo que regirá el sistema de evaluación del desempeño de los responsables en el cumplimiento de la LGPDPPSO (lineamientos, manuales, programa de seguimiento, etcétera)","6.5.1 ","Identificar las características de los responsables (sujetos obligados) para el desarrollo de la norma a emitir. (Organismos garantes)","Transversal"]
["PRONADATOS6.5.2 ","PRONADATOS","Monitoreo, seguimiento, y verificación de metas","Conocer el desempeño de los responsables en la aplicación de la LGPDPPSO o las leyes estatales en la materia","6.5 Desarrollo específico de la normatividad: generar el cuerpo normativo que regirá el sistema de evaluación del desempeño de los responsables en el cumplimiento de la LGPDPPSO (lineamientos, manuales, programa de seguimiento, etcétera)","6.5.2 ","Definición de los criterios básicos, diseño de indicadores, estándares y formas de evaluación de los responsables (sujetos obligados) . (Organismos garantes)"]
["PRONADATOS6.5.3 ","PRONADATOS","Monitoreo, seguimiento, y verificación de metas","Conocer el desempeño de los responsables en la aplicación de la LGPDPPSO o las leyes estatales en la materia","6.5 Desarrollo específico de la normatividad: generar el cuerpo normativo que regirá el sistema de evaluación del desempeño de los responsables en el cumplimiento de la LGPDPPSO (lineamientos, manuales, programa de seguimiento, etcétera)","6.5.3 ","Evaluar los criterios, indicadores, estándares y formas de evaluación una vez que hayan sido desarrollados y aplicados para considerar si se está generando la información necesaria para el monitoreo, seguimiento y verificación. (Organismos garantes)"]
["PRONADATOS6.5.4 ","PRONADATOS","Monitoreo, seguimiento, y verificación de metas","Conocer el desempeño de los responsables en la aplicación de la LGPDPPSO o las leyes estatales en la materia","6.5 Desarrollo específico de la normatividad: generar el cuerpo normativo que regirá el sistema de evaluación del desempeño de los responsables en el cumplimiento de la LGPDPPSO (lineamientos, manuales, programa de seguimiento, etcétera)","6.5.4 ","Impulsar reformas en aquellas disposiciones que generen obstáculos para la consecución y evaluación de las metas que la el sistema de evaluación y monitoreo se propone. (Organismos garantes)"]
["PRONADATOS6.5.5 ","PRONADATOS","Monitoreo, seguimiento, y verificación de metas","Conocer el desempeño de los responsables en la aplicación de la LGPDPPSO o las leyes estatales en la materia","6.5 Desarrollo específico de la normatividad: generar el cuerpo normativo que regirá el sistema de evaluación del desempeño de los responsables en el cumplimiento de la LGPDPPSO (lineamientos, manuales, programa de seguimiento, etcétera)","6.5.5 ","Establecimiento de hitos de seguimiento para los procesos de monitoreo, seguimiento, verificación y evaluación en la materia. (Organismos garantes)"]
["PRONADATOS6.5.C1-C7 ","PRONADATOS","Monitoreo, seguimiento, y verificación de metas","Conocer el desempeño de los responsables en la aplicación de la LGPDPPSO o las leyes estatales en la materia","6.5 Desarrollo específico de la normatividad: generar el cuerpo normativo que regirá el sistema de evaluación del desempeño de los responsables en el cumplimiento de la LGPDPPSO (lineamientos, manuales, programa de seguimiento, etcétera)","6.5.C1-C7 ","Fortalecer el desarrollo específico de la normatividad en el sistema de evaluación del desempeño de los responsables en el cumplimiento de la LGPDPPSO con las líneas de acción de la línea trasversal C (Organismos Garantes)","Transversal"]
["PRONADATOS6.6.1 ","PRONADATOS","Monitoreo, seguimiento, y verificación de metas","Conocer el desempeño de los responsables en la aplicación de la LGPDPPSO o las leyes estatales en la materia","6.6 Generación de procesos estandarizados para el cumplimiento de lo establecido en el sistema de evaluación del desempeño de los responsables en el cumplimiento de la LGPDPPSO","6.6.1 ","Identificar buenas prácticas en los responsables (sujetos obligados) para la integración de información relevante a la protección de datos personales. (Organismos garantes)"]
["PRONADATOS6.6.2 ","PRONADATOS","Monitoreo, seguimiento, y verificación de metas","Conocer el desempeño de los responsables en la aplicación de la LGPDPPSO o las leyes estatales en la materia","6.6 Generación de procesos estandarizados para el cumplimiento de lo establecido en el sistema de evaluación del desempeño de los responsables en el cumplimiento de la LGPDPPSO","6.6.2 ","Esquematizar las etapas del sistema de evaluación y seguimiento a instaurar. (Organismos garantes)"]
["PRONADATOS6.6.3 ","PRONADATOS","Monitoreo, seguimiento, y verificación de metas","Conocer el desempeño de los responsables en la aplicación de la LGPDPPSO o las leyes estatales en la materia","6.6 Generación de procesos estandarizados para el cumplimiento de lo establecido en el sistema de evaluación del desempeño de los responsables en el cumplimiento de la LGPDPPSO","6.6.3 ","Promover la adopción de las rutinas más eficientes para la constante y adecuada generación de información. (Organismos garantes)"]
["PRONADATOS6.6.C1-C7 ","PRONADATOS","Monitoreo, seguimiento, y verificación de metas","Conocer el desempeño de los responsables en la aplicación de la LGPDPPSO o las leyes estatales en la materia","6.6 Generación de procesos estandarizados para el cumplimiento de lo establecido en el sistema de evaluación del desempeño de los responsables en el cumplimiento de la LGPDPPSO","6.6.C1-C7 ","Fortalecer la generación de procesos estandarizados para el cumplimiento de lo establecido en el sistema de evaluación del desempeño con las líneas de acción de la línea trasversal C (Organismos Garantes)","Transversal"]
[{"$f":"CONCATENATE(B411,F411)","v":"PRONADATOS7.1.A1"},"PRONADATOS","Acciones preventivas en materia de protección de datos personales","Generar acciones y herramientas de facilitación para el ejercicio y tutela del derecho a la protección de datos personales en todo el país.","7.1 Sensibilización, promoción, difusión y socialización en acciones preventivas","7.1.A1","Identificar la temática sobre la cual se emprenderán actividades para la sensibilización, promoción, difusión y socialización de las acciones preventivas; así mismo, redactar y delimitar el mensaje que se proporcionará ","Transversal"]
["PRONADATOS7.1.A2","PRONADATOS","Acciones preventivas en materia de protección de datos personales","Generar acciones y herramientas de facilitación para el ejercicio y tutela del derecho a la protección de datos personales en todo el país.","7.1 Sensibilización, promoción, difusión y socialización en acciones preventivas","7.1.A2","Delimitar target groups (según las características de la población) para que reciban el mensaje sobre las acciones preventivas. De ser posible, establecer la cantidad de personas a las que es relevante el mensaje y a cuántos se propone llegar","Transversal"]
["PRONADATOS7.1.A3","PRONADATOS","Acciones preventivas en materia de protección de datos personales","Generar acciones y herramientas de facilitación para el ejercicio y tutela del derecho a la protección de datos personales en todo el país.","7.1 Sensibilización, promoción, difusión y socialización en acciones preventivas","7.1.A3","Conocer los medios de comunicación más efectivos para difundir el tema de las acciones preventivas entre la población objetivo","Transversal"]
["PRONADATOS7.1.A4","PRONADATOS","Acciones preventivas en materia de protección de datos personales","Generar acciones y herramientas de facilitación para el ejercicio y tutela del derecho a la protección de datos personales en todo el país.","7.1 Sensibilización, promoción, difusión y socialización en acciones preventivas","7.1.A4","Desarrollar materiales para transmitir el mensaje sobre las acciones preventivas, tomando en cuenta siempre la pertinencia del medio de comunicación elegido, así como del target group","Transversal"]
["PRONADATOS7.1.A5","PRONADATOS","Acciones preventivas en materia de protección de datos personales","Generar acciones y herramientas de facilitación para el ejercicio y tutela del derecho a la protección de datos personales en todo el país.","7.1 Sensibilización, promoción, difusión y socialización en acciones preventivas","7.1.A5","Dar seguimiento puntual a las acciones desarrolladas para poder estimar con certeza el volumen de la población que ha recibido el mensaje sobre las acciones preventivas","Transversal"]
["PRONADATOS7.1.A6","PRONADATOS","Acciones preventivas en materia de protección de datos personales","Generar acciones y herramientas de facilitación para el ejercicio y tutela del derecho a la protección de datos personales en todo el país.","7.1 Sensibilización, promoción, difusión y socialización en acciones preventivas","7.1.A6","Verificar los resultados obtenidos en las actividades implementadas respecto al tema de las acciones preventivas; haciendo uso de encuestas, entrevistas, grupos de enfoque, número de trámites, número de consultas, quejas o respuestas, etc.","Transversal"]
["PRONADATOS7.1.A7","PRONADATOS","Acciones preventivas en materia de protección de datos personales","Generar acciones y herramientas de facilitación para el ejercicio y tutela del derecho a la protección de datos personales en todo el país.","7.1 Sensibilización, promoción, difusión y socialización en acciones preventivas","7.1.A7","De ser necesario, realizar ajustes a las acciones emprendidas para utilizar los medios de comunicación y mensajes más relevantes sobre las acciones preventivas entre la población","Transversal"]
["PRONADATOS7.1.C1-C7 ","PRONADATOS","Acciones preventivas en materia de protección de datos personales","Generar acciones y herramientas de facilitación para el ejercicio y tutela del derecho a la protección de datos personales en todo el país.","7.1 Sensibilización, promoción, difusión y socialización en acciones preventivas","7.1.C1-C7 ","Fortalecer la sensibilización, promoción, difusión y socialización en acciones preventivas con las líneas de acción de la línea trasversal C (Organismos Garantes)","Transversal"]
[{"$f":"CONCATENATE(B419,F419)","v":"PRONADATOS7.2.B1"},"PRONADATOS","Acciones preventivas en materia de protección de datos personales","Generar acciones y herramientas de facilitación para el ejercicio y tutela del derecho a la protección de datos personales en todo el país.","7.2 Fortalecimiento de los Organismos Garantes para dirigir recursos específicos a las acciones preventivas y herramientas de facilitación","7.2.B1","Desarrollar capacidades en los servidores públicos con el objetivo de obtener información para dirigir recursos específicos a acciones preventivas y herramientas de facilitación","Transversal"]
["PRONADATOS7.2.B2","PRONADATOS","Acciones preventivas en materia de protección de datos personales","Generar acciones y herramientas de facilitación para el ejercicio y tutela del derecho a la protección de datos personales en todo el país.","7.2 Fortalecimiento de los Organismos Garantes para dirigir recursos específicos a las acciones preventivas y herramientas de facilitación","7.2.B2","Proveer a los servidores públicos de las capacidades que requieren para dirigir recursos específicos a acciones preventivas y herramientas de facilitación","Transversal"]
["PRONADATOS7.2.B3","PRONADATOS","Acciones preventivas en materia de protección de datos personales","Generar acciones y herramientas de facilitación para el ejercicio y tutela del derecho a la protección de datos personales en todo el país.","7.2 Fortalecimiento de los Organismos Garantes para dirigir recursos específicos a las acciones preventivas y herramientas de facilitación","7.2.B3","Dotar a los servidores públicos de las capacidades que les permitan entablar relaciones de colaboración con otros servidores públicos con el objetivo de dirigir recursos específicos a las acciones preventivas y herramientas de facilitación","Transversal"]
["PRONADATOS7.2.B4","PRONADATOS","Acciones preventivas en materia de protección de datos personales","Generar acciones y herramientas de facilitación para el ejercicio y tutela del derecho a la protección de datos personales en todo el país.","7.2 Fortalecimiento de los Organismos Garantes para dirigir recursos específicos a las acciones preventivas y herramientas de facilitación","7.2.B4","Garantizar el apoyo institucional a las acciones que los servidores públicos realicen, en el marco de sus atribuciones y los principios de su organización, con el objetivo de dirigir recursos específicos a acciones preventivas y herramientas de facilitación","Transversal"]
["PRONADATOS7.2.B5","PRONADATOS","Acciones preventivas en materia de protección de datos personales","Generar acciones y herramientas de facilitación para el ejercicio y tutela del derecho a la protección de datos personales en todo el país.","7.2 Fortalecimiento de los Organismos Garantes para dirigir recursos específicos a las acciones preventivas y herramientas de facilitación","7.2.B5","Proporcionar a los servidores públicos las capacidades que les permitan aprovechar la información que se genera sobre sus actividades y su incorporación para dirigir recursos específicos a acciones preventivas y herramientas de facilitación","Transversal"]
["PRONADATOS7.2.B6","PRONADATOS","Acciones preventivas en materia de protección de datos personales","Generar acciones y herramientas de facilitación para el ejercicio y tutela del derecho a la protección de datos personales en todo el país.","7.2 Fortalecimiento de los Organismos Garantes para dirigir recursos específicos a las acciones preventivas y herramientas de facilitación","7.2.B6","Promover el desarrollo de procesos que doten a los integrantes del SNT de información para dirigir recursos específicos a acciones preventivas y herramientas de facilitación","Transversal"]
["PRONADATOS7.2.B7","PRONADATOS","Acciones preventivas en materia de protección de datos personales","Generar acciones y herramientas de facilitación para el ejercicio y tutela del derecho a la protección de datos personales en todo el país.","7.2 Fortalecimiento de los Organismos Garantes para dirigir recursos específicos a las acciones preventivas y herramientas de facilitación","7.2.B7","Desarrollar en los integrantes del SNT capacidades para la definición de objetivos claros para dirigir recursos específicos a las acciones preventivas y herramientas de facilitación","Transversal"]
["PRONADATOS7.2.B8","PRONADATOS","Acciones preventivas en materia de protección de datos personales","Generar acciones y herramientas de facilitación para el ejercicio y tutela del derecho a la protección de datos personales en todo el país.","7.2 Fortalecimiento de los Organismos Garantes para dirigir recursos específicos a las acciones preventivas y herramientas de facilitación","7.2.B8","Crear las condiciones en cada integrante del SNT que le permitan relacionarse y establecer los convenios que convengan para dirigir recursos específicos a las acciones preventivas y herramientas de facilitación","Transversal"]
["PRONADATOS7.2.B9","PRONADATOS","Acciones preventivas en materia de protección de datos personales","Generar acciones y herramientas de facilitación para el ejercicio y tutela del derecho a la protección de datos personales en todo el país.","7.2 Fortalecimiento de los Organismos Garantes para dirigir recursos específicos a las acciones preventivas y herramientas de facilitación","7.2.B9","Crear los instrumentos organizacionales en el quehacer de cada institución integrante del SNT para dirigir recursos específicos a acciones preventivas y herramientas de facilitación","Transversal"]
["PRONADATOS7.2.B10","PRONADATOS","Acciones preventivas en materia de protección de datos personales","Generar acciones y herramientas de facilitación para el ejercicio y tutela del derecho a la protección de datos personales en todo el país.","7.2 Fortalecimiento de los Organismos Garantes para dirigir recursos específicos a las acciones preventivas y herramientas de facilitación","7.2.B10","Contar con procesos institucionales de monitoreo, evaluación y mejora continua para promover el dirigir recursos específicos a las acciones preventivas y herramientas de facilitación","Transversal"]
["PRONADATOS7.2.B11","PRONADATOS","Acciones preventivas en materia de protección de datos personales","Generar acciones y herramientas de facilitación para el ejercicio y tutela del derecho a la protección de datos personales en todo el país.","7.2 Fortalecimiento de los Organismos Garantes para dirigir recursos específicos a las acciones preventivas y herramientas de facilitación","7.2.B11","Desarrollar mecanismos de comunicación de información para dirigir recursos específicos a las acciones preventivas y herramientas de facilitación","Transversal"]
["PRONADATOS7.2.B12","PRONADATOS","Acciones preventivas en materia de protección de datos personales","Generar acciones y herramientas de facilitación para el ejercicio y tutela del derecho a la protección de datos personales en todo el país.","7.2 Fortalecimiento de los Organismos Garantes para dirigir recursos específicos a las acciones preventivas y herramientas de facilitación","7.2.B12","Establecer metas para dirigir recursos específicos a acciones preventivas y herramientas de facilitación, de manera conjunta entre organismos garantes y sus respectivos responsables","Transversal"]
["PRONADATOS7.2.B13","PRONADATOS","Acciones preventivas en materia de protección de datos personales","Generar acciones y herramientas de facilitación para el ejercicio y tutela del derecho a la protección de datos personales en todo el país.","7.2 Fortalecimiento de los Organismos Garantes para dirigir recursos específicos a las acciones preventivas y herramientas de facilitación","7.2.B13","Fomentar la creación de mecanismos de colaboración entre responsables o de responsables con otras instituciones para dirigir recursos específicos a las acciones preventivas y herramientas de facilitación","Transversal"]
["PRONADATOS7.2.B14","PRONADATOS","Acciones preventivas en materia de protección de datos personales","Generar acciones y herramientas de facilitación para el ejercicio y tutela del derecho a la protección de datos personales en todo el país.","7.2 Fortalecimiento de los Organismos Garantes para dirigir recursos específicos a las acciones preventivas y herramientas de facilitación","7.2.B14","Promover la integración de las acciones y deberes para dirigir recursos específicos a las acciones preventivas y herramientas de facilitación, en los instrumentos organizacionales de los responsables","Transversal"]
["PRONADATOS7.2.B15","PRONADATOS","Acciones preventivas en materia de protección de datos personales","Generar acciones y herramientas de facilitación para el ejercicio y tutela del derecho a la protección de datos personales en todo el país.","7.2 Fortalecimiento de los Organismos Garantes para dirigir recursos específicos a las acciones preventivas y herramientas de facilitación","7.2.B15","Contar con sistemas de monitoreo y evaluación para dirigir recursos específicos a acciones de prevención y herramientas de facilitación","Transversal"]
["PRONADATOS7.2.B16","PRONADATOS","Acciones preventivas en materia de protección de datos personales","Generar acciones y herramientas de facilitación para el ejercicio y tutela del derecho a la protección de datos personales en todo el país.","7.2 Fortalecimiento de los Organismos Garantes para dirigir recursos específicos a las acciones preventivas y herramientas de facilitación","7.2.B16","Desarrollar los mecanismos que permitan al SNT conocer, analizar y tomar acciones para dirigir recursos específicos a acciones preventivas y herramientas de facilitación","Transversal"]
["PRONADATOS7.2.B17","PRONADATOS","Acciones preventivas en materia de protección de datos personales","Generar acciones y herramientas de facilitación para el ejercicio y tutela del derecho a la protección de datos personales en todo el país.","7.2 Fortalecimiento de los Organismos Garantes para dirigir recursos específicos a las acciones preventivas y herramientas de facilitación","7.2.B17","Promover el establecimiento de objetivos del SNT para dirigir recursos específicos a acciones preventivas y herramientas de facilitación","Transversal"]
["PRONADATOS7.2.B18","PRONADATOS","Acciones preventivas en materia de protección de datos personales","Generar acciones y herramientas de facilitación para el ejercicio y tutela del derecho a la protección de datos personales en todo el país.","7.2 Fortalecimiento de los Organismos Garantes para dirigir recursos específicos a las acciones preventivas y herramientas de facilitación","7.2.B18","Buscar el establecimiento de marcos de colaboración entre el SNT y los actores más relevantes para dirigir recursos específicos a las acciones de prevención y herramientas de facilitación","Transversal"]
["PRONADATOS7.2.B19","PRONADATOS","Acciones preventivas en materia de protección de datos personales","Generar acciones y herramientas de facilitación para el ejercicio y tutela del derecho a la protección de datos personales en todo el país.","7.2 Fortalecimiento de los Organismos Garantes para dirigir recursos específicos a las acciones preventivas y herramientas de facilitación","7.2.B19","Proveer al SNT de los instrumentos que le permitan desarrollar sus acciones con el apoyo institucional de sus integrantes para dirigir recursos específicos a las acciones preventivas y herramientas de facilitación","Transversal"]
["PRONADATOS7.2.B20","PRONADATOS","Acciones preventivas en materia de protección de datos personales","Generar acciones y herramientas de facilitación para el ejercicio y tutela del derecho a la protección de datos personales en todo el país.","7.2 Fortalecimiento de los Organismos Garantes para dirigir recursos específicos a las acciones preventivas y herramientas de facilitación","7.2.B20","Crear los mecanismos que permitan al SNT monitorear, evaluar y ajustar las acciones que emprende para dirigir recursos específicos a las acciones preventivas y herramientas de facilitación","Transversal"]
["PRONADATOS7.2.C1-C7 ","PRONADATOS","Acciones preventivas en materia de protección de datos personales","Generar acciones y herramientas de facilitación para el ejercicio y tutela del derecho a la protección de datos personales en todo el país.","7.2 Fortalecimiento de los Organismos Garantes para dirigir recursos específicos a las acciones preventivas y herramientas de facilitación","7.2.C1-C7 ","Fortalecer a los Organismos Garantes para dirigir recursos específicos a las acciones preventivas y herramientas de facilitación con las líneas de acción de la línea trasversal C (Organismos Garantes)","Transversal"]
["PRONADATOS7.3.1 ","PRONADATOS","Acciones preventivas en materia de protección de datos personales","Generar acciones y herramientas de facilitación para el ejercicio y tutela del derecho a la protección de datos personales en todo el país.","7.3 Impulsar las acciones preventivas y el uso de las herramientas de facilitación ","7.3.1 ","Establecer los ámbitos de responsabilidad en el desarrollo de las herramientas de facilitación. (Integrantes del SNT)"]
["PRONADATOS7.3.2 ","PRONADATOS","Acciones preventivas en materia de protección de datos personales","Generar acciones y herramientas de facilitación para el ejercicio y tutela del derecho a la protección de datos personales en todo el país.","7.3 Impulsar las acciones preventivas y el uso de las herramientas de facilitación ","7.3.2 ","Desarrollar sectorialmente casos de éxito en la aplicación de las acciones preventivas y las herramientas de facilitación. (Organismos garantes)"]
["PRONADATOS7.3.3 ","PRONADATOS","Acciones preventivas en materia de protección de datos personales","Generar acciones y herramientas de facilitación para el ejercicio y tutela del derecho a la protección de datos personales en todo el país.","7.3 Impulsar las acciones preventivas y el uso de las herramientas de facilitación ","7.3.3 ","Difundir los beneficios del uso de acciones preventivas y herramientas de facilitación. (Integrantes del SNT)"]
["PRONADATOS7.3.C1-C7 ","PRONADATOS","Acciones preventivas en materia de protección de datos personales","Generar acciones y herramientas de facilitación para el ejercicio y tutela del derecho a la protección de datos personales en todo el país.","7.3 Impulsar las acciones preventivas y el uso de las herramientas de facilitación ","7.3.C1-C7 ","Fortalecer el impulso de las acciones preventivas y el uso de las herramientas de facilitación con las líneas de acción de la línea trasversal C (Organismos Garantes)","Transversal"]
["PRONADATOS","PRONADATOS","Acciones preventivas en materia de protección de datos personales","Generar acciones y herramientas de facilitación para el ejercicio y tutela del derecho a la protección de datos personales en todo el país.","7.4 Incentivar el uso de efectivos controles archivísticos como acción preventiva",null,"Refiérase a las líneas de acción establecidas en el PROTAI en su Eje temático 1: Archivo y gestión documental para fortalecer la protección de datos personales."]
["PRONADATOS7.4.C1-C7 ","PRONADATOS","Acciones preventivas en materia de protección de datos personales","Generar acciones y herramientas de facilitación para el ejercicio y tutela del derecho a la protección de datos personales en todo el país.","7.4 Incentivar el uso de efectivos controles archivísticos como acción preventiva","7.4.C1-C7 ","Fortalecer el uso de efectivos controles archivísticos como acción preventiva con las líneas de acción de la línea trasversal C (Organismos Garantes)","Transversal"]
["PRONADATOS8.1.1.1 ","PRONADATOS","Perspectiva normativa con enfoque de política pública","Elaborar y expedir normatividad útil y suficiente","8.1.1 Desarrollo de la normatividad secundaria a nivel federal y local","8.1.1.1 ","Identificar la normatividad necesaria a desarrollar, participando propositivamente en aquella que corresponda de manera exclusiva a los responsables o al SNT. (Organismos garantes)"]
["PRONADATOS8.1.1.2 ","PRONADATOS","Perspectiva normativa con enfoque de política pública","Elaborar y expedir normatividad útil y suficiente","8.1.1 Desarrollo de la normatividad secundaria a nivel federal y local","8.1.1.2 ","Desarrollo de la normativa que, conforme a sus facultades y atribuciones, corresponda. (Organismos garantes)"]
["PRONADATOS8.1.1.3 ","PRONADATOS","Perspectiva normativa con enfoque de política pública","Elaborar y expedir normatividad útil y suficiente","8.1.1 Desarrollo de la normatividad secundaria a nivel federal y local","8.1.1.3 ","Identificar y analizar la normatividad existente al interior de los responsables, con énfasis en aquella relacionada a tramites y procedimientos de acceso y modificación en registros personales (Organismos garantes)"]
["PRONADATOS8.1.1.4 ","PRONADATOS","Perspectiva normativa con enfoque de política pública","Elaborar y expedir normatividad útil y suficiente","8.1.1 Desarrollo de la normatividad secundaria a nivel federal y local","8.1.1.4 ","Promover la armonización de la normatividad identificada al interior de los responsables con las nuevas disposiciones, principios, deberes y obligaciones que la LGPDPPSO impone a los responsables, con énfasis en aquella relacionada a tramites y procedimientos de acceso y modificación en registros personales (Organismos garantes)"]
["PRONADATOS8.1.1.C1-C7","PRONADATOS","Perspectiva normativa con enfoque de política pública","Elaborar y expedir normatividad útil y suficiente","8.1.1 Desarrollo de la normatividad secundaria a nivel federal y local","8.1.1.C1-C7"," Fortalecer el desarrollo de la normatividad secundaria a nivel federal y local con las líneas de acción de la línea trasversal C (Organismos Garantes)","Transversal"]
[{"$f":"CONCATENATE(B451,F451)","v":"PRONADATOS8.1.2.A1"},"PRONADATOS","Perspectiva normativa con enfoque de política pública","Elaborar y expedir normatividad útil y suficiente","8.1.2 Sensibilización, promoción, difusión y socialización de la normatividad secundaria con los responsables de su aplicación ","8.1.2.A1","Identificar la temática sobre la cual se emprenderán actividades para la sensibilización, promoción, difusión y socialización de la normatividad secundaria; así mismo, redactar y delimitar el mensaje que se proporcionará ","Transversal"]
["PRONADATOS8.1.2.A2","PRONADATOS","Perspectiva normativa con enfoque de política pública","Elaborar y expedir normatividad útil y suficiente","8.1.2 Sensibilización, promoción, difusión y socialización de la normatividad secundaria con los responsables de su aplicación ","8.1.2.A2","Delimitar target groups (según las características de los Sujetos Obligados) para que reciban el mensaje sobre la normatividad secundaria. De ser posible, establecer la cantidad de sujetos obligados a los que es relevante el mensaje y a cuántos se propone llegar","Transversal"]
["PRONADATOS8.1.2.A3","PRONADATOS","Perspectiva normativa con enfoque de política pública","Elaborar y expedir normatividad útil y suficiente","8.1.2 Sensibilización, promoción, difusión y socialización de la normatividad secundaria con los responsables de su aplicación ","8.1.2.A3","Conocer los medios de comunicación más efectivos para difundir el tema de la normatividad secundaria entre los sujetos obligados","Transversal"]
["PRONADATOS8.1.2.A4","PRONADATOS","Perspectiva normativa con enfoque de política pública","Elaborar y expedir normatividad útil y suficiente","8.1.2 Sensibilización, promoción, difusión y socialización de la normatividad secundaria con los responsables de su aplicación ","8.1.2.A4","Desarrollar materiales que permitan la sensibilización, promoción, difusión y socialización sobre la normatividad secundaria, tomando en cuenta la pertinencia del medio de comunicación elegido, así como del target group","Transversal"]
["PRONADATOS8.1.2.A5","PRONADATOS","Perspectiva normativa con enfoque de política pública","Elaborar y expedir normatividad útil y suficiente","8.1.2 Sensibilización, promoción, difusión y socialización de la normatividad secundaria con los responsables de su aplicación ","8.1.2.A5","Dar seguimiento puntual a las acciones desarrolladas para poder estimar con certeza el volumen de los sujetos obligados que han recibido el mensaje sobre la normatividad secundaria","Transversal"]
["PRONADATOS8.1.2.A6","PRONADATOS","Perspectiva normativa con enfoque de política pública","Elaborar y expedir normatividad útil y suficiente","8.1.2 Sensibilización, promoción, difusión y socialización de la normatividad secundaria con los responsables de su aplicación ","8.1.2.A6","Verificar los resultados obtenidos en las actividades implementadas respecto al tema de la normatividad secundaria; haciendo uso de encuestas, entrevistas, grupos de enfoque, número de trámites, número de consultas, quejas o respuestas, etc.","Transversal"]
["PRONADATOS8.1.2.A7","PRONADATOS","Perspectiva normativa con enfoque de política pública","Elaborar y expedir normatividad útil y suficiente","8.1.2 Sensibilización, promoción, difusión y socialización de la normatividad secundaria con los responsables de su aplicación ","8.1.2.A7","De ser necesario, realizar ajustes a las acciones emprendidas para utilizar los medios de comunicación y mensajes más relevantes sobre la normatividad secundaria; entre los responsables de su aplicación","Transversal"]
["PRONADATOS8.1.2.C1-C7 ","PRONADATOS","Perspectiva normativa con enfoque de política pública","Elaborar y expedir normatividad útil y suficiente","8.1.2 Sensibilización, promoción, difusión y socialización de la normatividad secundaria con los responsables de su aplicación ","8.1.2.C1-C7 ","Fortalecer la sensibilización, promoción, difusión y socialización de la normatividad secundaria con las líneas de acción de la línea trasversal C (Organismos Garantes)","Transversal"]
[{"$f":"CONCATENATE(B459,F459)","v":"PRONADATOS8.1.3.A1"},"PRONADATOS","Perspectiva normativa con enfoque de política pública","Elaborar y expedir normatividad útil y suficiente","8.1.3 Generación de interés en la protección de datos personales y visibilización de sus alcances y resultados","8.1.3.A1","Identificar la temática sobre la cual se emprenderán actividades para generar interés en la protección de datos personales y la visibilización de sus alcances y resultados; así mismo, redactar y delimitar el mensaje que se proporcionará ","Transversal"]
["PRONADATOS8.1.3.A2","PRONADATOS","Perspectiva normativa con enfoque de política pública","Elaborar y expedir normatividad útil y suficiente","8.1.3 Generación de interés en la protección de datos personales y visibilización de sus alcances y resultados","8.1.3.A2","Delimitar target groups entre la población para que reciban el mensaje sobre el alcance y resultados de la protección de datos personales. De ser posible, establecer la cantidad de población a las que le es relevante el mensaje y a cuántos se propone llegar","Transversal"]
["PRONADATOS8.1.3.A3","PRONADATOS","Perspectiva normativa con enfoque de política pública","Elaborar y expedir normatividad útil y suficiente","8.1.3 Generación de interés en la protección de datos personales y visibilización de sus alcances y resultados","8.1.3.A3","Conocer los medios de comunicación más efectivos para generar interés entre la población sobre la protección de datos personales, su alcance y resultados; así como permitir la visibilización de sus alcances y resultados.","Transversal"]
["PRONADATOS8.1.3.A4","PRONADATOS","Perspectiva normativa con enfoque de política pública","Elaborar y expedir normatividad útil y suficiente","8.1.3 Generación de interés en la protección de datos personales y visibilización de sus alcances y resultados","8.1.3.A4","Desarrollar materiales que permitan generar interés en la protección de datos personales, así como la visibilización de sus alcances y resultados, tomando siempre en cuenta la pertinencia del medio de comunicación elegido, así como del target group","Transversal"]
["PRONADATOS8.1.3.A5","PRONADATOS","Perspectiva normativa con enfoque de política pública","Elaborar y expedir normatividad útil y suficiente","8.1.3 Generación de interés en la protección de datos personales y visibilización de sus alcances y resultados","8.1.3.A5","Dar seguimiento puntual a las acciones desarrolladas para poder estimar con certeza el volumen de la población que ha recibido el mensaje sobre los alcances y resultados de la protección de datos personales","Transversal"]
["PRONADATOS8.1.3.A6","PRONADATOS","Perspectiva normativa con enfoque de política pública","Elaborar y expedir normatividad útil y suficiente","8.1.3 Generación de interés en la protección de datos personales y visibilización de sus alcances y resultados","8.1.3.A6","Verificar los resultados obtenidos en las actividades implementadas para generar interés en la protección de datos personales y la visibilización de sus alcances y resultados; haciendo uso de encuestas, entrevistas, grupos de enfoque, número de trámites, número de consultas, quejas o respuestas, etc.","Transversal"]
["PRONADATOS8.1.3.A7","PRONADATOS","Perspectiva normativa con enfoque de política pública","Elaborar y expedir normatividad útil y suficiente","8.1.3 Generación de interés en la protección de datos personales y visibilización de sus alcances y resultados","8.1.3.A7","De ser necesario, realizar ajustes a las acciones emprendidas para utilizar los medios de comunicación y mensajes más relevantes sobre la generación de interés entre la población sobre la protección de datos personales y visibilización de sus alcances y resultados","Transversal"]
["PRONADATOS8.1.3.C1-C7 ","PRONADATOS","Perspectiva normativa con enfoque de política pública","Elaborar y expedir normatividad útil y suficiente","8.1.3 Generación de interés en la protección de datos personales y visibilización de sus alcances y resultados","8.1.3.C1-C7 ","Fortalecer la generación de interés en la protección de datos personales y visibilización de sus alcances y resultados con las líneas de acción de la línea trasversal C (Organismos Garantes)","Transversal"]
["PRONADATOS8.1.4.1 ","PRONADATOS","Perspectiva normativa con enfoque de política pública","Elaborar y expedir normatividad útil y suficiente","8.1.4 Acompañamiento por parte del INAI a los organismos garantes locales y al SNT ","8.1.4.1 ","Establecer mesas de atención como canales de comunicación, colaboración y coordinación que permitan manifestar las obligaciones que los organismos garantes tienen para normar la protección de datos personales y para compartir reflexiones y experiencias en el desarrollo de estos instrumentos normativos. (Organismos garantes)"]
["PRONADATOS8.1.4.2 ","PRONADATOS","Perspectiva normativa con enfoque de política pública","Elaborar y expedir normatividad útil y suficiente","8.1.4 Acompañamiento por parte del INAI a los organismos garantes locales y al SNT ","8.1.4.2 ","Establecer foros de consulta que permitan identificar necesidades normativas (técnicas, metodológicas o de recursos) a las que se enfrentan los Organismos Garantes de las entidades federativas para gestionar las acciones que permitan atenderlas. (Organismos garantes)"]
["PRONADATOS8.1.4.3 ","PRONADATOS","Perspectiva normativa con enfoque de política pública","Elaborar y expedir normatividad útil y suficiente","8.1.4 Acompañamiento por parte del INAI a los organismos garantes locales y al SNT ","8.1.4.3 ","Establecer mecanismos de coordinación que permitan identificar problemáticas particulares de los Organismos garantes en torno a la emisión de normatividad secundaria, para impulsar la cooperación en el seno del Sistema Nacional. (INAI)"]
["PRONADATOS8.1.4.C1-C7 ","PRONADATOS","Perspectiva normativa con enfoque de política pública","Elaborar y expedir normatividad útil y suficiente","8.1.4 Acompañamiento por parte del INAI a los organismos garantes locales y al SNT ","8.1.4.C1-C7 ","Fortalecer el acompañamiento por parte del INAI a los organismos garantes locales y al SNT con las líneas de acción de la línea trasversal C (Organismos Garantes)","Transversal"]
[{"$f":"CONCATENATE(B471,F471)","v":"PRONADATOS8.2.1.B1"},"PRONADATOS","Perspectiva normativa con enfoque de política pública","Establecer las bases y mecanismos para que los organismos garantes ejerzan adecuadamente sus nuevas atribuciones derivadas de la LGPDPPSO o de las leyes estatales en la materia","8.2.1 Fortalecimiento de los Organismos Garantes para el desarrollo de los mecanismos de tutela del derecho y establecimiento de estándares homogéneos","8.2.1.B1","Desarrollar capacidades en los servidores públicos para la obtención de información, con el objetivo de desarrollar mecanismos de tutela del derecho y establecimiento de estándares homogéneos","Transversal"]
["PRONADATOS8.2.1.B2","PRONADATOS","Perspectiva normativa con enfoque de política pública","Establecer las bases y mecanismos para que los organismos garantes ejerzan adecuadamente sus nuevas atribuciones derivadas de la LGPDPPSO o de las leyes estatales en la materia","8.2.1 Fortalecimiento de los Organismos Garantes para el desarrollo de los mecanismos de tutela del derecho y establecimiento de estándares homogéneos","8.2.1.B2","Proveer a los servidores públicos de las capacidades que requieren para planear y establecer objetivos respecto al desarrollo de mecanismos de tutela del derecho y establecimiento de estándares homogéneos","Transversal"]
["PRONADATOS8.2.1.B3","PRONADATOS","Perspectiva normativa con enfoque de política pública","Establecer las bases y mecanismos para que los organismos garantes ejerzan adecuadamente sus nuevas atribuciones derivadas de la LGPDPPSO o de las leyes estatales en la materia","8.2.1 Fortalecimiento de los Organismos Garantes para el desarrollo de los mecanismos de tutela del derecho y establecimiento de estándares homogéneos","8.2.1.B3","Dotar a los servidores públicos de las capacidades que les permitan entablar relaciones de colaboración con otros servidores públicos, buscando desarrollar mecanismos de tutela del derecho y establecimiento de estándares homogéneos","Transversal"]
["PRONADATOS8.2.1.B4","PRONADATOS","Perspectiva normativa con enfoque de política pública","Establecer las bases y mecanismos para que los organismos garantes ejerzan adecuadamente sus nuevas atribuciones derivadas de la LGPDPPSO o de las leyes estatales en la materia","8.2.1 Fortalecimiento de los Organismos Garantes para el desarrollo de los mecanismos de tutela del derecho y establecimiento de estándares homogéneos","8.2.1.B4","Garantizar el apoyo institucional a las acciones que los servidores públicos realicen, en el marco de sus atribuciones y los principios de su organización, con el objetivo de desarrollar mecanismos de tutela del derecho y establecimiento de estándares homogéneos","Transversal"]
["PRONADATOS8.2.1.B5","PRONADATOS","Perspectiva normativa con enfoque de política pública","Establecer las bases y mecanismos para que los organismos garantes ejerzan adecuadamente sus nuevas atribuciones derivadas de la LGPDPPSO o de las leyes estatales en la materia","8.2.1 Fortalecimiento de los Organismos Garantes para el desarrollo de los mecanismos de tutela del derecho y establecimiento de estándares homogéneos","8.2.1.B5","Proporcionar a los servidores públicos las capacidades que les permitan aprovechar la información que se genera sobre sus actividades y su incorporación en el desarrollo de mecanismos de tutela del derecho y establecimiento de estándares homogéneos","Transversal"]
["PRONADATOS8.2.1.B6","PRONADATOS","Perspectiva normativa con enfoque de política pública","Establecer las bases y mecanismos para que los organismos garantes ejerzan adecuadamente sus nuevas atribuciones derivadas de la LGPDPPSO o de las leyes estatales en la materia","8.2.1 Fortalecimiento de los Organismos Garantes para el desarrollo de los mecanismos de tutela del derecho y establecimiento de estándares homogéneos","8.2.1.B6","Promover el desarrollo de procesos que doten a los integrantes del SNT de información sobre los mecanismos de tutela del derecho y establecimiento de estándares homogéneos","Transversal"]
["PRONADATOS8.2.1.B7","PRONADATOS","Perspectiva normativa con enfoque de política pública","Establecer las bases y mecanismos para que los organismos garantes ejerzan adecuadamente sus nuevas atribuciones derivadas de la LGPDPPSO o de las leyes estatales en la materia","8.2.1 Fortalecimiento de los Organismos Garantes para el desarrollo de los mecanismos de tutela del derecho y establecimiento de estándares homogéneos","8.2.1.B7","Desarrollar en los integrantes del SNT capacidades para la definición de objetivos claros en el desarrollo de mecanismos de tutela del derecho y establecimiento de estándares homogéneos","Transversal"]
["PRONADATOS8.2.1.B8","PRONADATOS","Perspectiva normativa con enfoque de política pública","Establecer las bases y mecanismos para que los organismos garantes ejerzan adecuadamente sus nuevas atribuciones derivadas de la LGPDPPSO o de las leyes estatales en la materia","8.2.1 Fortalecimiento de los Organismos Garantes para el desarrollo de los mecanismos de tutela del derecho y establecimiento de estándares homogéneos","8.2.1.B8","Crear las condiciones en cada integrante del SNT que le permitan relacionarse y establecer los convenios que convengan al desarrollo de mecanismos de tutela del derecho y establecimiento de estándares homogéneos","Transversal"]
["PRONADATOS8.2.1.B9","PRONADATOS","Perspectiva normativa con enfoque de política pública","Establecer las bases y mecanismos para que los organismos garantes ejerzan adecuadamente sus nuevas atribuciones derivadas de la LGPDPPSO o de las leyes estatales en la materia","8.2.1 Fortalecimiento de los Organismos Garantes para el desarrollo de los mecanismos de tutela del derecho y establecimiento de estándares homogéneos","8.2.1.B9","Crear los instrumentos organizacionales en el quehacer de cada institución integrante del SNT para el desarrollo de los mecanismos de tutela del derecho y establecimiento de estándares homogéneos","Transversal"]
["PRONADATOS8.2.1.B10","PRONADATOS","Perspectiva normativa con enfoque de política pública","Establecer las bases y mecanismos para que los organismos garantes ejerzan adecuadamente sus nuevas atribuciones derivadas de la LGPDPPSO o de las leyes estatales en la materia","8.2.1 Fortalecimiento de los Organismos Garantes para el desarrollo de los mecanismos de tutela del derecho y establecimiento de estándares homogéneos","8.2.1.B10","Contar con procesos institucionales de monitoreo, evaluación y mejora continua para promover el desarrollo de mecanismos de tutela del derecho y establecimiento de estándares homogéneos","Transversal"]
["PRONADATOS8.2.1.B11","PRONADATOS","Perspectiva normativa con enfoque de política pública","Establecer las bases y mecanismos para que los organismos garantes ejerzan adecuadamente sus nuevas atribuciones derivadas de la LGPDPPSO o de las leyes estatales en la materia","8.2.1 Fortalecimiento de los Organismos Garantes para el desarrollo de los mecanismos de tutela del derecho y establecimiento de estándares homogéneos","8.2.1.B11","Desarrollar instrumentos de comunicación de información sobre el desarrollo de los mecanismos de tutela del derecho y establecimiento de estándares homogéneos, entre los organismos garantes y sus responsables","Transversal"]
["PRONADATOS8.2.1.B12","PRONADATOS","Perspectiva normativa con enfoque de política pública","Establecer las bases y mecanismos para que los organismos garantes ejerzan adecuadamente sus nuevas atribuciones derivadas de la LGPDPPSO o de las leyes estatales en la materia","8.2.1 Fortalecimiento de los Organismos Garantes para el desarrollo de los mecanismos de tutela del derecho y establecimiento de estándares homogéneos","8.2.1.B12","Establecer metas para el desarrollo de mecanismos de tutela del derecho y establecimiento de estándares homogéneos, de manera conjunta entre organismos garantes y sus respectivos responsables","Transversal"]
["PRONADATOS8.2.1.B13","PRONADATOS","Perspectiva normativa con enfoque de política pública","Establecer las bases y mecanismos para que los organismos garantes ejerzan adecuadamente sus nuevas atribuciones derivadas de la LGPDPPSO o de las leyes estatales en la materia","8.2.1 Fortalecimiento de los Organismos Garantes para el desarrollo de los mecanismos de tutela del derecho y establecimiento de estándares homogéneos","8.2.1.B13","Fomentar la creación de mecanismos de colaboración entre responsables o de responsables con otras instituciones para fortalecer el desarrollo de los mecanismos de tutela del derecho y establecimiento de estándares homogéneos","Transversal"]
["PRONADATOS8.2.1.B14","PRONADATOS","Perspectiva normativa con enfoque de política pública","Establecer las bases y mecanismos para que los organismos garantes ejerzan adecuadamente sus nuevas atribuciones derivadas de la LGPDPPSO o de las leyes estatales en la materia","8.2.1 Fortalecimiento de los Organismos Garantes para el desarrollo de los mecanismos de tutela del derecho y establecimiento de estándares homogéneos","8.2.1.B14","Promover la integración de las acciones y deberes en materia del desarrollo de mecanismos de tutela del derecho y establecimiento de estándares homogéneos, en los instrumentos organizacionales de los sujetos obligados","Transversal"]
["PRONADATOS8.2.1.B15","PRONADATOS","Perspectiva normativa con enfoque de política pública","Establecer las bases y mecanismos para que los organismos garantes ejerzan adecuadamente sus nuevas atribuciones derivadas de la LGPDPPSO o de las leyes estatales en la materia","8.2.1 Fortalecimiento de los Organismos Garantes para el desarrollo de los mecanismos de tutela del derecho y establecimiento de estándares homogéneos","8.2.1.B15","Contar con sistemas de monitoreo y evaluación de los mecanismos de tutela del derecho y establecimiento de estándares homogéneos","Transversal"]
["PRONADATOS8.2.1.B16","PRONADATOS","Perspectiva normativa con enfoque de política pública","Establecer las bases y mecanismos para que los organismos garantes ejerzan adecuadamente sus nuevas atribuciones derivadas de la LGPDPPSO o de las leyes estatales en la materia","8.2.1 Fortalecimiento de los Organismos Garantes para el desarrollo de los mecanismos de tutela del derecho y establecimiento de estándares homogéneos","8.2.1.B16","Crear instrumentos y herramientas que permitan al SNT conocer, analizar y tomar acciones respecto a los mecanismos de tutela del derecho y establecimiento de estándares homogéneos","Transversal"]
["PRONADATOS8.2.1.B17","PRONADATOS","Perspectiva normativa con enfoque de política pública","Establecer las bases y mecanismos para que los organismos garantes ejerzan adecuadamente sus nuevas atribuciones derivadas de la LGPDPPSO o de las leyes estatales en la materia","8.2.1 Fortalecimiento de los Organismos Garantes para el desarrollo de los mecanismos de tutela del derecho y establecimiento de estándares homogéneos","8.2.1.B17","Promover el establecimiento de objetivos del SNT respecto a los mecanismos de tutela del derecho y establecimiento de estándares homogéneos","Transversal"]
["PRONADATOS8.2.1.B18","PRONADATOS","Perspectiva normativa con enfoque de política pública","Establecer las bases y mecanismos para que los organismos garantes ejerzan adecuadamente sus nuevas atribuciones derivadas de la LGPDPPSO o de las leyes estatales en la materia","8.2.1 Fortalecimiento de los Organismos Garantes para el desarrollo de los mecanismos de tutela del derecho y establecimiento de estándares homogéneos","8.2.1.B18","Buscar el establecimiento de marcos de colaboración entre el SNT y los actores más relevantes para el desarrollo de mecanismos de tutela del derecho y establecimiento de estándares homogéneos","Transversal"]
["PRONADATOS8.2.1.B19","PRONADATOS","Perspectiva normativa con enfoque de política pública","Establecer las bases y mecanismos para que los organismos garantes ejerzan adecuadamente sus nuevas atribuciones derivadas de la LGPDPPSO o de las leyes estatales en la materia","8.2.1 Fortalecimiento de los Organismos Garantes para el desarrollo de los mecanismos de tutela del derecho y establecimiento de estándares homogéneos","8.2.1.B19","Proveer al SNT de los instrumentos que le permitan desarrollar acciones con el apoyo institucional de sus integrantes, respecto a los mecanismos de tutela del derecho y establecimiento de estándares homogéneos","Transversal"]
["PRONADATOS8.2.1.B20","PRONADATOS","Perspectiva normativa con enfoque de política pública","Establecer las bases y mecanismos para que los organismos garantes ejerzan adecuadamente sus nuevas atribuciones derivadas de la LGPDPPSO o de las leyes estatales en la materia","8.2.1 Fortalecimiento de los Organismos Garantes para el desarrollo de los mecanismos de tutela del derecho y establecimiento de estándares homogéneos","8.2.1.B20","Crear los mecanismos que permitan al SNT monitorear, evaluar y ajustar las acciones que emprende en materia del desarrollo de mecanismos de tutela del derecho y establecimiento de estándares homogéneos","Transversal"]
["PRONADATOS8.2.1.C1-C7 ","PRONADATOS","Perspectiva normativa con enfoque de política pública","Establecer las bases y mecanismos para que los organismos garantes ejerzan adecuadamente sus nuevas atribuciones derivadas de la LGPDPPSO o de las leyes estatales en la materia","8.2.1 Fortalecimiento de los Organismos Garantes para el desarrollo de los mecanismos de tutela del derecho y establecimiento de estándares homogéneos","8.2.1.C1-C7 ","Fortalecer a los Organismos Garantes para el desarrollo de los mecanismos de tutela del derecho y establecimiento de estándares homogéneos con las líneas de acción de la línea trasversal C (Organismos Garantes)","Transversal"]
["PRONADATOS8.2.2.1 ","PRONADATOS","Perspectiva normativa con enfoque de política pública","Establecer las bases y mecanismos para que los organismos garantes ejerzan adecuadamente sus nuevas atribuciones derivadas de la LGPDPPSO o de las leyes estatales en la materia","8.2.2. Dotar al ámbito público y privado de reglas homólogas en materia de protección de datos personales ","8.2.2.1 ","Identificar y difundir la regulación existente en el ámbito privado mediante un inventario de normas y disposiciones aplicables. (Organismos garantes)"]
["PRONADATOS8.2.2.2 ","PRONADATOS","Perspectiva normativa con enfoque de política pública","Establecer las bases y mecanismos para que los organismos garantes ejerzan adecuadamente sus nuevas atribuciones derivadas de la LGPDPPSO o de las leyes estatales en la materia","8.2.2. Dotar al ámbito público y privado de reglas homólogas en materia de protección de datos personales ","8.2.2.2 ","Con base en dicho inventario distinguir aquellas que pueden y deben ser transferidas al ámbito público. (Organismos garantes)"]
["PRONADATOS8.2.2.3 ","PRONADATOS","Perspectiva normativa con enfoque de política pública","Establecer las bases y mecanismos para que los organismos garantes ejerzan adecuadamente sus nuevas atribuciones derivadas de la LGPDPPSO o de las leyes estatales en la materia","8.2.2. Dotar al ámbito público y privado de reglas homólogas en materia de protección de datos personales ","8.2.2.3 ","Desarrollar los ajustes pertinentes para cada ámbito. (Organismos garantes)"]
["PRONADATOS8.2.2.C1-C7 ","PRONADATOS","Perspectiva normativa con enfoque de política pública","Establecer las bases y mecanismos para que los organismos garantes ejerzan adecuadamente sus nuevas atribuciones derivadas de la LGPDPPSO o de las leyes estatales en la materia","8.2.2. Dotar al ámbito público y privado de reglas homólogas en materia de protección de datos personales ","8.2.2.C1-C7 ","Fortalecer la dotación de reglas homólogas con las líneas de acción de la línea trasversal C (Organismos Garantes)","Transversal"]
["PRONADATOS8.2.3.1 ","PRONADATOS","Perspectiva normativa con enfoque de política pública","Establecer las bases y mecanismos para que los organismos garantes ejerzan adecuadamente sus nuevas atribuciones derivadas de la LGPDPPSO o de las leyes estatales en la materia","8.2.3 Reconocimiento de la protección a los datos personales como un derecho autónomo e independiente del derecho de acceso a la información y transparencia","8.2.3.1 ","Distinguir totalmente el tema de derecho a la protección de los datos personales respecto a los temas de acceso a la información y transparencia. (Integrantes del SNT)"]
["PRONADATOS8.2.3.C1-C7","PRONADATOS","Perspectiva normativa con enfoque de política pública","Establecer las bases y mecanismos para que los organismos garantes ejerzan adecuadamente sus nuevas atribuciones derivadas de la LGPDPPSO o de las leyes estatales en la materia","8.2.3 Reconocimiento de la protección a los datos personales como un derecho autónomo e independiente del derecho de acceso a la información y transparencia","8.2.3.C1-C7"," Fortalecer el reconocimiento de la protección a los datos personales como un derecho autónomo e independiente del derecho de acceso a la información y transparencia con las líneas de acción de la línea trasversal C (Organismos Garantes)","Transversal"]
[{"$f":"CONCATENATE(B498,F498)","v":"PRONADATOS8.3.1.B1"},"PRONADATOS","Perspectiva normativa con enfoque de política pública","Construir mecanismos de colaboración efectivos y solidarios para los organismos garantes de las entidades federativas y el INAI como homólogos en la garantía de la protección de datos personales","8.3.1 Fortalecimiento de los Organismos Garantes para compartir conocimientos, experiencias y capacidades técnicas.","8.3.1.B1","Desarrollar capacidades en los servidores públicos para la obtención de información con el objetivo de compartir conocimientos, experiencias y capacidades técnicas","Transversal"]
["PRONADATOS8.3.1.B2","PRONADATOS","Perspectiva normativa con enfoque de política pública","Construir mecanismos de colaboración efectivos y solidarios para los organismos garantes de las entidades federativas y el INAI como homólogos en la garantía de la protección de datos personales","8.3.1 Fortalecimiento de los Organismos Garantes para compartir conocimientos, experiencias y capacidades técnicas.","8.3.1.B2","Proveer a los servidores públicos de las capacidades que requieren para planear y establecer objetivos en materia de difusión de conocimientos, experiencias y capacidades técnicas.","Transversal"]
["PRONADATOS8.3.1.B3","PRONADATOS","Perspectiva normativa con enfoque de política pública","Construir mecanismos de colaboración efectivos y solidarios para los organismos garantes de las entidades federativas y el INAI como homólogos en la garantía de la protección de datos personales","8.3.1 Fortalecimiento de los Organismos Garantes para compartir conocimientos, experiencias y capacidades técnicas.","8.3.1.B3","Dotar a los servidores públicos de las capacidades que les permitan entablar relaciones de colaboración con otros servidores públicos, buscando compartir conocimientos, experiencias y capacidades técnicas.","Transversal"]
["PRONADATOS8.3.1.B4","PRONADATOS","Perspectiva normativa con enfoque de política pública","Construir mecanismos de colaboración efectivos y solidarios para los organismos garantes de las entidades federativas y el INAI como homólogos en la garantía de la protección de datos personales","8.3.1 Fortalecimiento de los Organismos Garantes para compartir conocimientos, experiencias y capacidades técnicas.","8.3.1.B4","Garantizar el apoyo institucional a las acciones que los servidores públicos realicen, en el marco de sus atribuciones y los principios de su organización, con el objetivo de compartir conocimientos, experiencias y capacidades técnicas.","Transversal"]
["PRONADATOS8.3.1.B5","PRONADATOS","Perspectiva normativa con enfoque de política pública","Construir mecanismos de colaboración efectivos y solidarios para los organismos garantes de las entidades federativas y el INAI como homólogos en la garantía de la protección de datos personales","8.3.1 Fortalecimiento de los Organismos Garantes para compartir conocimientos, experiencias y capacidades técnicas.","8.3.1.B5","Proporcionar a los servidores públicos las capacidades que les permitan aprovechar la información que se genera sobre sus actividades y su incorporación en la difusión de conocimiento, experiencias y capacidades técnicas","Transversal"]
["PRONADATOS8.3.1.B6","PRONADATOS","Perspectiva normativa con enfoque de política pública","Construir mecanismos de colaboración efectivos y solidarios para los organismos garantes de las entidades federativas y el INAI como homólogos en la garantía de la protección de datos personales","8.3.1 Fortalecimiento de los Organismos Garantes para compartir conocimientos, experiencias y capacidades técnicas.","8.3.1.B6","Promover el desarrollo de procesos que doten a los integrantes del SNT de información sobre la difusión de conocimiento, experiencias y capacidades técnicas","Transversal"]
["PRONADATOS8.3.1.B7","PRONADATOS","Perspectiva normativa con enfoque de política pública","Construir mecanismos de colaboración efectivos y solidarios para los organismos garantes de las entidades federativas y el INAI como homólogos en la garantía de la protección de datos personales","8.3.1 Fortalecimiento de los Organismos Garantes para compartir conocimientos, experiencias y capacidades técnicas.","8.3.1.B7","Desarrollar en los integrantes del SNT capacidades para la definición de objetivos claros en la difusión de conocimientos, experiencias y capacidades técnicas.","Transversal"]
["PRONADATOS8.3.1.B8","PRONADATOS","Perspectiva normativa con enfoque de política pública","Construir mecanismos de colaboración efectivos y solidarios para los organismos garantes de las entidades federativas y el INAI como homólogos en la garantía de la protección de datos personales","8.3.1 Fortalecimiento de los Organismos Garantes para compartir conocimientos, experiencias y capacidades técnicas.","8.3.1.B8","Crear las condiciones en cada integrante del SNT que le permitan relacionarse y establecer los convenios que convengan para compartir conocimientos, experiencias y capacidades técnicas.","Transversal"]
["PRONADATOS8.3.1.B9","PRONADATOS","Perspectiva normativa con enfoque de política pública","Construir mecanismos de colaboración efectivos y solidarios para los organismos garantes de las entidades federativas y el INAI como homólogos en la garantía de la protección de datos personales","8.3.1 Fortalecimiento de los Organismos Garantes para compartir conocimientos, experiencias y capacidades técnicas.","8.3.1.B9","Crear los instrumentos organizacionales que estructuren el quehacer de cada institución integrante del SNT para compartir conocimientos, experiencias y capacidades técnicas.","Transversal"]
["PRONADATOS8.3.1.B10","PRONADATOS","Perspectiva normativa con enfoque de política pública","Construir mecanismos de colaboración efectivos y solidarios para los organismos garantes de las entidades federativas y el INAI como homólogos en la garantía de la protección de datos personales","8.3.1 Fortalecimiento de los Organismos Garantes para compartir conocimientos, experiencias y capacidades técnicas.","8.3.1.B10","Contar con procesos institucionales de monitoreo, evaluación y mejora continua para compartir conocimientos, experiencias y capacidades técnicas","Transversal"]
["PRONADATOS8.3.1.B11","PRONADATOS","Perspectiva normativa con enfoque de política pública","Construir mecanismos de colaboración efectivos y solidarios para los organismos garantes de las entidades federativas y el INAI como homólogos en la garantía de la protección de datos personales","8.3.1 Fortalecimiento de los Organismos Garantes para compartir conocimientos, experiencias y capacidades técnicas.","8.3.1.B11","Desarrollar instrumentos de comunicación de información para compartir conocimientos, experiencias y capacidades técnicas.","Transversal"]
["PRONADATOS8.3.1.B12","PRONADATOS","Perspectiva normativa con enfoque de política pública","Construir mecanismos de colaboración efectivos y solidarios para los organismos garantes de las entidades federativas y el INAI como homólogos en la garantía de la protección de datos personales","8.3.1 Fortalecimiento de los Organismos Garantes para compartir conocimientos, experiencias y capacidades técnicas.","8.3.1.B12","Establecer metas en la difusión de conocimientos, experiencias y capacidades técnicas, de manera conjunta entre organismos garantes y sus respectivos responsables","Transversal"]
["PRONADATOS8.3.1.B13","PRONADATOS","Perspectiva normativa con enfoque de política pública","Construir mecanismos de colaboración efectivos y solidarios para los organismos garantes de las entidades federativas y el INAI como homólogos en la garantía de la protección de datos personales","8.3.1 Fortalecimiento de los Organismos Garantes para compartir conocimientos, experiencias y capacidades técnicas.","8.3.1.B13","Fomentar la creación de mecanismos de colaboración entre responsables o de responsables con otras instituciones para compartir conocimientos, experiencias y capacidades técnicas.","Transversal"]
["PRONADATOS8.3.1.B14","PRONADATOS","Perspectiva normativa con enfoque de política pública","Construir mecanismos de colaboración efectivos y solidarios para los organismos garantes de las entidades federativas y el INAI como homólogos en la garantía de la protección de datos personales","8.3.1 Fortalecimiento de los Organismos Garantes para compartir conocimientos, experiencias y capacidades técnicas.","8.3.1.B14","Promover la integración de las acciones y deberes en la difusión de conocimientos, experiencias y capacidades técnicas, en los instrumentos organizacionales de los sujetos obligados","Transversal"]
["PRONADATOS8.3.1.B15","PRONADATOS","Perspectiva normativa con enfoque de política pública","Construir mecanismos de colaboración efectivos y solidarios para los organismos garantes de las entidades federativas y el INAI como homólogos en la garantía de la protección de datos personales","8.3.1 Fortalecimiento de los Organismos Garantes para compartir conocimientos, experiencias y capacidades técnicas.","8.3.1.B15","Contar con sistemas de monitoreo y evaluación para compartir conocimientos, experiencias y capacidades técnicas.","Transversal"]
["PRONADATOS8.3.1.B16","PRONADATOS","Perspectiva normativa con enfoque de política pública","Construir mecanismos de colaboración efectivos y solidarios para los organismos garantes de las entidades federativas y el INAI como homólogos en la garantía de la protección de datos personales","8.3.1 Fortalecimiento de los Organismos Garantes para compartir conocimientos, experiencias y capacidades técnicas.","8.3.1.B16","Crear mecanismos que permitan al SNT conocer, analizar y tomar acciones para compartir conocimientos, experiencias y capacidades técnicas","Transversal"]
["PRONADATOS8.3.1.B17","PRONADATOS","Perspectiva normativa con enfoque de política pública","Construir mecanismos de colaboración efectivos y solidarios para los organismos garantes de las entidades federativas y el INAI como homólogos en la garantía de la protección de datos personales","8.3.1 Fortalecimiento de los Organismos Garantes para compartir conocimientos, experiencias y capacidades técnicas.","8.3.1.B17","Promover el establecimiento de objetivos del SNT para compartir conocimientos, experiencias y capacidades técnicas.","Transversal"]
["PRONADATOS8.3.1.B18","PRONADATOS","Perspectiva normativa con enfoque de política pública","Construir mecanismos de colaboración efectivos y solidarios para los organismos garantes de las entidades federativas y el INAI como homólogos en la garantía de la protección de datos personales","8.3.1 Fortalecimiento de los Organismos Garantes para compartir conocimientos, experiencias y capacidades técnicas.","8.3.1.B18","Buscar el establecimiento de marcos de colaboración entre el SNT y los actores más relevantes para compartir conocimientos, experiencias y capacidades técnicas.","Transversal"]
["PRONADATOS8.3.1.B19","PRONADATOS","Perspectiva normativa con enfoque de política pública","Construir mecanismos de colaboración efectivos y solidarios para los organismos garantes de las entidades federativas y el INAI como homólogos en la garantía de la protección de datos personales","8.3.1 Fortalecimiento de los Organismos Garantes para compartir conocimientos, experiencias y capacidades técnicas.","8.3.1.B19","Proveer al SNT de los instrumentos que le permitan desarrollar sus acciones con el apoyo institucional de sus integrantes para compartir conocimientos, experiencias y capacidades técnicas.","Transversal"]
["PRONADATOS8.3.1.B20","PRONADATOS","Perspectiva normativa con enfoque de política pública","Construir mecanismos de colaboración efectivos y solidarios para los organismos garantes de las entidades federativas y el INAI como homólogos en la garantía de la protección de datos personales","8.3.1 Fortalecimiento de los Organismos Garantes para compartir conocimientos, experiencias y capacidades técnicas.","8.3.1.B20","Crear los mecanismos que permitan al SNT monitorear, evaluar y ajustar las acciones que emprende para compartir conocimientos, experiencias y capacidades técnicas.","Transversal"]
["PRONADATOS8.3.1.C1-C7 ","PRONADATOS","Perspectiva normativa con enfoque de política pública","Construir mecanismos de colaboración efectivos y solidarios para los organismos garantes de las entidades federativas y el INAI como homólogos en la garantía de la protección de datos personales","8.3.1 Fortalecimiento de los Organismos Garantes para compartir conocimientos, experiencias y capacidades técnicas.","8.3.1.C1-C7 ","Fortalecer el intercambio de conocimientos, experiencias y capacidades técnicas de los Organismos Garantes con las líneas de acción de la línea trasversal C (Organismos Garantes)","Transversal"]
[{"$f":"CONCATENATE(B519,F519)","v":"PRONADATOS8.3.2.B1"},"PRONADATOS","Perspectiva normativa con enfoque de política pública","Construir mecanismos de colaboración efectivos y solidarios para los organismos garantes de las entidades federativas y el INAI como homólogos en la garantía de la protección de datos personales","8.3.2 Fortalecimiento de los Organismos Garantes para hacer del SNT un foro propicio para compartir experiencias que mejoren los procedimientos administrativos en la resolución de recursos de revisión de protección de datos personales","8.3.2.B1","Desarrollar capacidades en los servidores públicos para la obtención de información sobre las acciones que se realizarán para hacer del SNT un foro propicio para compartir experiencias que mejoren los procedimientos administrativos en la resolución de recursos de revisión de protección de datos personales","Transversal"]
["PRONADATOS8.3.2.B2","PRONADATOS","Perspectiva normativa con enfoque de política pública","Construir mecanismos de colaboración efectivos y solidarios para los organismos garantes de las entidades federativas y el INAI como homólogos en la garantía de la protección de datos personales","8.3.2 Fortalecimiento de los Organismos Garantes para hacer del SNT un foro propicio para compartir experiencias que mejoren los procedimientos administrativos en la resolución de recursos de revisión de protección de datos personales","8.3.2.B2","Proveer a los servidores públicos de las capacidades que requieren para planear y establecer objetivos para hacer del SNT un foro propicio dónde compartir experiencias que mejoren los procedimientos administrativos en la resolución de recursos de revisión de protección de datos personales","Transversal"]
["PRONADATOS8.3.2.B3","PRONADATOS","Perspectiva normativa con enfoque de política pública","Construir mecanismos de colaboración efectivos y solidarios para los organismos garantes de las entidades federativas y el INAI como homólogos en la garantía de la protección de datos personales","8.3.2 Fortalecimiento de los Organismos Garantes para hacer del SNT un foro propicio para compartir experiencias que mejoren los procedimientos administrativos en la resolución de recursos de revisión de protección de datos personales","8.3.2.B3","Dotar a los servidores públicos de las capacidades que les permitan entablar relaciones de colaboración con otros servidores públicos, buscando hacer del SNT un foro propicio para compartir experiencias que mejoren los procedimientos administrativos en la resolución de recursos de revisión de protección de datos personales","Transversal"]
["PRONADATOS8.3.2.B4","PRONADATOS","Perspectiva normativa con enfoque de política pública","Construir mecanismos de colaboración efectivos y solidarios para los organismos garantes de las entidades federativas y el INAI como homólogos en la garantía de la protección de datos personales","8.3.2 Fortalecimiento de los Organismos Garantes para hacer del SNT un foro propicio para compartir experiencias que mejoren los procedimientos administrativos en la resolución de recursos de revisión de protección de datos personales","8.3.2.B4","Garantizar el apoyo institucional a las acciones que los servidores públicos realicen, en el marco de sus atribuciones y los principios de su organización, con el objetivo de hacer del SNT un foro propicio para compartir experiencias que mejoren los procedimientos administrativos en la resolución de recursos de revisión de protección de datos personales","Transversal"]
["PRONADATOS8.3.2.B5","PRONADATOS","Perspectiva normativa con enfoque de política pública","Construir mecanismos de colaboración efectivos y solidarios para los organismos garantes de las entidades federativas y el INAI como homólogos en la garantía de la protección de datos personales","8.3.2 Fortalecimiento de los Organismos Garantes para hacer del SNT un foro propicio para compartir experiencias que mejoren los procedimientos administrativos en la resolución de recursos de revisión de protección de datos personales","8.3.2.B5","Proporcionar a los servidores públicos las capacidades que les permitan aprovechar la información que se genera sobre sus actividades y su incorporación para hacer del SNT un foro propicio para compartir experiencias que mejoren los procedimientos administrativos en la resolución de recursos de revisión de protección de datos personales","Transversal"]
["PRONADATOS8.3.2.B6","PRONADATOS","Perspectiva normativa con enfoque de política pública","Construir mecanismos de colaboración efectivos y solidarios para los organismos garantes de las entidades federativas y el INAI como homólogos en la garantía de la protección de datos personales","8.3.2 Fortalecimiento de los Organismos Garantes para hacer del SNT un foro propicio para compartir experiencias que mejoren los procedimientos administrativos en la resolución de recursos de revisión de protección de datos personales","8.3.2.B6","Promover el desarrollo de procesos que doten a los integrantes del SNT de información para hacer del SNT un foro propicio para compartir experiencias que mejoren los procedimientos administrativos en la resolución de recursos de revisión de protección de datos personales","Transversal"]
["PRONADATOS8.3.2.B7","PRONADATOS","Perspectiva normativa con enfoque de política pública","Construir mecanismos de colaboración efectivos y solidarios para los organismos garantes de las entidades federativas y el INAI como homólogos en la garantía de la protección de datos personales","8.3.2 Fortalecimiento de los Organismos Garantes para hacer del SNT un foro propicio para compartir experiencias que mejoren los procedimientos administrativos en la resolución de recursos de revisión de protección de datos personales","8.3.2.B7","Desarrollar en los integrantes del SNT capacidades para la definición de objetivos claros para hacer del SNT un foro propicio para compartir experiencias que mejoren los procedimientos administrativos en la resolución de recursos de revisión de protección de datos personales","Transversal"]
["PRONADATOS8.3.2.B8","PRONADATOS","Perspectiva normativa con enfoque de política pública","Construir mecanismos de colaboración efectivos y solidarios para los organismos garantes de las entidades federativas y el INAI como homólogos en la garantía de la protección de datos personales","8.3.2 Fortalecimiento de los Organismos Garantes para hacer del SNT un foro propicio para compartir experiencias que mejoren los procedimientos administrativos en la resolución de recursos de revisión de protección de datos personales","8.3.2.B8","Crear las condiciones en cada integrante del SNT que les permitan relacionarse y establecer los convenios que convengan para hacer del SNT un foro propicio para compartir experiencias que mejoren los procedimientos administrativos en la resolución de recursos de revisión de protección de datos personales","Transversal"]
["PRONADATOS8.3.2.B9","PRONADATOS","Perspectiva normativa con enfoque de política pública","Construir mecanismos de colaboración efectivos y solidarios para los organismos garantes de las entidades federativas y el INAI como homólogos en la garantía de la protección de datos personales","8.3.2 Fortalecimiento de los Organismos Garantes para hacer del SNT un foro propicio para compartir experiencias que mejoren los procedimientos administrativos en la resolución de recursos de revisión de protección de datos personales","8.3.2.B9","Crear los instrumentos organizacionales que estructuren el quehacer de cada institución integrante, tomando en consideración sus deberes para hacer del SNT un foro propicio para compartir experiencias que mejoren los procedimientos administrativos en la resolución de recursos de revisión de protección de datos personales","Transversal"]
["PRONADATOS8.3.2.B10","PRONADATOS","Perspectiva normativa con enfoque de política pública","Construir mecanismos de colaboración efectivos y solidarios para los organismos garantes de las entidades federativas y el INAI como homólogos en la garantía de la protección de datos personales","8.3.2 Fortalecimiento de los Organismos Garantes para hacer del SNT un foro propicio para compartir experiencias que mejoren los procedimientos administrativos en la resolución de recursos de revisión de protección de datos personales","8.3.2.B10","Contar con procesos institucionales de monitoreo, evaluación y mejora continua para hacer del SNT un foro propicio para compartir experiencias que mejoren los procedimientos administrativos en la resolución de recursos de revisión de protección de datos personales","Transversal"]
["PRONADATOS8.3.2.B11","PRONADATOS","Perspectiva normativa con enfoque de política pública","Construir mecanismos de colaboración efectivos y solidarios para los organismos garantes de las entidades federativas y el INAI como homólogos en la garantía de la protección de datos personales","8.3.2 Fortalecimiento de los Organismos Garantes para hacer del SNT un foro propicio para compartir experiencias que mejoren los procedimientos administrativos en la resolución de recursos de revisión de protección de datos personales","8.3.2.B11","Desarrollar instrumentos de comunicación de información que permitan hacer del SNT un foro propicio para compartir experiencias que mejoren los procedimientos administrativos en la resolución de recursos de revisión de protección de datos personales","Transversal"]
["PRONADATOS8.3.2.B12","PRONADATOS","Perspectiva normativa con enfoque de política pública","Construir mecanismos de colaboración efectivos y solidarios para los organismos garantes de las entidades federativas y el INAI como homólogos en la garantía de la protección de datos personales","8.3.2 Fortalecimiento de los Organismos Garantes para hacer del SNT un foro propicio para compartir experiencias que mejoren los procedimientos administrativos en la resolución de recursos de revisión de protección de datos personales","8.3.2.B12","Establecer metas para hacer del SNT un foro propicio para compartir experiencias que mejoren los procedimientos administrativos en la resolución de recursos de revisión de protección de datos personales","Transversal"]
["PRONADATOS8.3.2.B13","PRONADATOS","Perspectiva normativa con enfoque de política pública","Construir mecanismos de colaboración efectivos y solidarios para los organismos garantes de las entidades federativas y el INAI como homólogos en la garantía de la protección de datos personales","8.3.2 Fortalecimiento de los Organismos Garantes para hacer del SNT un foro propicio para compartir experiencias que mejoren los procedimientos administrativos en la resolución de recursos de revisión de protección de datos personales","8.3.2.B13","Fomentar la creación de mecanismos de colaboración entre responsables o de responsables con otras instituciones para hacer del SNT un foro propicio para compartir experiencias que mejoren los procedimientos administrativos en la resolución de recursos de revisión de protección de datos personales","Transversal"]
["PRONADATOS8.3.2.B14","PRONADATOS","Perspectiva normativa con enfoque de política pública","Construir mecanismos de colaboración efectivos y solidarios para los organismos garantes de las entidades federativas y el INAI como homólogos en la garantía de la protección de datos personales","8.3.2 Fortalecimiento de los Organismos Garantes para hacer del SNT un foro propicio para compartir experiencias que mejoren los procedimientos administrativos en la resolución de recursos de revisión de protección de datos personales","8.3.2.B14","Promover la integración de las acciones y deberes para hacer del SNT un foro propicio para compartir experiencias que mejoren los procedimientos administrativos en la resolución de recursos de revisión de protección de datos personales, en los instrumentos organizacionales de los sujetos obligados","Transversal"]
["PRONADATOS8.3.2.B15","PRONADATOS","Perspectiva normativa con enfoque de política pública","Construir mecanismos de colaboración efectivos y solidarios para los organismos garantes de las entidades federativas y el INAI como homólogos en la garantía de la protección de datos personales","8.3.2 Fortalecimiento de los Organismos Garantes para hacer del SNT un foro propicio para compartir experiencias que mejoren los procedimientos administrativos en la resolución de recursos de revisión de protección de datos personales","8.3.2.B15","Contar con sistemas de monitoreo y evaluación que procure hacer del SNT un foro propicio para compartir experiencias que mejoren los procedimientos administrativos en la resolución de recursos de revisión de protección de datos personales","Transversal"]
["PRONADATOS8.3.2.B16","PRONADATOS","Perspectiva normativa con enfoque de política pública","Construir mecanismos de colaboración efectivos y solidarios para los organismos garantes de las entidades federativas y el INAI como homólogos en la garantía de la protección de datos personales","8.3.2 Fortalecimiento de los Organismos Garantes para hacer del SNT un foro propicio para compartir experiencias que mejoren los procedimientos administrativos en la resolución de recursos de revisión de protección de datos personales","8.3.2.B16","Crear mecanismos que permitan al SNT conocer, analizar y tomar acciones para hacer de éste, un foro propicio para compartir experiencias que mejoren los procedimientos administrativos en la resolución de recursos de revisión de protección de datos personales","Transversal"]
["PRONADATOS8.3.2.B17","PRONADATOS","Perspectiva normativa con enfoque de política pública","Construir mecanismos de colaboración efectivos y solidarios para los organismos garantes de las entidades federativas y el INAI como homólogos en la garantía de la protección de datos personales","8.3.2 Fortalecimiento de los Organismos Garantes para hacer del SNT un foro propicio para compartir experiencias que mejoren los procedimientos administrativos en la resolución de recursos de revisión de protección de datos personales","8.3.2.B17","Promover el establecimiento de objetivos del SNT para hacer del mismo un foro propicio para compartir experiencias que mejoren los procedimientos administrativos en la resolución de recursos de revisión de protección de datos personales","Transversal"]
["PRONADATOS8.3.2.B18","PRONADATOS","Perspectiva normativa con enfoque de política pública","Construir mecanismos de colaboración efectivos y solidarios para los organismos garantes de las entidades federativas y el INAI como homólogos en la garantía de la protección de datos personales","8.3.2 Fortalecimiento de los Organismos Garantes para hacer del SNT un foro propicio para compartir experiencias que mejoren los procedimientos administrativos en la resolución de recursos de revisión de protección de datos personales","8.3.2.B18","Buscar el establecimiento de marcos de colaboración entre el SNT y los actores más relevantes para hacer de este un foro propicio para compartir experiencias que mejoren los procedimientos administrativos en la resolución de recursos de revisión de protección de datos personales","Transversal"]
["PRONADATOS8.3.2.B19","PRONADATOS","Perspectiva normativa con enfoque de política pública","Construir mecanismos de colaboración efectivos y solidarios para los organismos garantes de las entidades federativas y el INAI como homólogos en la garantía de la protección de datos personales","8.3.2 Fortalecimiento de los Organismos Garantes para hacer del SNT un foro propicio para compartir experiencias que mejoren los procedimientos administrativos en la resolución de recursos de revisión de protección de datos personales","8.3.2.B19","Proveer al SNT de los instrumentos que le permitan desarrollar sus acciones con el apoyo institucional de sus integrantes para hacer de este, un foro propicio para compartir experiencias que mejoren los procedimientos administrativos en la resolución de recursos de revisión de protección de datos personales","Transversal"]
["PRONADATOS8.3.2.B20","PRONADATOS","Perspectiva normativa con enfoque de política pública","Construir mecanismos de colaboración efectivos y solidarios para los organismos garantes de las entidades federativas y el INAI como homólogos en la garantía de la protección de datos personales","8.3.2 Fortalecimiento de los Organismos Garantes para hacer del SNT un foro propicio para compartir experiencias que mejoren los procedimientos administrativos en la resolución de recursos de revisión de protección de datos personales","8.3.2.B20","Crear los mecanismos que permitan al SNT monitorear, evaluar y ajustar las acciones que emprende para hacer de sí, un foro propicio para compartir experiencias que mejoren los procedimientos administrativos en la resolución de recursos de revisión de protección de datos personales","Transversal"]
["PRONADATOS8.3.2.C1-C7 ","PRONADATOS","Perspectiva normativa con enfoque de política pública","Construir mecanismos de colaboración efectivos y solidarios para los organismos garantes de las entidades federativas y el INAI como homólogos en la garantía de la protección de datos personales","8.3.2 Fortalecimiento de los Organismos Garantes para hacer del SNT un foro propicio para compartir experiencias que mejoren los procedimientos administrativos en la resolución de recursos de revisión de protección de datos personales","8.3.2.C1-C7 ","Fortalecer el SNT como un foro propicio para compartir experiencias con las líneas de acción de la línea trasversal C (Organismos Garantes)","Transversal"]
["PRONADATOS8.3.3.1 ","PRONADATOS","Perspectiva normativa con enfoque de política pública","Construir mecanismos de colaboración efectivos y solidarios para los organismos garantes de las entidades federativas y el INAI como homólogos en la garantía de la protección de datos personales","8.3.3 Acompañamiento del INAI a los organismos garantes locales y al SNT","8.3.3.1 ","Establecer canales de comunicación constante que permitan tanto manifestar las obligaciones que los organismos garantes tienen para resolver sobre ciertos aspectos de la protección de datos personales, como para escuchar las cuestiones que en el desarrollo de estos procesos pudiesen surgir. (INAI)"]
["PRONADATOS8.3.3.2","PRONADATOS","Perspectiva normativa con enfoque de política pública","Construir mecanismos de colaboración efectivos y solidarios para los organismos garantes de las entidades federativas y el INAI como homólogos en la garantía de la protección de datos personales","8.3.3 Acompañamiento del INAI a los organismos garantes locales y al SNT","8.3.3.2"," Detección de necesidades generalizadas para gestionar las acciones que permitan remediar las necesidades (técnicas, metodológicas o de recursos) a las que se enfrentan los Organismos Garantes de las entidades federativas. (INAI)"]
["PRONADATOS8.3.3.C1-C7 ","PRONADATOS","Perspectiva normativa con enfoque de política pública","Construir mecanismos de colaboración efectivos y solidarios para los organismos garantes de las entidades federativas y el INAI como homólogos en la garantía de la protección de datos personales","8.3.3 Acompañamiento del INAI a los organismos garantes locales y al SNT","8.3.3.C1-C7 ","Apoyar al acompañamiento del INAI a los organismos garantes locales y al SNT con las líneas de acción de la línea trasversal C (Organismos Garantes)","Transversal"]
[{"$f":"CONCATENATE(B543,F543)","v":"PRONADATOS8.3.4.B1"},"PRONADATOS","Perspectiva normativa con enfoque de política pública","Construir mecanismos de colaboración efectivos y solidarios para los organismos garantes de las entidades federativas y el INAI como homólogos en la garantía de la protección de datos personales","8.3.4 Fortalecimiento de los Organismos Garantes para la toma de decisiones conforme a las disposiciones legales aplicables","8.3.4.B1","Desarrollar capacidades en los servidores públicos para obtener información que les permita tomar de decisiones conforme a las disposiciones legales aplicables","Transversal"]
["PRONADATOS8.3.4.B2","PRONADATOS","Perspectiva normativa con enfoque de política pública","Construir mecanismos de colaboración efectivos y solidarios para los organismos garantes de las entidades federativas y el INAI como homólogos en la garantía de la protección de datos personales","8.3.4 Fortalecimiento de los Organismos Garantes para la toma de decisiones conforme a las disposiciones legales aplicables","8.3.4.B2","Proveer a los servidores públicos de las capacidades que requieren para planear y establecer objetivos sobre la toma de decisiones conforme a las disposiciones legales aplicables","Transversal"]
["PRONADATOS8.3.4.B3","PRONADATOS","Perspectiva normativa con enfoque de política pública","Construir mecanismos de colaboración efectivos y solidarios para los organismos garantes de las entidades federativas y el INAI como homólogos en la garantía de la protección de datos personales","8.3.4 Fortalecimiento de los Organismos Garantes para la toma de decisiones conforme a las disposiciones legales aplicables","8.3.4.B3","Dotar a los servidores públicos de las capacidades que les permitan entablar relaciones de colaboración con otros servidores públicos, buscando fortalecer la toma de decisiones conforme a las disposiciones legales aplicables","Transversal"]
["PRONADATOS8.3.4.B4","PRONADATOS","Perspectiva normativa con enfoque de política pública","Construir mecanismos de colaboración efectivos y solidarios para los organismos garantes de las entidades federativas y el INAI como homólogos en la garantía de la protección de datos personales","8.3.4 Fortalecimiento de los Organismos Garantes para la toma de decisiones conforme a las disposiciones legales aplicables","8.3.4.B4","Garantizar el apoyo institucional a las acciones que los servidores públicos realicen, en el marco de sus atribuciones y los principios de su organización, para la toma de decisiones conforme a las disposiciones legales aplicables","Transversal"]
["PRONADATOS8.3.4.B5","PRONADATOS","Perspectiva normativa con enfoque de política pública","Construir mecanismos de colaboración efectivos y solidarios para los organismos garantes de las entidades federativas y el INAI como homólogos en la garantía de la protección de datos personales","8.3.4 Fortalecimiento de los Organismos Garantes para la toma de decisiones conforme a las disposiciones legales aplicables","8.3.4.B5","Proporcionar a los servidores públicos las capacidades que les permitan aprovechar la información que se genera sobre sus actividades y su incorporación en la toma de decisiones conforme a las disposiciones legales aplicables","Transversal"]
["PRONADATOS8.3.4.B6","PRONADATOS","Perspectiva normativa con enfoque de política pública","Construir mecanismos de colaboración efectivos y solidarios para los organismos garantes de las entidades federativas y el INAI como homólogos en la garantía de la protección de datos personales","8.3.4 Fortalecimiento de los Organismos Garantes para la toma de decisiones conforme a las disposiciones legales aplicables","8.3.4.B6","Promover el desarrollo de procesos que doten a los integrantes del SNT de información sobre la toma de decisiones conforme a las disposiciones legales aplicables","Transversal"]
["PRONADATOS8.3.4.B7","PRONADATOS","Perspectiva normativa con enfoque de política pública","Construir mecanismos de colaboración efectivos y solidarios para los organismos garantes de las entidades federativas y el INAI como homólogos en la garantía de la protección de datos personales","8.3.4 Fortalecimiento de los Organismos Garantes para la toma de decisiones conforme a las disposiciones legales aplicables","8.3.4.B7","Desarrollar en los integrantes del SNT capacidades para la definición de objetivos claros en materia de la toma de decisiones conforme a las disposiciones legales aplicables","Transversal"]
["PRONADATOS8.3.4.B8","PRONADATOS","Perspectiva normativa con enfoque de política pública","Construir mecanismos de colaboración efectivos y solidarios para los organismos garantes de las entidades federativas y el INAI como homólogos en la garantía de la protección de datos personales","8.3.4 Fortalecimiento de los Organismos Garantes para la toma de decisiones conforme a las disposiciones legales aplicables","8.3.4.B8","Crear las condiciones en cada integrante del SNT que le permitan relacionarse y establecer los convenios que convengan a la toma de decisiones conforme a las disposiciones legales aplicables","Transversal"]
["PRONADATOS8.3.4.B9","PRONADATOS","Perspectiva normativa con enfoque de política pública","Construir mecanismos de colaboración efectivos y solidarios para los organismos garantes de las entidades federativas y el INAI como homólogos en la garantía de la protección de datos personales","8.3.4 Fortalecimiento de los Organismos Garantes para la toma de decisiones conforme a las disposiciones legales aplicables","8.3.4.B9","Crear los instrumentos organizacionales que estructuren el quehacer de cada institución integrante del SNT para la toma de decisiones conforme a las disposiciones legales aplicables","Transversal"]
["PRONADATOS8.3.4.B10","PRONADATOS","Perspectiva normativa con enfoque de política pública","Construir mecanismos de colaboración efectivos y solidarios para los organismos garantes de las entidades federativas y el INAI como homólogos en la garantía de la protección de datos personales","8.3.4 Fortalecimiento de los Organismos Garantes para la toma de decisiones conforme a las disposiciones legales aplicables","8.3.4.B10","Contar con procesos institucionales de monitoreo, evaluación y mejora continua en la toma de decisiones conforme a las disposiciones legales aplicables","Transversal"]
["PRONADATOS8.3.4.B11","PRONADATOS","Perspectiva normativa con enfoque de política pública","Construir mecanismos de colaboración efectivos y solidarios para los organismos garantes de las entidades federativas y el INAI como homólogos en la garantía de la protección de datos personales","8.3.4 Fortalecimiento de los Organismos Garantes para la toma de decisiones conforme a las disposiciones legales aplicables","8.3.4.B11","Desarrollar instrumentos de comunicación de información en materia de la toma de decisiones conforme a las disposiciones legales aplicables","Transversal"]
["PRONADATOS8.3.4.B12","PRONADATOS","Perspectiva normativa con enfoque de política pública","Construir mecanismos de colaboración efectivos y solidarios para los organismos garantes de las entidades federativas y el INAI como homólogos en la garantía de la protección de datos personales","8.3.4 Fortalecimiento de los Organismos Garantes para la toma de decisiones conforme a las disposiciones legales aplicables","8.3.4.B12","Establecer metas para el  desarrollo de sus correspondientes acciones en la toma de decisiones conforme a las disposiciones legales aplicables de manera conjunta entre organismos garantes y sus respectivos responsables","Transversal"]
["PRONADATOS8.3.4.B13","PRONADATOS","Perspectiva normativa con enfoque de política pública","Construir mecanismos de colaboración efectivos y solidarios para los organismos garantes de las entidades federativas y el INAI como homólogos en la garantía de la protección de datos personales","8.3.4 Fortalecimiento de los Organismos Garantes para la toma de decisiones conforme a las disposiciones legales aplicables","8.3.4.B13","Fomentar la creación de mecanismos de colaboración entre responsables o de responsables con otras instituciones para fortalecer la toma de decisiones conforme a las disposiciones legales aplicables","Transversal"]
["PRONADATOS8.3.4.B14","PRONADATOS","Perspectiva normativa con enfoque de política pública","Construir mecanismos de colaboración efectivos y solidarios para los organismos garantes de las entidades federativas y el INAI como homólogos en la garantía de la protección de datos personales","8.3.4 Fortalecimiento de los Organismos Garantes para la toma de decisiones conforme a las disposiciones legales aplicables","8.3.4.B14","Promover la integración de las acciones y deberes de los Organismos Garantes en la toma de decisiones conforme a las disposiciones legales aplicables, en los instrumentos organizacionales de los sujetos obligados","Transversal"]
["PRONADATOS8.3.4.B15","PRONADATOS","Perspectiva normativa con enfoque de política pública","Construir mecanismos de colaboración efectivos y solidarios para los organismos garantes de las entidades federativas y el INAI como homólogos en la garantía de la protección de datos personales","8.3.4 Fortalecimiento de los Organismos Garantes para la toma de decisiones conforme a las disposiciones legales aplicables","8.3.4.B15","Contar con sistemas de monitoreo y evaluación de la toma de decisiones conforme a las disposiciones legales aplicables","Transversal"]
["PRONADATOS8.3.4.B16","PRONADATOS","Perspectiva normativa con enfoque de política pública","Construir mecanismos de colaboración efectivos y solidarios para los organismos garantes de las entidades federativas y el INAI como homólogos en la garantía de la protección de datos personales","8.3.4 Fortalecimiento de los Organismos Garantes para la toma de decisiones conforme a las disposiciones legales aplicables","8.3.4.B16","Crear mecanismos que permitan al SNT conocer, analizar y ejecutar acciones para la toma de decisiones conforme a las disposiciones legales aplicables","Transversal"]
["PRONADATOS8.3.4.B17","PRONADATOS","Perspectiva normativa con enfoque de política pública","Construir mecanismos de colaboración efectivos y solidarios para los organismos garantes de las entidades federativas y el INAI como homólogos en la garantía de la protección de datos personales","8.3.4 Fortalecimiento de los Organismos Garantes para la toma de decisiones conforme a las disposiciones legales aplicables","8.3.4.B17","Promover el establecimiento de objetivos del SNT en materia de la toma de decisiones conforme a las disposiciones legales aplicables","Transversal"]
["PRONADATOS8.3.4.B18","PRONADATOS","Perspectiva normativa con enfoque de política pública","Construir mecanismos de colaboración efectivos y solidarios para los organismos garantes de las entidades federativas y el INAI como homólogos en la garantía de la protección de datos personales","8.3.4 Fortalecimiento de los Organismos Garantes para la toma de decisiones conforme a las disposiciones legales aplicables","8.3.4.B18","Buscar el establecimiento de marcos de colaboración entre el SNT y los actores más relevantes para fortalecer la toma de decisiones conforme a las disposiciones legales aplicables","Transversal"]
["PRONADATOS8.3.4.B19","PRONADATOS","Perspectiva normativa con enfoque de política pública","Construir mecanismos de colaboración efectivos y solidarios para los organismos garantes de las entidades federativas y el INAI como homólogos en la garantía de la protección de datos personales","8.3.4 Fortalecimiento de los Organismos Garantes para la toma de decisiones conforme a las disposiciones legales aplicables","8.3.4.B19","Proveer al SNT de los instrumentos que le permitan desarrollar sus acciones con el apoyo institucional de sus integrantes para la toma de decisiones conforme a las disposiciones legales aplicables","Transversal"]
["PRONADATOS8.3.4.B20","PRONADATOS","Perspectiva normativa con enfoque de política pública","Construir mecanismos de colaboración efectivos y solidarios para los organismos garantes de las entidades federativas y el INAI como homólogos en la garantía de la protección de datos personales","8.3.4 Fortalecimiento de los Organismos Garantes para la toma de decisiones conforme a las disposiciones legales aplicables","8.3.4.B20","Crear los mecanismos que permitan al SNT monitorear, evaluar y ajustar las acciones que emprende en materia de la toma de decisiones conforme a las disposiciones legales aplicables","Transversal"]
["PRONADATOS8.3.4.C1-C7 ","PRONADATOS","Perspectiva normativa con enfoque de política pública","Construir mecanismos de colaboración efectivos y solidarios para los organismos garantes de las entidades federativas y el INAI como homólogos en la garantía de la protección de datos personales","8.3.4 Fortalecimiento de los Organismos Garantes para la toma de decisiones conforme a las disposiciones legales aplicables","8.3.4.C1-C7 ","Fortalecer a los Organismos Garantes para la toma de decisiones con las líneas de acción de la línea trasversal C (Organismos Garantes)","Transversal"]
["PRONADATOS8.3.5.1 ","PRONADATOS","Perspectiva normativa con enfoque de política pública","Construir mecanismos de colaboración efectivos y solidarios para los organismos garantes de las entidades federativas y el INAI como homólogos en la garantía de la protección de datos personales","8.3.5 Criterios homologados","8.3.5.1 ","Establecer criterios para la interpretación del derecho a la protección de datos personales y el tratamiento de los recursos de revisión a lo largo del país. (Organismos garantes)"]
["PRONADATOS8.3.5.2 ","PRONADATOS","Perspectiva normativa con enfoque de política pública","Construir mecanismos de colaboración efectivos y solidarios para los organismos garantes de las entidades federativas y el INAI como homólogos en la garantía de la protección de datos personales","8.3.5 Criterios homologados","8.3.5.2 ","Impulsar el desarrollo, uso y difusión de una plataforma de criterios y precedentes sobre el derecho de protección de datos personales en el país. (Organismos garantes)"]
[{"$f":"CONCATENATE(B566,F566)","v":"PRONADATOS8.3.5.C1-C7 "},"PRONADATOS","Perspectiva normativa con enfoque de política pública","Construir mecanismos de colaboración efectivos y solidarios para los organismos garantes de las entidades federativas y el INAI como homólogos en la garantía de la protección de datos personales","8.3.5 Criterios homologados","8.3.5.C1-C7 ","Apoyar la homologación de criterios con las líneas de acción de la línea trasversal C (Organismos Garantes)","Transversal"]

{"sheet":"Opciones","index":6,"n_rows":37,"n_cols":17,"rows_kept":37,"cut":false,"hidden":true,"merged":[]}
["Integrante:","Programa","Eje","Objetivo/Objetivo Estratégico","Línea estratégica / Estrategias","Numeración","Línea de acción","Transversal","Descripción de la actividad","Responsable","Cargo","Datos de contacto","Resultado final","Evidencias","Descripción de evidencias","Semestre planeado","Comentarios"]
["Instituto Nacional de Transparencia, Acceso a la Información y Protección de Datos Personales","PROTAI","Promoción, Difusión y Fomento de la Cultura de Transparencia y Acceso a la Información","Texto libre del catálogo de líneas de acción","Texto libre del catálogo de líneas de acción","Texto libre del catálogo de líneas de acción","Texto libre del catálogo de líneas de acción","Transversal","Texto libre","Texto libre","Texto libre","Texto libre","Texto libre","Texto libre","Texto libre","1er Semestre"]
["Archivo General de la Nación","PRONADATOS","Derechos Humanos, Perspectiva de Género e Inclusión Social",null,null,null,null,null,null,null,null,null,null,null,null,"2do Semestre"]
["Auditoría Superior de la Federación","AMBOS","Gestión documental y administración de archivos"]
["Instituto Nacional de Estadística y Geografía",null,"Derecho de acceso a la información"]
["Instituto de Transparencia del Estado de Aguascalientes",null,"Gobierno Abierto, Transparencia Proactiva y SIPOT"]
["Instituto de Transparencia y Acceso a la Información Pública del Estado de Baja California",null,"Rendición de Cuentas"]
["Instituto de Transparencia y Acceso a la Información Pública del Estado de Baja California Sur",null,"Educación y cultura de protección de datos personales entre la sociedad mexicana"]
["Comisión de Transparencia y Acceso a la Información Pública del Estado de Campeche",null,"Ejercicio de los derechos ARCO y de portabilidad"]
["Instituto de Acceso a la Información Pública del Estado de Chiapas",null,"Capacitación a los responsables en materia de protección de datos personales"]
["Instituto Chihuahuense para la Transparencia y Acceso a la Información Pública",null,"Implementación y mantenimiento de un sistema de gestión de seguridad"]
["Instituto Coahuilense de Acceso a la Información Pública",null,"Estándares nacionales, internacionales y buenas/mejores prácticas en la materia"]
["Instituto de Transparencia, Acceso a la Información Pública y Protección de Datos del Estado de Colima",null,"Monitoreo, seguimiento, y verificación de metas"]
["Instituto de Transparencia, Acceso a la Información Pública, Protección de Datos Personales y Rendición de Cuentas de la Ciudad de México",null,"Acciones preventivas en materia de protección de datos personales"]
["Instituto Duranguense de Acceso a la Información Pública y de Protección de Datos Personales",null,"Perspectiva normativa con enfoque de política pública"]
["Instituto de Acceso a la Información Pública para el Estado de Guanajuato"]
["Instituto de Transparencia, Acceso a la Información y Protección de Datos Personales del Estado de Guerrero"]
["Instituto de Transparencia, Acceso a la Información Pública Gubernamental y Protección de Datos Personales del Estado de Hidalgo"]
["Instituto de Transparencia, Información Pública y Protección de Datos Personales del Estado de Jalisco"]
["Instituto de Transparencia, Acceso a la Información Pública y Protección de Datos Personales del Estado de México y Municipios"]
["Instituto Michoacano de Transparencia, Acceso a la Información y Protección de Datos Personales"]
["Instituto Morelense de Información Pública y Estadística"]
["Instituto de Transparencia y Acceso a la Información Pública del Estado de Nayarit"]
["Comisión de Transparencia y Acceso a la Información del Estado de Nuevo León"]
["Instituto de Acceso a la Información Pública y Protección de Datos Personales del Estado de Oaxaca"]
["Instituto de Transparencia Acceso a la Información Pública y Protección de Datos Personales del Estado de Puebla"]
["Comisión de Transparencia y Acceso a la Información Pública del Estado de Querétaro"]
["Instituto de Acceso a la Información y Protección de Datos Personales de Quintana Roo"]
["Comisión Estatal de Garantía de Acceso a la Información Pública de San Luis Potosí"]
["Comisión Estatal para el Acceso a la Información Pública de Sinaloa"]
["Instituto Sonorense de Transparencia, Acceso a la Información Pública y Protección de Datos Personales"]
["Instituto Tabasqueño de Transparencia y Acceso a la Información Pública"]
["Instituto de Transparencia y Acceso a la Información de Tamaulipas"]
["Instituto de Acceso a la Información Pública y Protección de Datos Personales del Estado de Tlaxcala"]
["Instituto Veracruzano de Acceso a la Información y Protección de Datos Personales"]
["Instituto Estatal de Transparencia, Acceso a la Información Pública y Protección de Datos Personales"]
["Instituto Zacatecano de Transparencia, Acceso a la Información y Protección de Datos Personales"]

{"sheet":"Hoja2","index":7,"n_rows":180,"n_cols":16,"rows_kept":180,"cut":false,"hidden":true,"merged":[[0,2,5,2],[7,2,13,2],[15,2,21,2],[49,2,56,2],[29,2,39,2],[22,2,28,2],[131,4,143,4],[143,3,155,3],[71,3,83,3],[42,3,52,3],[79,2,86,2],[125,2,137,2],[138,2,149,2],[58,2,64,2]]}
["Sabado","12:10:00","Hety and zambo"]
["Sabado","12:20:00"]
["Sábado","12:30:00"]
["Sábado","12:40:00"]
["Sábado","12:50:00"]
["Sábado","13:00:00"]
["Sábado","13:10:00"]
["Sábado","13:20:00","Los aguas aguas"]
["Sábado","13:30:00"]
["Sábado","13:40:00"]
["Sábado","13:50:00"]
["Sábado","14:00:00"]
["Sábado","14:10:00"]
["Sábado","14:20:00"]
["Sábado","14:30:00"]
["Sábado","14:40:00","Chancha Via Circuito"]
["Sábado","14:50:00",null,null,null,null,null,null,null,null,null,null,null,null,null,"j"]
["Sábado","15:00:00"]
["Sábado","15:10:00"]
["Sábado","15:20:00"]
["Sábado","15:30:00"]
["Sábado","15:40:00"]
["Sábado","15:50:00","La dame Blanche"]
["Sábado","16:00:00"]
["Sábado","16:10:00"]
["Sábado","16:20:00"]
["Sábado","16:30:00"]
["Sábado","16:40:00"]
["Sábado","16:50:00"]
["Sábado","17:00:00","Rio Bamba"]
["Sábado","17:10:00"]
["Sábado","17:20:00"]
["Sábado","17:30:00"]
["Sábado","17:40:00"]
["Sábado","17:50:00"]
["Sábado","18:00:00"]
["Sábado","18:10:00"]
["Sábado","18:20:00"]
["Sábado","18:30:00"]
["Sábado","18:40:00"]
["Sábado","18:50:00"]
["Sábado","19:00:00"]
["Sábado","19:10:00",null,"Jayda G"]
["Sábado","19:20:00"]
["Sábado","19:30:00"]
["Sábado","19:40:00"]
["Sábado","19:50:00"]
["Sábado","20:00:00"]
["Sábado","20:10:00"]
["Sábado","20:20:00","Kamasi Washington"]
["Sábado","20:30:00"]
["Sábado","20:40:00"]
["Sábado","20:50:00"]
["Sábado","21:00:00"]
["Sábado","21:10:00"]
["Sábado","21:20:00"]
["Sábado","21:30:00"]
["Sábado","21:40:00"]
["Sábado","21:50:00","Shigeto"]
["Sábado","22:00:00"]
["Sábado","22:10:00"]
["Sábado","22:20:00"]
["Sábado","22:30:00"]
["Sábado","22:40:00"]
["Sábado","22:50:00"]
["Sábado","23:00:00"]
["Sábado","23:10:00"]
["Sábado","23:20:00"]
["Sábado","23:30:00"]
["Sábado","23:40:00"]
["Sábado","23:50:00"]
["Domingo",1.00000000000001,null,"E-Dancer"]
["Domingo",1.00694444444445]
["Domingo",1.0138888888888999]
["Domingo",1.0208333333333399]
["Domingo",1.0277777777777799]
["Domingo",1.0347222222222301]
["Domingo",1.0416666666666701]
["Domingo",1.04861111111112]
["Domingo",1.05555555555556,"Ghetto Khumbe"]
["Domingo",1.06250000000001]
["Domingo",1.06944444444445]
["Domingo",1.0763888888888999]
["Domingo",1.0833333333333399]
["Domingo",1.0902777777777899]
["Domingo",1.0972222222222301]
["Domingo",1.1041666666666701]
["Domingo",1.11111111111112]
["Domingo",1.11805555555556]
["Domingo",1.12500000000001]
["Domingo",1.13194444444445]
["Domingo",1.1388888888888999]
["Domingo",1.1458333333333399]
["Domingo",1.1527777777777899]
["Domingo",1.1597222222222301]
["Domingo",1.1666666666666701]
["Domingo",1.17361111111112]
["Domingo",1.18055555555556]
["Domingo",1.18750000000001]
["Domingo",1.19444444444445]
["Domingo",1.2013888888888999]
["Domingo",1.2083333333333399]
["Domingo",1.2152777777777899]
["Domingo",1.2222222222222301]
["Domingo",1.2291666666666801]
["Domingo",1.23611111111112]
["Domingo",1.24305555555556]
["Domingo",1.25000000000001]
["Domingo",1.25694444444445]
["Domingo",1.2638888888888999]
["Domingo",1.2708333333333399]
["Domingo",1.2777777777777899]
["Domingo",1.2847222222222301]
["Domingo",1.2916666666666801]
["Domingo",1.29861111111112]
["Domingo",1.30555555555557]
["Domingo",1.31250000000001]
["Domingo",1.31944444444445]
["Domingo",1.3263888888888999]
["Domingo",1.3333333333333399]
["Domingo",1.3402777777777899]
["Domingo",1.3472222222222301]
["Domingo",1.3541666666666801]
["Domingo",1.36111111111112]
["Domingo",1.36805555555557]
["Domingo",1.37500000000001,"Rita Maia"]
["Domingo",1.38194444444446]
["Domingo",1.3888888888888999]
["Domingo",1.3958333333333399]
["Domingo",1.4027777777777899]
["Domingo",1.4097222222222301]
["Domingo",1.4166666666666801,null,null,"Ramzi"]
["Domingo",1.42361111111112]
["Domingo",1.43055555555557]
["Domingo",1.43750000000001]
["Domingo",1.44444444444446]
["Domingo",1.4513888888888999]
["Domingo",1.4583333333333499]
["Domingo",1.4652777777777899,"Awesome Tapes From Africa"]
["Domingo",1.4722222222222301]
["Domingo",1.4791666666666801]
["Domingo",1.48611111111112]
["Domingo",1.49305555555557]
["Domingo",1.50000000000001,null,"Philipp Fein"]
["Domingo",1.50694444444445]
["Domingo",1.5138888888888999]
["Domingo",1.5208333333333399]
["Domingo",1.5277777777777899]
["Domingo",1.5347222222222301]
["Domingo",1.5416666666666801]
["Domingo",1.54861111111112]
["Domingo",1.55555555555556]
["Domingo",1.56250000000001]
["Domingo",1.56944444444445]
["Domingo",1.5763888888888999]
["Domingo",1.5833333333333399]
["Domingo",1.5902777777777899]
["Domingo",1.5972222222222301]
["Domingo",1.6041666666666801]
["Domingo",1.61111111111112]
["Domingo",1.61805555555556]
["Domingo",1.62500000000001]
["Domingo",1.63194444444445]
["Domingo",1.6388888888888999]
["Domingo",1.6458333333333399]
["Domingo",1.6527777777777899]
["Domingo",1.6597222222222301]
["Domingo",1.6666666666666801]
["Domingo",1.67361111111112]
["Domingo",1.68055555555557]
["Domingo",1.68750000000001]
["Domingo",1.69444444444445]
["Domingo",1.7013888888888999]
["Domingo",1.7083333333333399]
["Domingo",1.7152777777777899]
["Domingo",1.7222222222222301]
["Domingo",1.7291666666666801]
["Domingo",1.73611111111112]
["Domingo",1.74305555555557]
["Domingo",1.75000000000001]